Organisation Name,Organisation Code,Unique Ref No,Effective Date,Directorate where expenditure incurred, Supplier Name ,Payment Date,Net Amount,Purpose of Spend,"Procurement Classification
(Higher Level)",Procurement Classification (Lower Level),CAPITAL / REVENUE,,,
Walsall Council,http://opendatacommunities.org/id/metropolitan-district-council/walsall ,WC137-1,30.04.2022,"ECONOMY, ENVIRONMENT & COMMUNITIES",11KBW,01/04/2022,825.00,6411-School Only Payments - Catering,THIRD PARTY PAYMENTS,INDEPENDENT UNIT WITHIN COUNCIL,REVENUE
Walsall Council,http://opendatacommunities.org/id/metropolitan-district-council/walsall ,WC137-2,30.04.2022,"ECONOMY, ENVIRONMENT & COMMUNITIES",11KBW,21/04/2022,"1,125.00",6440-School Only Payments - Catering,THIRD PARTY PAYMENTS,INDEPENDENT UNIT WITHIN COUNCIL,REVENUE
Walsall Council,http://opendatacommunities.org/id/metropolitan-district-council/walsall ,WC137-3,30.04.2022,CHILDRENS,247 CARS (WILLENHALL) LIMITED,26/04/2022,"1,850.00",6241-Hire of Vehicle with Driver,TRANSPORT,DIRECT TRANSPORT COSTS,REVENUE
Walsall Council,http://opendatacommunities.org/id/metropolitan-district-council/walsall ,WC137-4,30.04.2022,CHILDRENS,247 CARS (WILLENHALL) LIMITED,26/04/2022,"1,850.00",6241-Hire of Vehicle with Driver,TRANSPORT,DIRECT TRANSPORT COSTS,REVENUE
Walsall Council,http://opendatacommunities.org/id/metropolitan-district-council/walsall ,WC137-5,30.04.2022,CHILDRENS,247 CARS (WILLENHALL) LIMITED,26/04/2022,"1,850.00",6241-Hire of Vehicle with Driver,TRANSPORT,DIRECT TRANSPORT COSTS,REVENUE
Walsall Council,http://opendatacommunities.org/id/metropolitan-district-council/walsall ,WC137-6,30.04.2022,CHILDRENS,247 CARS (WILLENHALL) LIMITED,26/04/2022,"2,478.00",6241-Hire of Vehicle with Driver,TRANSPORT,DIRECT TRANSPORT COSTS,REVENUE
Walsall Council,http://opendatacommunities.org/id/metropolitan-district-council/walsall ,WC137-7,30.04.2022,CHILDRENS,247 CARS (WILLENHALL) LIMITED,26/04/2022,"1,850.00",6241-Hire of Vehicle with Driver,TRANSPORT,DIRECT TRANSPORT COSTS,REVENUE
Walsall Council,http://opendatacommunities.org/id/metropolitan-district-council/walsall ,WC137-8,30.04.2022,CHILDRENS,247 CARS (WILLENHALL) LIMITED,26/04/2022,"1,330.00",6241-Hire of Vehicle with Driver,TRANSPORT,DIRECT TRANSPORT COSTS,REVENUE
Walsall Council,http://opendatacommunities.org/id/metropolitan-district-council/walsall ,WC137-9,30.04.2022,CHILDRENS,247 CARS (WILLENHALL) LIMITED,26/04/2022,"1,020.00",6241-Hire of Vehicle with Driver,TRANSPORT,DIRECT TRANSPORT COSTS,REVENUE
Walsall Council,http://opendatacommunities.org/id/metropolitan-district-council/walsall ,WC137-10,30.04.2022,CHILDRENS,247 CARS (WILLENHALL) LIMITED,26/04/2022,"1,850.00",6241-Hire of Vehicle with Driver,TRANSPORT,DIRECT TRANSPORT COSTS,REVENUE
Walsall Council,http://opendatacommunities.org/id/metropolitan-district-council/walsall ,WC137-11,30.04.2022,CHILDRENS,247 CARS (WILLENHALL) LIMITED,26/04/2022,"1,330.00",6241-Hire of Vehicle with Driver,TRANSPORT,DIRECT TRANSPORT COSTS,REVENUE
Walsall Council,http://opendatacommunities.org/id/metropolitan-district-council/walsall ,WC137-12,30.04.2022,CHILDRENS,247 CARS (WILLENHALL) LIMITED,26/04/2022,"1,380.00",6241-Hire of Vehicle with Driver,TRANSPORT,DIRECT TRANSPORT COSTS,REVENUE
Walsall Council,http://opendatacommunities.org/id/metropolitan-district-council/walsall ,WC137-13,30.04.2022,CHILDRENS,247 CARS (WILLENHALL) LIMITED,26/04/2022,"1,461.60",6241-Hire of Vehicle with Driver,TRANSPORT,DIRECT TRANSPORT COSTS,REVENUE
Walsall Council,http://opendatacommunities.org/id/metropolitan-district-council/walsall ,WC137-14,30.04.2022,CHILDRENS,247 CARS (WILLENHALL) LIMITED,26/04/2022,"1,194.00",6241-Hire of Vehicle with Driver,TRANSPORT,DIRECT TRANSPORT COSTS,REVENUE
Walsall Council,http://opendatacommunities.org/id/metropolitan-district-council/walsall ,WC137-15,30.04.2022,CHILDRENS,247 CARS (WILLENHALL) LIMITED,26/04/2022,"1,444.00",6241-Hire of Vehicle with Driver,TRANSPORT,DIRECT TRANSPORT COSTS,REVENUE
Walsall Council,http://opendatacommunities.org/id/metropolitan-district-council/walsall ,WC137-16,30.04.2022,RESOURCES AND TRANSFORMATION,3 SPIRIT UK TRAINING & CONSULTANCY,14/04/2022,350.00,6625-Consultant Fees,SUPPLIES & SERVICES,SERVICES,REVENUE
Walsall Council,http://opendatacommunities.org/id/metropolitan-district-council/walsall ,WC137-17,30.04.2022,ADULT SOCIAL CARE,5 CARE SERVICES LTD,07/04/2022,"1,642.70",6541-Domiciliary Care,THIRD PARTY PAYMENTS,PRIVATE CONTRACTOR,REVENUE
Walsall Council,http://opendatacommunities.org/id/metropolitan-district-council/walsall ,WC137-18,30.04.2022,ADULT SOCIAL CARE,5 CARE SERVICES LTD,07/04/2022,280.44,6541-Domiciliary Care,THIRD PARTY PAYMENTS,PRIVATE CONTRACTOR,REVENUE
Walsall Council,http://opendatacommunities.org/id/metropolitan-district-council/walsall ,WC137-19,30.04.2022,ADULT SOCIAL CARE,5 CARE SERVICES LTD,07/04/2022,296.02,6541-Domiciliary Care,THIRD PARTY PAYMENTS,PRIVATE CONTRACTOR,REVENUE
Walsall Council,http://opendatacommunities.org/id/metropolitan-district-council/walsall ,WC137-20,30.04.2022,ADULT SOCIAL CARE,5 CARE SERVICES LTD,07/04/2022,"1,623.25",6541-Domiciliary Care,THIRD PARTY PAYMENTS,PRIVATE CONTRACTOR,REVENUE
Walsall Council,http://opendatacommunities.org/id/metropolitan-district-council/walsall ,WC137-21,30.04.2022,ADULT SOCIAL CARE,5 CARE SERVICES LTD,07/04/2022,736.05,6541-Domiciliary Care,THIRD PARTY PAYMENTS,PRIVATE CONTRACTOR,REVENUE
Walsall Council,http://opendatacommunities.org/id/metropolitan-district-council/walsall ,WC137-22,30.04.2022,ADULT SOCIAL CARE,5 CARE SERVICES LTD,07/04/2022,"1,494.72",6541-Domiciliary Care,THIRD PARTY PAYMENTS,PRIVATE CONTRACTOR,REVENUE
Walsall Council,http://opendatacommunities.org/id/metropolitan-district-council/walsall ,WC137-23,30.04.2022,ADULT SOCIAL CARE,5 CARE SERVICES LTD,07/04/2022,545.16,6541-Domiciliary Care,THIRD PARTY PAYMENTS,PRIVATE CONTRACTOR,REVENUE
Walsall Council,http://opendatacommunities.org/id/metropolitan-district-council/walsall ,WC137-24,30.04.2022,ADULT SOCIAL CARE,5 CARE SERVICES LTD,07/04/2022,654.36,6541-Domiciliary Care,THIRD PARTY PAYMENTS,PRIVATE CONTRACTOR,REVENUE
Walsall Council,http://opendatacommunities.org/id/metropolitan-district-council/walsall ,WC137-25,30.04.2022,ADULT SOCIAL CARE,5 CARE SERVICES LTD,11/04/2022,268.68,6541-Domiciliary Care,THIRD PARTY PAYMENTS,PRIVATE CONTRACTOR,REVENUE
Walsall Council,http://opendatacommunities.org/id/metropolitan-district-council/walsall ,WC137-26,30.04.2022,ADULT SOCIAL CARE,5 CARE SERVICES LTD,11/04/2022,490.49,6541-Domiciliary Care,THIRD PARTY PAYMENTS,PRIVATE CONTRACTOR,REVENUE
Walsall Council,http://opendatacommunities.org/id/metropolitan-district-council/walsall ,WC137-27,30.04.2022,ADULT SOCIAL CARE,5 CARE SERVICES LTD,11/04/2022,490.49,6541-Domiciliary Care,THIRD PARTY PAYMENTS,PRIVATE CONTRACTOR,REVENUE
Walsall Council,http://opendatacommunities.org/id/metropolitan-district-council/walsall ,WC137-28,30.04.2022,ADULT SOCIAL CARE,5 CARE SERVICES LTD,11/04/2022,871.92,6541-Domiciliary Care,THIRD PARTY PAYMENTS,PRIVATE CONTRACTOR,REVENUE
Walsall Council,http://opendatacommunities.org/id/metropolitan-district-council/walsall ,WC137-29,30.04.2022,ADULT SOCIAL CARE,5 CARE SERVICES LTD,11/04/2022,482.74,6541-Domiciliary Care,THIRD PARTY PAYMENTS,PRIVATE CONTRACTOR,REVENUE
Walsall Council,http://opendatacommunities.org/id/metropolitan-district-council/walsall ,WC137-30,30.04.2022,ADULT SOCIAL CARE,5 CARE SERVICES LTD,11/04/2022,724.06,6541-Domiciliary Care,THIRD PARTY PAYMENTS,PRIVATE CONTRACTOR,REVENUE
Walsall Council,http://opendatacommunities.org/id/metropolitan-district-council/walsall ,WC137-31,30.04.2022,ADULT SOCIAL CARE,5 CARE SERVICES LTD,11/04/2022,"1,198.89",6541-Domiciliary Care,THIRD PARTY PAYMENTS,PRIVATE CONTRACTOR,REVENUE
Walsall Council,http://opendatacommunities.org/id/metropolitan-district-council/walsall ,WC137-32,30.04.2022,ADULT SOCIAL CARE,5 CARE SERVICES LTD,11/04/2022,654.01,6541-Domiciliary Care,THIRD PARTY PAYMENTS,PRIVATE CONTRACTOR,REVENUE
Walsall Council,http://opendatacommunities.org/id/metropolitan-district-council/walsall ,WC137-33,30.04.2022,ADULT SOCIAL CARE,5 CARE SERVICES LTD,11/04/2022,326.97,6541-Domiciliary Care,THIRD PARTY PAYMENTS,PRIVATE CONTRACTOR,REVENUE
Walsall Council,http://opendatacommunities.org/id/metropolitan-district-council/walsall ,WC137-34,30.04.2022,ADULT SOCIAL CARE,5 CARE SERVICES LTD,11/04/2022,635.81,6541-Domiciliary Care,THIRD PARTY PAYMENTS,PRIVATE CONTRACTOR,REVENUE
Walsall Council,http://opendatacommunities.org/id/metropolitan-district-council/walsall ,WC137-35,30.04.2022,ADULT SOCIAL CARE,5 CARE SERVICES LTD,11/04/2022,490.49,6541-Domiciliary Care,THIRD PARTY PAYMENTS,PRIVATE CONTRACTOR,REVENUE
Walsall Council,http://opendatacommunities.org/id/metropolitan-district-council/walsall ,WC137-36,30.04.2022,ADULT SOCIAL CARE,5 CARE SERVICES LTD,11/04/2022,292.06,6541-Domiciliary Care,THIRD PARTY PAYMENTS,PRIVATE CONTRACTOR,REVENUE
Walsall Council,http://opendatacommunities.org/id/metropolitan-district-council/walsall ,WC137-37,30.04.2022,ADULT SOCIAL CARE,5 CARE SERVICES LTD,11/04/2022,420.39,6541-Domiciliary Care,THIRD PARTY PAYMENTS,PRIVATE CONTRACTOR,REVENUE
Walsall Council,http://opendatacommunities.org/id/metropolitan-district-council/walsall ,WC137-38,30.04.2022,ADULT SOCIAL CARE,5 CARE SERVICES LTD,11/04/2022,638.37,6541-Domiciliary Care,THIRD PARTY PAYMENTS,PRIVATE CONTRACTOR,REVENUE
Walsall Council,http://opendatacommunities.org/id/metropolitan-district-council/walsall ,WC137-39,30.04.2022,ADULT SOCIAL CARE,5 CARE SERVICES LTD,11/04/2022,311.40,6541-Domiciliary Care,THIRD PARTY PAYMENTS,PRIVATE CONTRACTOR,REVENUE
Walsall Council,http://opendatacommunities.org/id/metropolitan-district-council/walsall ,WC137-40,30.04.2022,ADULT SOCIAL CARE,5 CARE SERVICES LTD,11/04/2022,326.97,6541-Domiciliary Care,THIRD PARTY PAYMENTS,PRIVATE CONTRACTOR,REVENUE
Walsall Council,http://opendatacommunities.org/id/metropolitan-district-council/walsall ,WC137-41,30.04.2022,ADULT SOCIAL CARE,5 CARE SERVICES LTD,11/04/2022,490.49,6541-Domiciliary Care,THIRD PARTY PAYMENTS,PRIVATE CONTRACTOR,REVENUE
Walsall Council,http://opendatacommunities.org/id/metropolitan-district-council/walsall ,WC137-42,30.04.2022,ADULT SOCIAL CARE,5 CARE SERVICES LTD,11/04/2022,"1,681.56",6541-Domiciliary Care,THIRD PARTY PAYMENTS,PRIVATE CONTRACTOR,REVENUE
Walsall Council,http://opendatacommunities.org/id/metropolitan-district-council/walsall ,WC137-43,30.04.2022,ADULT SOCIAL CARE,5 CARE SERVICES LTD,11/04/2022,327.04,6541-Domiciliary Care,THIRD PARTY PAYMENTS,PRIVATE CONTRACTOR,REVENUE
Walsall Council,http://opendatacommunities.org/id/metropolitan-district-council/walsall ,WC137-44,30.04.2022,ADULT SOCIAL CARE,5 CARE SERVICES LTD,11/04/2022,376.44,6541-Domiciliary Care,THIRD PARTY PAYMENTS,PRIVATE CONTRACTOR,REVENUE
Walsall Council,http://opendatacommunities.org/id/metropolitan-district-council/walsall ,WC137-45,30.04.2022,ADULT SOCIAL CARE,5 CARE SERVICES LTD,11/04/2022,728.17,6541-Domiciliary Care,THIRD PARTY PAYMENTS,PRIVATE CONTRACTOR,REVENUE
Walsall Council,http://opendatacommunities.org/id/metropolitan-district-council/walsall ,WC137-46,30.04.2022,ADULT SOCIAL CARE,5 CARE SERVICES LTD,11/04/2022,493.58,6541-Domiciliary Care,THIRD PARTY PAYMENTS,PRIVATE CONTRACTOR,REVENUE
Walsall Council,http://opendatacommunities.org/id/metropolitan-district-council/walsall ,WC137-47,30.04.2022,ADULT SOCIAL CARE,5 CARE SERVICES LTD,11/04/2022,270.20,6541-Domiciliary Care,THIRD PARTY PAYMENTS,PRIVATE CONTRACTOR,REVENUE
Walsall Council,http://opendatacommunities.org/id/metropolitan-district-council/walsall ,WC137-48,30.04.2022,ADULT SOCIAL CARE,5 CARE SERVICES LTD,11/04/2022,312.32,6541-Domiciliary Care,THIRD PARTY PAYMENTS,PRIVATE CONTRACTOR,REVENUE
Walsall Council,http://opendatacommunities.org/id/metropolitan-district-council/walsall ,WC137-49,30.04.2022,ADULT SOCIAL CARE,5 CARE SERVICES LTD,11/04/2022,329.04,6541-Domiciliary Care,THIRD PARTY PAYMENTS,PRIVATE CONTRACTOR,REVENUE
Walsall Council,http://opendatacommunities.org/id/metropolitan-district-council/walsall ,WC137-50,30.04.2022,ADULT SOCIAL CARE,5 CARE SERVICES LTD,11/04/2022,493.58,6541-Domiciliary Care,THIRD PARTY PAYMENTS,PRIVATE CONTRACTOR,REVENUE
Walsall Council,http://opendatacommunities.org/id/metropolitan-district-council/walsall ,WC137-51,30.04.2022,ADULT SOCIAL CARE,5 CARE SERVICES LTD,11/04/2022,"1,206.48",6541-Domiciliary Care,THIRD PARTY PAYMENTS,PRIVATE CONTRACTOR,REVENUE
Walsall Council,http://opendatacommunities.org/id/metropolitan-district-council/walsall ,WC137-52,30.04.2022,ADULT SOCIAL CARE,5 CARE SERVICES LTD,11/04/2022,563.74,6541-Domiciliary Care,THIRD PARTY PAYMENTS,PRIVATE CONTRACTOR,REVENUE
Walsall Council,http://opendatacommunities.org/id/metropolitan-district-council/walsall ,WC137-53,30.04.2022,ADULT SOCIAL CARE,5 CARE SERVICES LTD,11/04/2022,250.04,6541-Domiciliary Care,THIRD PARTY PAYMENTS,PRIVATE CONTRACTOR,REVENUE
Walsall Council,http://opendatacommunities.org/id/metropolitan-district-council/walsall ,WC137-54,30.04.2022,ADULT SOCIAL CARE,5 CARE SERVICES LTD,11/04/2022,493.58,6541-Domiciliary Care,THIRD PARTY PAYMENTS,PRIVATE CONTRACTOR,REVENUE
Walsall Council,http://opendatacommunities.org/id/metropolitan-district-council/walsall ,WC137-55,30.04.2022,ADULT SOCIAL CARE,5 CARE SERVICES LTD,11/04/2022,877.44,6541-Domiciliary Care,THIRD PARTY PAYMENTS,PRIVATE CONTRACTOR,REVENUE
Walsall Council,http://opendatacommunities.org/id/metropolitan-district-council/walsall ,WC137-56,30.04.2022,ADULT SOCIAL CARE,5 CARE SERVICES LTD,11/04/2022,493.58,6541-Domiciliary Care,THIRD PARTY PAYMENTS,PRIVATE CONTRACTOR,REVENUE
Walsall Council,http://opendatacommunities.org/id/metropolitan-district-council/walsall ,WC137-57,30.04.2022,ADULT SOCIAL CARE,5 CARE SERVICES LTD,11/04/2022,487.08,6541-Domiciliary Care,THIRD PARTY PAYMENTS,PRIVATE CONTRACTOR,REVENUE
Walsall Council,http://opendatacommunities.org/id/metropolitan-district-council/walsall ,WC137-58,30.04.2022,ADULT SOCIAL CARE,5 CARE SERVICES LTD,11/04/2022,293.56,6541-Domiciliary Care,THIRD PARTY PAYMENTS,PRIVATE CONTRACTOR,REVENUE
Walsall Council,http://opendatacommunities.org/id/metropolitan-district-council/walsall ,WC137-59,30.04.2022,ADULT SOCIAL CARE,5 CARE SERVICES LTD,11/04/2022,"1,511.28",6541-Domiciliary Care,THIRD PARTY PAYMENTS,PRIVATE CONTRACTOR,REVENUE
Walsall Council,http://opendatacommunities.org/id/metropolitan-district-council/walsall ,WC137-60,30.04.2022,ADULT SOCIAL CARE,5 CARE SERVICES LTD,11/04/2022,329.08,6541-Domiciliary Care,THIRD PARTY PAYMENTS,PRIVATE CONTRACTOR,REVENUE
Walsall Council,http://opendatacommunities.org/id/metropolitan-district-council/walsall ,WC137-61,30.04.2022,ADULT SOCIAL CARE,5 CARE SERVICES LTD,11/04/2022,658.12,6541-Domiciliary Care,THIRD PARTY PAYMENTS,PRIVATE CONTRACTOR,REVENUE
Walsall Council,http://opendatacommunities.org/id/metropolitan-district-council/walsall ,WC137-62,30.04.2022,ADULT SOCIAL CARE,5 CARE SERVICES LTD,11/04/2022,329.04,6541-Domiciliary Care,THIRD PARTY PAYMENTS,PRIVATE CONTRACTOR,REVENUE
Walsall Council,http://opendatacommunities.org/id/metropolitan-district-council/walsall ,WC137-63,30.04.2022,ADULT SOCIAL CARE,5 CARE SERVICES LTD,11/04/2022,639.83,6541-Domiciliary Care,THIRD PARTY PAYMENTS,PRIVATE CONTRACTOR,REVENUE
Walsall Council,http://opendatacommunities.org/id/metropolitan-district-council/walsall ,WC137-64,30.04.2022,ADULT SOCIAL CARE,5 CARE SERVICES LTD,11/04/2022,422.46,6541-Domiciliary Care,THIRD PARTY PAYMENTS,PRIVATE CONTRACTOR,REVENUE
Walsall Council,http://opendatacommunities.org/id/metropolitan-district-council/walsall ,WC137-65,30.04.2022,ADULT SOCIAL CARE,5 CARE SERVICES LTD,26/04/2022,288.35,6541-Domiciliary Care,THIRD PARTY PAYMENTS,PRIVATE CONTRACTOR,REVENUE
Walsall Council,http://opendatacommunities.org/id/metropolitan-district-council/walsall ,WC137-66,30.04.2022,ADULT SOCIAL CARE,5 CARE SERVICES LTD,26/04/2022,442.40,6541-Domiciliary Care,THIRD PARTY PAYMENTS,PRIVATE CONTRACTOR,REVENUE
Walsall Council,http://opendatacommunities.org/id/metropolitan-district-council/walsall ,WC137-67,30.04.2022,ADULT SOCIAL CARE,5 CARE SERVICES LTD,26/04/2022,"1,216.60",6541-Domiciliary Care,THIRD PARTY PAYMENTS,PRIVATE CONTRACTOR,REVENUE
Walsall Council,http://opendatacommunities.org/id/metropolitan-district-council/walsall ,WC137-68,30.04.2022,ADULT SOCIAL CARE,5 CARE SERVICES LTD,26/04/2022,568.80,6541-Domiciliary Care,THIRD PARTY PAYMENTS,PRIVATE CONTRACTOR,REVENUE
Walsall Council,http://opendatacommunities.org/id/metropolitan-district-council/walsall ,WC137-69,30.04.2022,ADULT SOCIAL CARE,5 CARE SERVICES LTD,26/04/2022,663.60,6541-Domiciliary Care,THIRD PARTY PAYMENTS,PRIVATE CONTRACTOR,REVENUE
Walsall Council,http://opendatacommunities.org/id/metropolitan-district-council/walsall ,WC137-70,30.04.2022,ADULT SOCIAL CARE,5 CARE SERVICES LTD,26/04/2022,331.80,6541-Domiciliary Care,THIRD PARTY PAYMENTS,PRIVATE CONTRACTOR,REVENUE
Walsall Council,http://opendatacommunities.org/id/metropolitan-district-council/walsall ,WC137-71,30.04.2022,ADULT SOCIAL CARE,5 CARE SERVICES LTD,26/04/2022,645.19,6541-Domiciliary Care,THIRD PARTY PAYMENTS,PRIVATE CONTRACTOR,REVENUE
Walsall Council,http://opendatacommunities.org/id/metropolitan-district-council/walsall ,WC137-72,30.04.2022,ADULT SOCIAL CARE,5 CARE SERVICES LTD,26/04/2022,497.70,6541-Domiciliary Care,THIRD PARTY PAYMENTS,PRIVATE CONTRACTOR,REVENUE
Walsall Council,http://opendatacommunities.org/id/metropolitan-district-council/walsall ,WC137-73,30.04.2022,ADULT SOCIAL CARE,5 CARE SERVICES LTD,26/04/2022,734.70,6541-Domiciliary Care,THIRD PARTY PAYMENTS,PRIVATE CONTRACTOR,REVENUE
Walsall Council,http://opendatacommunities.org/id/metropolitan-district-council/walsall ,WC137-74,30.04.2022,ADULT SOCIAL CARE,5 CARE SERVICES LTD,26/04/2022,497.70,6541-Domiciliary Care,THIRD PARTY PAYMENTS,PRIVATE CONTRACTOR,REVENUE
Walsall Council,http://opendatacommunities.org/id/metropolitan-district-council/walsall ,WC137-75,30.04.2022,ADULT SOCIAL CARE,5 CARE SERVICES LTD,26/04/2022,489.80,6541-Domiciliary Care,THIRD PARTY PAYMENTS,PRIVATE CONTRACTOR,REVENUE
Walsall Council,http://opendatacommunities.org/id/metropolitan-district-council/walsall ,WC137-76,30.04.2022,ADULT SOCIAL CARE,5 CARE SERVICES LTD,26/04/2022,296.25,6541-Domiciliary Care,THIRD PARTY PAYMENTS,PRIVATE CONTRACTOR,REVENUE
Walsall Council,http://opendatacommunities.org/id/metropolitan-district-council/walsall ,WC137-77,30.04.2022,ADULT SOCIAL CARE,5 CARE SERVICES LTD,26/04/2022,884.80,6541-Domiciliary Care,THIRD PARTY PAYMENTS,PRIVATE CONTRACTOR,REVENUE
Walsall Council,http://opendatacommunities.org/id/metropolitan-district-council/walsall ,WC137-78,30.04.2022,ADULT SOCIAL CARE,5 CARE SERVICES LTD,26/04/2022,252.80,6541-Domiciliary Care,THIRD PARTY PAYMENTS,PRIVATE CONTRACTOR,REVENUE
Walsall Council,http://opendatacommunities.org/id/metropolitan-district-council/walsall ,WC137-79,30.04.2022,ADULT SOCIAL CARE,5 CARE SERVICES LTD,26/04/2022,"1,896.00",6541-Domiciliary Care,THIRD PARTY PAYMENTS,PRIVATE CONTRACTOR,REVENUE
Walsall Council,http://opendatacommunities.org/id/metropolitan-district-council/walsall ,WC137-80,30.04.2022,ADULT SOCIAL CARE,5 CARE SERVICES LTD,26/04/2022,316.00,6541-Domiciliary Care,THIRD PARTY PAYMENTS,PRIVATE CONTRACTOR,REVENUE
Walsall Council,http://opendatacommunities.org/id/metropolitan-district-council/walsall ,WC137-81,30.04.2022,ADULT SOCIAL CARE,5 CARE SERVICES LTD,26/04/2022,331.80,6541-Domiciliary Care,THIRD PARTY PAYMENTS,PRIVATE CONTRACTOR,REVENUE
Walsall Council,http://opendatacommunities.org/id/metropolitan-district-council/walsall ,WC137-82,30.04.2022,ADULT SOCIAL CARE,5 CARE SERVICES LTD,26/04/2022,497.70,6541-Domiciliary Care,THIRD PARTY PAYMENTS,PRIVATE CONTRACTOR,REVENUE
Walsall Council,http://opendatacommunities.org/id/metropolitan-district-council/walsall ,WC137-83,30.04.2022,ADULT SOCIAL CARE,5 CARE SERVICES LTD,26/04/2022,442.40,6541-Domiciliary Care,THIRD PARTY PAYMENTS,PRIVATE CONTRACTOR,REVENUE
Walsall Council,http://opendatacommunities.org/id/metropolitan-district-council/walsall ,WC137-84,30.04.2022,ADULT SOCIAL CARE,5 CARE SERVICES LTD,26/04/2022,288.35,6541-Domiciliary Care,THIRD PARTY PAYMENTS,PRIVATE CONTRACTOR,REVENUE
Walsall Council,http://opendatacommunities.org/id/metropolitan-district-council/walsall ,WC137-85,30.04.2022,ADULT SOCIAL CARE,5 CARE SERVICES LTD,26/04/2022,497.70,6541-Domiciliary Care,THIRD PARTY PAYMENTS,PRIVATE CONTRACTOR,REVENUE
Walsall Council,http://opendatacommunities.org/id/metropolitan-district-council/walsall ,WC137-86,30.04.2022,ADULT SOCIAL CARE,5 CARE SERVICES LTD,26/04/2022,"1,216.60",6541-Domiciliary Care,THIRD PARTY PAYMENTS,PRIVATE CONTRACTOR,REVENUE
Walsall Council,http://opendatacommunities.org/id/metropolitan-district-council/walsall ,WC137-87,30.04.2022,ADULT SOCIAL CARE,5 CARE SERVICES LTD,26/04/2022,568.80,6541-Domiciliary Care,THIRD PARTY PAYMENTS,PRIVATE CONTRACTOR,REVENUE
Walsall Council,http://opendatacommunities.org/id/metropolitan-district-council/walsall ,WC137-88,30.04.2022,ADULT SOCIAL CARE,5 CARE SERVICES LTD,26/04/2022,663.60,6541-Domiciliary Care,THIRD PARTY PAYMENTS,PRIVATE CONTRACTOR,REVENUE
Walsall Council,http://opendatacommunities.org/id/metropolitan-district-council/walsall ,WC137-89,30.04.2022,ADULT SOCIAL CARE,5 CARE SERVICES LTD,26/04/2022,331.80,6541-Domiciliary Care,THIRD PARTY PAYMENTS,PRIVATE CONTRACTOR,REVENUE
Walsall Council,http://opendatacommunities.org/id/metropolitan-district-council/walsall ,WC137-90,30.04.2022,ADULT SOCIAL CARE,5 CARE SERVICES LTD,26/04/2022,645.19,6541-Domiciliary Care,THIRD PARTY PAYMENTS,PRIVATE CONTRACTOR,REVENUE
Walsall Council,http://opendatacommunities.org/id/metropolitan-district-council/walsall ,WC137-91,30.04.2022,ADULT SOCIAL CARE,5 CARE SERVICES LTD,26/04/2022,489.80,6541-Domiciliary Care,THIRD PARTY PAYMENTS,PRIVATE CONTRACTOR,REVENUE
Walsall Council,http://opendatacommunities.org/id/metropolitan-district-council/walsall ,WC137-92,30.04.2022,ADULT SOCIAL CARE,5 CARE SERVICES LTD,26/04/2022,296.25,6541-Domiciliary Care,THIRD PARTY PAYMENTS,PRIVATE CONTRACTOR,REVENUE
Walsall Council,http://opendatacommunities.org/id/metropolitan-district-council/walsall ,WC137-93,30.04.2022,ADULT SOCIAL CARE,5 CARE SERVICES LTD,26/04/2022,442.40,6541-Domiciliary Care,THIRD PARTY PAYMENTS,PRIVATE CONTRACTOR,REVENUE
Walsall Council,http://opendatacommunities.org/id/metropolitan-district-council/walsall ,WC137-94,30.04.2022,ADULT SOCIAL CARE,5 CARE SERVICES LTD,26/04/2022,"1,248.20",6541-Domiciliary Care,THIRD PARTY PAYMENTS,PRIVATE CONTRACTOR,REVENUE
Walsall Council,http://opendatacommunities.org/id/metropolitan-district-council/walsall ,WC137-95,30.04.2022,ADULT SOCIAL CARE,5 CARE SERVICES LTD,26/04/2022,316.00,6541-Domiciliary Care,THIRD PARTY PAYMENTS,PRIVATE CONTRACTOR,REVENUE
Walsall Council,http://opendatacommunities.org/id/metropolitan-district-council/walsall ,WC137-96,30.04.2022,ADULT SOCIAL CARE,5 CARE SERVICES LTD,26/04/2022,331.80,6541-Domiciliary Care,THIRD PARTY PAYMENTS,PRIVATE CONTRACTOR,REVENUE
Walsall Council,http://opendatacommunities.org/id/metropolitan-district-council/walsall ,WC137-97,30.04.2022,ADULT SOCIAL CARE,5 CARE SERVICES LTD,26/04/2022,497.70,6541-Domiciliary Care,THIRD PARTY PAYMENTS,PRIVATE CONTRACTOR,REVENUE
Walsall Council,http://opendatacommunities.org/id/metropolitan-district-council/walsall ,WC137-98,30.04.2022,ADULT SOCIAL CARE,5 CARE SERVICES LTD,26/04/2022,734.70,6541-Domiciliary Care,THIRD PARTY PAYMENTS,PRIVATE CONTRACTOR,REVENUE
Walsall Council,http://opendatacommunities.org/id/metropolitan-district-council/walsall ,WC137-99,30.04.2022,ADULT SOCIAL CARE,5 CARE SERVICES LTD,26/04/2022,252.80,6541-Domiciliary Care,THIRD PARTY PAYMENTS,PRIVATE CONTRACTOR,REVENUE
Walsall Council,http://opendatacommunities.org/id/metropolitan-district-council/walsall ,WC137-100,30.04.2022,ADULT SOCIAL CARE,5 CARE SERVICES LTD,26/04/2022,474.00,6541-Domiciliary Care,THIRD PARTY PAYMENTS,PRIVATE CONTRACTOR,REVENUE
Walsall Council,http://opendatacommunities.org/id/metropolitan-district-council/walsall ,WC137-101,30.04.2022,ADULT SOCIAL CARE,5 CARE SERVICES LTD,26/04/2022,497.70,6541-Domiciliary Care,THIRD PARTY PAYMENTS,PRIVATE CONTRACTOR,REVENUE
Walsall Council,http://opendatacommunities.org/id/metropolitan-district-council/walsall ,WC137-102,30.04.2022,ADULT SOCIAL CARE,5 CARE SERVICES LTD,26/04/2022,884.80,6541-Domiciliary Care,THIRD PARTY PAYMENTS,PRIVATE CONTRACTOR,REVENUE
Walsall Council,http://opendatacommunities.org/id/metropolitan-district-council/walsall ,WC137-103,30.04.2022,"ECONOMY, ENVIRONMENT & COMMUNITIES",5 CARE SERVICES LTD,12/04/2022,836.00,6313-Grants to Other Orgs,SUPPLIES & SERVICES,GRANTS (EXP) & SUBSCRIPTIONS,REVENUE
Walsall Council,http://opendatacommunities.org/id/metropolitan-district-council/walsall ,WC137-104,30.04.2022,"ECONOMY, ENVIRONMENT & COMMUNITIES",5 CARE SERVICES LTD,12/04/2022,932.98,6313-Grants to Other Orgs,SUPPLIES & SERVICES,GRANTS (EXP) & SUBSCRIPTIONS,REVENUE
Walsall Council,http://opendatacommunities.org/id/metropolitan-district-council/walsall ,WC137-105,30.04.2022,"ECONOMY, ENVIRONMENT & COMMUNITIES",5 CARE SERVICES LTD,22/04/2022,355.52,6313-Grants to Other Orgs,SUPPLIES & SERVICES,GRANTS (EXP) & SUBSCRIPTIONS,REVENUE
Walsall Council,http://opendatacommunities.org/id/metropolitan-district-council/walsall ,WC137-106,30.04.2022,"ECONOMY, ENVIRONMENT & COMMUNITIES",5 CARE SERVICES LTD,12/04/2022,836.00,6313-Grants to Other Orgs,SUPPLIES & SERVICES,GRANTS (EXP) & SUBSCRIPTIONS,REVENUE
Walsall Council,http://opendatacommunities.org/id/metropolitan-district-council/walsall ,WC137-107,30.04.2022,"ECONOMY, ENVIRONMENT & COMMUNITIES",5 CARE SERVICES LTD,22/04/2022,789.04,6313-Grants to Other Orgs,SUPPLIES & SERVICES,GRANTS (EXP) & SUBSCRIPTIONS,REVENUE
Walsall Council,http://opendatacommunities.org/id/metropolitan-district-council/walsall ,WC137-108,30.04.2022,"ECONOMY, ENVIRONMENT & COMMUNITIES",5 CARE SERVICES LTD,27/04/2022,285.64,6313-Grants to Other Orgs,SUPPLIES & SERVICES,GRANTS (EXP) & SUBSCRIPTIONS,REVENUE
Walsall Council,http://opendatacommunities.org/id/metropolitan-district-council/walsall ,WC137-109,30.04.2022,CHILDRENS,5 CARE SERVICES LTD,14/04/2022,255.20,6220-Professional Fees & Services,SUPPLIES & SERVICES,SERVICES,REVENUE
Walsall Council,http://opendatacommunities.org/id/metropolitan-district-council/walsall ,WC137-110,30.04.2022,CHILDRENS,5 CARE SERVICES LTD,26/04/2022,255.20,6220-Professional Fees & Services,SUPPLIES & SERVICES,SERVICES,REVENUE
Walsall Council,http://opendatacommunities.org/id/metropolitan-district-council/walsall ,WC137-111,30.04.2022,"ECONOMY, ENVIRONMENT & COMMUNITIES",58TH WALSALL (AL HUDA) SCOUT GROUP,20/04/2022,"1,215.20",6430-Professional Services-Priv Contractor & Other Agencies,THIRD PARTY PAYMENTS,PRIVATE CONTRACTOR,REVENUE
Walsall Council,http://opendatacommunities.org/id/metropolitan-district-council/walsall ,WC137-112,30.04.2022,RESOURCES AND TRANSFORMATION,A D T FIRE AND SECURITY PLC,27/04/2022,251.42,6310-Repair & Maintenance of Furniture & Equipment,SUPPLIES & SERVICES,EQUIPMENT FURNITURE & MATERIALS,REVENUE
Walsall Council,http://opendatacommunities.org/id/metropolitan-district-council/walsall ,WC137-113,30.04.2022,RESOURCES AND TRANSFORMATION,A D T FIRE AND SECURITY PLC,27/04/2022,"1,338.43",6310-Repair & Maintenance of Furniture & Equipment,SUPPLIES & SERVICES,EQUIPMENT FURNITURE & MATERIALS,REVENUE
Walsall Council,http://opendatacommunities.org/id/metropolitan-district-council/walsall ,WC137-114,30.04.2022,"ECONOMY, ENVIRONMENT & COMMUNITIES",A F BLAKEMORE & SON LTD,21/04/2022,563.11,6413-Food & Drink Supplies,SUPPLIES & SERVICES,CATERING,REVENUE
Walsall Council,http://opendatacommunities.org/id/metropolitan-district-council/walsall ,WC137-115,30.04.2022,ADULT SOCIAL CARE,A F BLAKEMORE & SON LTD,28/04/2022,290.22,6543-Food & Drink Supplies,SUPPLIES & SERVICES,CATERING,REVENUE
Walsall Council,http://opendatacommunities.org/id/metropolitan-district-council/walsall ,WC137-116,30.04.2022,"ECONOMY, ENVIRONMENT & COMMUNITIES",A F BLAKEMORE & SON LTD,27/04/2022,302.10,6413-Catering & Refreshments,SUPPLIES & SERVICES,CATERING,REVENUE
Walsall Council,http://opendatacommunities.org/id/metropolitan-district-council/walsall ,WC137-117,30.04.2022,"ECONOMY, ENVIRONMENT & COMMUNITIES",A F BLAKEMORE & SON LTD,27/04/2022,"1,097.78",6413-Catering & Refreshments,SUPPLIES & SERVICES,CATERING,REVENUE
Walsall Council,http://opendatacommunities.org/id/metropolitan-district-council/walsall ,WC137-118,30.04.2022,CHILDRENS,A1 WALSALL RADIO CARS,26/04/2022,"1,320.00",6241-Hire of Vehicle with Driver,TRANSPORT,DIRECT TRANSPORT COSTS,REVENUE
Walsall Council,http://opendatacommunities.org/id/metropolitan-district-council/walsall ,WC137-119,30.04.2022,CHILDRENS,A1 WALSALL RADIO CARS,26/04/2022,404.00,6241-Hire of Vehicle with Driver,TRANSPORT,DIRECT TRANSPORT COSTS,REVENUE
Walsall Council,http://opendatacommunities.org/id/metropolitan-district-council/walsall ,WC137-120,30.04.2022,CHILDRENS,A1 WALSALL RADIO CARS,26/04/2022,"1,120.00",6241-Hire of Vehicle with Driver,TRANSPORT,DIRECT TRANSPORT COSTS,REVENUE
Walsall Council,http://opendatacommunities.org/id/metropolitan-district-council/walsall ,WC137-121,30.04.2022,CHILDRENS,A1 WALSALL RADIO CARS,26/04/2022,770.00,6241-Hire of Vehicle with Driver,TRANSPORT,DIRECT TRANSPORT COSTS,REVENUE
Walsall Council,http://opendatacommunities.org/id/metropolitan-district-council/walsall ,WC137-122,30.04.2022,"ECONOMY, ENVIRONMENT & COMMUNITIES",AAINA COMMUNITY HUB,26/04/2022,"1,375.00",6430-Grants to Other Orgs,SUPPLIES & SERVICES,GRANTS (EXP) & SUBSCRIPTIONS,REVENUE
Walsall Council,http://opendatacommunities.org/id/metropolitan-district-council/walsall ,WC137-123,30.04.2022,"ECONOMY, ENVIRONMENT & COMMUNITIES",AAINA COMMUNITY HUB,19/04/2022,"1,250.00",6430-Grants to Other Orgs,SUPPLIES & SERVICES,GRANTS (EXP) & SUBSCRIPTIONS,REVENUE
Walsall Council,http://opendatacommunities.org/id/metropolitan-district-council/walsall ,WC137-124,30.04.2022,"ECONOMY, ENVIRONMENT & COMMUNITIES",AAINA COMMUNITY HUB,06/04/2022,"1,373.08",6430-Professional Services-Priv Contractor & Other Agencies,THIRD PARTY PAYMENTS,PRIVATE CONTRACTOR,REVENUE
Walsall Council,http://opendatacommunities.org/id/metropolitan-district-council/walsall ,WC137-125,30.04.2022,"ECONOMY, ENVIRONMENT & COMMUNITIES",AAINA COMMUNITY HUB,25/04/2022,"1,807.44",6430-Professional Services-Priv Contractor & Other Agencies,THIRD PARTY PAYMENTS,PRIVATE CONTRACTOR,REVENUE
Walsall Council,http://opendatacommunities.org/id/metropolitan-district-council/walsall ,WC137-126,30.04.2022,"ECONOMY, ENVIRONMENT & COMMUNITIES",AAINA COMMUNITY HUB,11/04/2022,664.00,6313-Grants to Other Orgs,SUPPLIES & SERVICES,GRANTS (EXP) & SUBSCRIPTIONS,REVENUE
Walsall Council,http://opendatacommunities.org/id/metropolitan-district-council/walsall ,WC137-127,30.04.2022,"ECONOMY, ENVIRONMENT & COMMUNITIES",AAINA COMMUNITY HUB,11/04/2022,722.75,6313-Grants to Other Orgs,SUPPLIES & SERVICES,GRANTS (EXP) & SUBSCRIPTIONS,REVENUE
Walsall Council,http://opendatacommunities.org/id/metropolitan-district-council/walsall ,WC137-128,30.04.2022,"ECONOMY, ENVIRONMENT & COMMUNITIES",AAINA COMMUNITY HUB,12/04/2022,"1,063.56",6313-Grants to Other Orgs,SUPPLIES & SERVICES,GRANTS (EXP) & SUBSCRIPTIONS,REVENUE
Walsall Council,http://opendatacommunities.org/id/metropolitan-district-council/walsall ,WC137-129,30.04.2022,CHILDRENS,ABACUS FOSTERING LTD,25/04/2022,"1,257.14",6223-Independent Foster Care-Oth Agency Provision,THIRD PARTY PAYMENTS,PRIVATE CONTRACTOR,REVENUE
Walsall Council,http://opendatacommunities.org/id/metropolitan-district-council/walsall ,WC137-130,30.04.2022,ADULT SOCIAL CARE,ABBEY COURT NURSING & RESIDEN,11/04/2022,"2,331.08",6541-Residential EMI,THIRD PARTY PAYMENTS,PRIVATE CONTRACTOR,REVENUE
Walsall Council,http://opendatacommunities.org/id/metropolitan-district-council/walsall ,WC137-131,30.04.2022,ADULT SOCIAL CARE,ABBEY COURT NURSING & RESIDEN,11/04/2022,"2,571.08",6541-Residential EMI,THIRD PARTY PAYMENTS,PRIVATE CONTRACTOR,REVENUE
Walsall Council,http://opendatacommunities.org/id/metropolitan-district-council/walsall ,WC137-132,30.04.2022,ADULT SOCIAL CARE,ABBEY COURT NURSING & RESIDEN,11/04/2022,"2,064.44",6541-Residential,THIRD PARTY PAYMENTS,PRIVATE CONTRACTOR,REVENUE
Walsall Council,http://opendatacommunities.org/id/metropolitan-district-council/walsall ,WC137-133,30.04.2022,ADULT SOCIAL CARE,ABBEY HEALTHCARE HOMES LTD,11/04/2022,"3,133.76",6541-Residential,THIRD PARTY PAYMENTS,PRIVATE CONTRACTOR,REVENUE
Walsall Council,http://opendatacommunities.org/id/metropolitan-district-council/walsall ,WC137-134,30.04.2022,ADULT SOCIAL CARE,ABBEY HEALTHCARE HOMES LTD,11/04/2022,"3,133.76",6541-Residential,THIRD PARTY PAYMENTS,PRIVATE CONTRACTOR,REVENUE
Walsall Council,http://opendatacommunities.org/id/metropolitan-district-council/walsall ,WC137-135,30.04.2022,ADULT SOCIAL CARE,ABBEY HEALTHCARE HOMES LTD,11/04/2022,"3,551.56",6541-Residential,THIRD PARTY PAYMENTS,PRIVATE CONTRACTOR,REVENUE
Walsall Council,http://opendatacommunities.org/id/metropolitan-district-council/walsall ,WC137-136,30.04.2022,ADULT SOCIAL CARE,ABBEY HEALTHCARE HOMES LTD,11/04/2022,"2,396.36",6541-Residential,THIRD PARTY PAYMENTS,PRIVATE CONTRACTOR,REVENUE
Walsall Council,http://opendatacommunities.org/id/metropolitan-district-council/walsall ,WC137-137,30.04.2022,CHILDRENS,ABC DAY NURSERY (WILLENHALL) LIMITED,12/04/2022,"14,347.13",1184-Other-Grants to Other Orgs,SUPPLIES & SERVICES,GRANTS (EXP) & SUBSCRIPTIONS,REVENUE
Walsall Council,http://opendatacommunities.org/id/metropolitan-district-council/walsall ,WC137-138,30.04.2022,CHILDRENS,ABC DAY NURSERY (WILLENHALL) LIMITED,01/04/2022,"1,944.00",1184-Other-Grants to Other Orgs,SUPPLIES & SERVICES,GRANTS (EXP) & SUBSCRIPTIONS,REVENUE
Walsall Council,http://opendatacommunities.org/id/metropolitan-district-council/walsall ,WC137-139,30.04.2022,CHILDRENS,ABC DAY NURSERY (WILLENHALL) LIMITED,12/04/2022,"23,072.40",1184-Other-Grants to Other Orgs,SUPPLIES & SERVICES,GRANTS (EXP) & SUBSCRIPTIONS,REVENUE
Walsall Council,http://opendatacommunities.org/id/metropolitan-district-council/walsall ,WC137-140,30.04.2022,CHILDRENS,ABC DAY NURSERY (WILLENHALL) LIMITED,01/04/2022,"3,420.00",1184-Other-Grants to Other Orgs,SUPPLIES & SERVICES,GRANTS (EXP) & SUBSCRIPTIONS,REVENUE
Walsall Council,http://opendatacommunities.org/id/metropolitan-district-council/walsall ,WC137-141,30.04.2022,RESOURCES AND TRANSFORMATION,ABEL ALARM CO LTD,26/04/2022,412.00,6310-Repair & Maintenance of Furniture & Equipment,SUPPLIES & SERVICES,EQUIPMENT FURNITURE & MATERIALS,REVENUE
Walsall Council,http://opendatacommunities.org/id/metropolitan-district-council/walsall ,WC137-142,30.04.2022,ADULT SOCIAL CARE,REDACTED,07/04/2022,"2,151.52",6541-Direct Payment,THIRD PARTY PAYMENTS,PRIVATE CONTRACTOR,REVENUE
Walsall Council,http://opendatacommunities.org/id/metropolitan-district-council/walsall ,WC137-143,30.04.2022,ADULT SOCIAL CARE,ABILITY HEALTHCARE LTD,07/04/2022,560.88,6541-Domiciliary Care,THIRD PARTY PAYMENTS,PRIVATE CONTRACTOR,REVENUE
Walsall Council,http://opendatacommunities.org/id/metropolitan-district-council/walsall ,WC137-144,30.04.2022,ADULT SOCIAL CARE,ABILITY HEALTHCARE LTD,07/04/2022,572.54,6541-Domiciliary Care,THIRD PARTY PAYMENTS,PRIVATE CONTRACTOR,REVENUE
Walsall Council,http://opendatacommunities.org/id/metropolitan-district-council/walsall ,WC137-145,30.04.2022,ADULT SOCIAL CARE,ABILITY HEALTHCARE LTD,07/04/2022,"1,962.66",6541-Domiciliary Care,THIRD PARTY PAYMENTS,PRIVATE CONTRACTOR,REVENUE
Walsall Council,http://opendatacommunities.org/id/metropolitan-district-council/walsall ,WC137-146,30.04.2022,ADULT SOCIAL CARE,ABILITY HEALTHCARE LTD,07/04/2022,"1,962.66",6541-Domiciliary Care,THIRD PARTY PAYMENTS,PRIVATE CONTRACTOR,REVENUE
Walsall Council,http://opendatacommunities.org/id/metropolitan-district-council/walsall ,WC137-147,30.04.2022,ADULT SOCIAL CARE,ABILITY HEALTHCARE LTD,07/04/2022,"1,744.96",6541-Domiciliary Care,THIRD PARTY PAYMENTS,PRIVATE CONTRACTOR,REVENUE
Walsall Council,http://opendatacommunities.org/id/metropolitan-district-council/walsall ,WC137-148,30.04.2022,ADULT SOCIAL CARE,ABILITY HEALTHCARE LTD,07/04/2022,"1,121.76",6541-Domiciliary Care,THIRD PARTY PAYMENTS,PRIVATE CONTRACTOR,REVENUE
Walsall Council,http://opendatacommunities.org/id/metropolitan-district-council/walsall ,WC137-149,30.04.2022,ADULT SOCIAL CARE,ABILITY HEALTHCARE LTD,07/04/2022,"1,744.96",6541-Domiciliary Care,THIRD PARTY PAYMENTS,PRIVATE CONTRACTOR,REVENUE
Walsall Council,http://opendatacommunities.org/id/metropolitan-district-council/walsall ,WC137-150,30.04.2022,ADULT SOCIAL CARE,ABILITY HEALTHCARE LTD,07/04/2022,817.95,6541-Domiciliary Care,THIRD PARTY PAYMENTS,PRIVATE CONTRACTOR,REVENUE
Walsall Council,http://opendatacommunities.org/id/metropolitan-district-council/walsall ,WC137-151,30.04.2022,ADULT SOCIAL CARE,ABILITY HEALTHCARE LTD,07/04/2022,"2,196.20",6541-Domiciliary Care,THIRD PARTY PAYMENTS,PRIVATE CONTRACTOR,REVENUE
Walsall Council,http://opendatacommunities.org/id/metropolitan-district-council/walsall ,WC137-152,30.04.2022,ADULT SOCIAL CARE,ABILITY HEALTHCARE LTD,07/04/2022,879.92,6541-Domiciliary Care,THIRD PARTY PAYMENTS,PRIVATE CONTRACTOR,REVENUE
Walsall Council,http://opendatacommunities.org/id/metropolitan-district-council/walsall ,WC137-153,30.04.2022,ADULT SOCIAL CARE,ABILITY HEALTHCARE LTD,07/04/2022,326.97,6541-Domiciliary Care,THIRD PARTY PAYMENTS,PRIVATE CONTRACTOR,REVENUE
Walsall Council,http://opendatacommunities.org/id/metropolitan-district-council/walsall ,WC137-154,30.04.2022,ADULT SOCIAL CARE,ABILITY HEALTHCARE LTD,07/04/2022,"1,121.76",6541-Domiciliary Care,THIRD PARTY PAYMENTS,PRIVATE CONTRACTOR,REVENUE
Walsall Council,http://opendatacommunities.org/id/metropolitan-district-council/walsall ,WC137-155,30.04.2022,ADULT SOCIAL CARE,ABILITY HEALTHCARE LTD,07/04/2022,581.56,6541-Domiciliary Care,THIRD PARTY PAYMENTS,PRIVATE CONTRACTOR,REVENUE
Walsall Council,http://opendatacommunities.org/id/metropolitan-district-council/walsall ,WC137-156,30.04.2022,ADULT SOCIAL CARE,ABILITY HEALTHCARE LTD,07/04/2022,363.44,6541-Domiciliary Care,THIRD PARTY PAYMENTS,PRIVATE CONTRACTOR,REVENUE
Walsall Council,http://opendatacommunities.org/id/metropolitan-district-council/walsall ,WC137-157,30.04.2022,ADULT SOCIAL CARE,ABILITY HEALTHCARE LTD,07/04/2022,"1,027.88",6541-Domiciliary Care,THIRD PARTY PAYMENTS,PRIVATE CONTRACTOR,REVENUE
Walsall Council,http://opendatacommunities.org/id/metropolitan-district-council/walsall ,WC137-158,30.04.2022,ADULT SOCIAL CARE,ABILITY HEALTHCARE LTD,07/04/2022,"1,137.10",6541-Domiciliary Care,THIRD PARTY PAYMENTS,PRIVATE CONTRACTOR,REVENUE
Walsall Council,http://opendatacommunities.org/id/metropolitan-district-council/walsall ,WC137-159,30.04.2022,ADULT SOCIAL CARE,ABILITY HEALTHCARE LTD,07/04/2022,"1,017.80",6541-Domiciliary Care,THIRD PARTY PAYMENTS,PRIVATE CONTRACTOR,REVENUE
Walsall Council,http://opendatacommunities.org/id/metropolitan-district-council/walsall ,WC137-160,30.04.2022,ADULT SOCIAL CARE,ABILITY HEALTHCARE LTD,07/04/2022,"2,335.76",6541-Domiciliary Care,THIRD PARTY PAYMENTS,PRIVATE CONTRACTOR,REVENUE
Walsall Council,http://opendatacommunities.org/id/metropolitan-district-council/walsall ,WC137-161,30.04.2022,ADULT SOCIAL CARE,ABILITY HEALTHCARE LTD,07/04/2022,977.44,6541-Domiciliary Care,THIRD PARTY PAYMENTS,PRIVATE CONTRACTOR,REVENUE
Walsall Council,http://opendatacommunities.org/id/metropolitan-district-council/walsall ,WC137-162,30.04.2022,ADULT SOCIAL CARE,ABILITY HEALTHCARE LTD,07/04/2022,"1,355.04",6541-Domiciliary Care,THIRD PARTY PAYMENTS,PRIVATE CONTRACTOR,REVENUE
Walsall Council,http://opendatacommunities.org/id/metropolitan-district-council/walsall ,WC137-163,30.04.2022,ADULT SOCIAL CARE,ABILITY HEALTHCARE LTD,14/04/2022,436.24,6541-Domiciliary Care,THIRD PARTY PAYMENTS,PRIVATE CONTRACTOR,REVENUE
Walsall Council,http://opendatacommunities.org/id/metropolitan-district-council/walsall ,WC137-164,30.04.2022,"ECONOMY, ENVIRONMENT & COMMUNITIES",ABLE INVESTIGATIONS & ENFORCEMENTS LTD,01/04/2022,320.00,6440-Professional Fees & Services,SUPPLIES & SERVICES,SERVICES,REVENUE
Walsall Council,http://opendatacommunities.org/id/metropolitan-district-council/walsall ,WC137-165,30.04.2022,"ECONOMY, ENVIRONMENT & COMMUNITIES",ABLE INVESTIGATIONS & ENFORCEMENTS LTD,01/04/2022,"2,495.00",6440-Professional Fees & Services,SUPPLIES & SERVICES,SERVICES,REVENUE
Walsall Council,http://opendatacommunities.org/id/metropolitan-district-council/walsall ,WC137-166,30.04.2022,"ECONOMY, ENVIRONMENT & COMMUNITIES",ABLE INVESTIGATIONS & ENFORCEMENTS LTD,01/04/2022,"1,930.00",6440-Professional Fees & Services,SUPPLIES & SERVICES,SERVICES,REVENUE
Walsall Council,http://opendatacommunities.org/id/metropolitan-district-council/walsall ,WC137-167,30.04.2022,"ECONOMY, ENVIRONMENT & COMMUNITIES",ABLE INVESTIGATIONS & ENFORCEMENTS LTD,21/04/2022,"1,725.00",6440-Professional Fees & Services,SUPPLIES & SERVICES,SERVICES,REVENUE
Walsall Council,http://opendatacommunities.org/id/metropolitan-district-council/walsall ,WC137-168,30.04.2022,CHILDRENS,ABLEWELL CARS,26/04/2022,900.00,6241-Hire of Vehicle with Driver,TRANSPORT,DIRECT TRANSPORT COSTS,REVENUE
Walsall Council,http://opendatacommunities.org/id/metropolitan-district-council/walsall ,WC137-169,30.04.2022,CHILDRENS,ABLEWELL CARS,26/04/2022,"1,323.60",6241-Hire of Vehicle with Driver,TRANSPORT,DIRECT TRANSPORT COSTS,REVENUE
Walsall Council,http://opendatacommunities.org/id/metropolitan-district-council/walsall ,WC137-170,30.04.2022,CHILDRENS,ABLEWELL CARS,26/04/2022,"1,976.00",6241-Hire of Vehicle with Driver,TRANSPORT,DIRECT TRANSPORT COSTS,REVENUE
Walsall Council,http://opendatacommunities.org/id/metropolitan-district-council/walsall ,WC137-171,30.04.2022,CHILDRENS,ABLEWELL CARS,26/04/2022,"1,664.00",6241-Hire of Vehicle with Driver,TRANSPORT,DIRECT TRANSPORT COSTS,REVENUE
Walsall Council,http://opendatacommunities.org/id/metropolitan-district-council/walsall ,WC137-172,30.04.2022,CHILDRENS,ABLEWELL CARS,26/04/2022,"2,920.00",6241-Hire of Vehicle with Driver,TRANSPORT,DIRECT TRANSPORT COSTS,REVENUE
Walsall Council,http://opendatacommunities.org/id/metropolitan-district-council/walsall ,WC137-173,30.04.2022,CHILDRENS,ABLEWELL CARS,26/04/2022,"1,144.80",6241-Hire of Vehicle with Driver,TRANSPORT,DIRECT TRANSPORT COSTS,REVENUE
Walsall Council,http://opendatacommunities.org/id/metropolitan-district-council/walsall ,WC137-174,30.04.2022,CHILDRENS,ABS TAXIS (ALDRIDGE),26/04/2022,"1,974.00",6241-Hire of Vehicle with Driver,TRANSPORT,DIRECT TRANSPORT COSTS,REVENUE
Walsall Council,http://opendatacommunities.org/id/metropolitan-district-council/walsall ,WC137-175,30.04.2022,CHILDRENS,ABS TAXIS (ALDRIDGE),26/04/2022,"1,632.60",6241-Hire of Vehicle with Driver,TRANSPORT,DIRECT TRANSPORT COSTS,REVENUE
Walsall Council,http://opendatacommunities.org/id/metropolitan-district-council/walsall ,WC137-176,30.04.2022,CHILDRENS,ABS TAXIS (ALDRIDGE),26/04/2022,"1,676.00",6241-Hire of Vehicle with Driver,TRANSPORT,DIRECT TRANSPORT COSTS,REVENUE
Walsall Council,http://opendatacommunities.org/id/metropolitan-district-council/walsall ,WC137-177,30.04.2022,CHILDRENS,ABU BAKR NURSERY,12/04/2022,"10,361.81",1184-Other-Grants to Other Orgs,SUPPLIES & SERVICES,GRANTS (EXP) & SUBSCRIPTIONS,REVENUE
Walsall Council,http://opendatacommunities.org/id/metropolitan-district-council/walsall ,WC137-178,30.04.2022,CHILDRENS,ABU BAKR NURSERY,01/04/2022,729.00,1184-Other-Grants to Other Orgs,SUPPLIES & SERVICES,GRANTS (EXP) & SUBSCRIPTIONS,REVENUE
Walsall Council,http://opendatacommunities.org/id/metropolitan-district-council/walsall ,WC137-179,30.04.2022,CHILDRENS,ABU BAKR NURSERY,12/04/2022,"40,716.00",1184-Other-Grants to Other Orgs,SUPPLIES & SERVICES,GRANTS (EXP) & SUBSCRIPTIONS,REVENUE
Walsall Council,http://opendatacommunities.org/id/metropolitan-district-council/walsall ,WC137-180,30.04.2022,CHILDRENS,ABU BAKR TRUST,26/04/2022,"-9,695.77",1220-Top Up Funding -Grants to Schools,SUPPLIES & SERVICES,GRANTS (EXP) & SUBSCRIPTIONS,REVENUE
Walsall Council,http://opendatacommunities.org/id/metropolitan-district-council/walsall ,WC137-181,30.04.2022,CHILDRENS,ABU BAKR TRUST,26/04/2022,"9,695.77",1220-Top Up Funding -Grants to Schools,SUPPLIES & SERVICES,GRANTS (EXP) & SUBSCRIPTIONS,REVENUE
Walsall Council,http://opendatacommunities.org/id/metropolitan-district-council/walsall ,WC137-182,30.04.2022,"ECONOMY, ENVIRONMENT & COMMUNITIES",AC OPTICS LTD,11/04/2022,710.64,6313-Grants to Other Orgs,SUPPLIES & SERVICES,GRANTS (EXP) & SUBSCRIPTIONS,REVENUE
Walsall Council,http://opendatacommunities.org/id/metropolitan-district-council/walsall ,WC137-183,30.04.2022,"ECONOMY, ENVIRONMENT & COMMUNITIES",AC OPTICS LTD,11/04/2022,710.64,6313-Grants to Other Orgs,SUPPLIES & SERVICES,GRANTS (EXP) & SUBSCRIPTIONS,REVENUE
Walsall Council,http://opendatacommunities.org/id/metropolitan-district-council/walsall ,WC137-184,30.04.2022,CHILDRENS,ACCALIA CARE SERVICES LTD,19/04/2022,"20,000.00",6223-External Residential Care-Oth Agency Provision,THIRD PARTY PAYMENTS,PRIVATE CONTRACTOR,REVENUE
Walsall Council,http://opendatacommunities.org/id/metropolitan-district-council/walsall ,WC137-185,30.04.2022,CHILDRENS,ACCESS UK LTD ,22/04/2022,-950.00,6240-Fees & Licences,SUPPLIES & SERVICES,SERVICES,REVENUE
Walsall Council,http://opendatacommunities.org/id/metropolitan-district-council/walsall ,WC137-186,30.04.2022,CHILDRENS,ACCESS UK LTD ,22/04/2022,"1,657.34",6240-Fees & Licences,SUPPLIES & SERVICES,SERVICES,REVENUE
Walsall Council,http://opendatacommunities.org/id/metropolitan-district-council/walsall ,WC137-187,30.04.2022,ADULT SOCIAL CARE,ACCESS UK LTD ,26/04/2022,"18,315.00",6551-Repair & Maintenance of Furniture & Equipment,SUPPLIES & SERVICES,EQUIPMENT FURNITURE & MATERIALS,REVENUE
Walsall Council,http://opendatacommunities.org/id/metropolitan-district-council/walsall ,WC137-188,30.04.2022,CHILDRENS,ACCOMPANIED CARE,01/04/2022,"3,276.76",6223-Accommodation and Related Costs-Assistance to S/S Clients,TRANSFER PAYMENTS,ADULT SOCIAL SERVICES CLIENT,REVENUE
Walsall Council,http://opendatacommunities.org/id/metropolitan-district-council/walsall ,WC137-189,30.04.2022,CHILDRENS,ACCOMPANIED CARE,27/04/2022,"3,602.47",6223-Accommodation and Related Costs-Assistance to S/S Clients,TRANSFER PAYMENTS,ADULT SOCIAL SERVICES CLIENT,REVENUE
Walsall Council,http://opendatacommunities.org/id/metropolitan-district-council/walsall ,WC137-190,30.04.2022,ADULT SOCIAL CARE,ACCOMPLISH GROUP LTD,11/04/2022,"7,881.48",6541-Residential,THIRD PARTY PAYMENTS,PRIVATE CONTRACTOR,REVENUE
Walsall Council,http://opendatacommunities.org/id/metropolitan-district-council/walsall ,WC137-191,30.04.2022,ADULT SOCIAL CARE,ACCORD - AGE MATTERS,07/04/2022,-406.86,6553-Direct Payments Support,TRANSFER PAYMENTS,ADULT SOCIAL SERVICES CLIENT,REVENUE
Walsall Council,http://opendatacommunities.org/id/metropolitan-district-council/walsall ,WC137-192,30.04.2022,ADULT SOCIAL CARE,ACCORD HOUSING ASSOCIATION LIMITED - HOBS MEADOW,11/04/2022,"4,706.24",6541-Residential,THIRD PARTY PAYMENTS,PRIVATE CONTRACTOR,REVENUE
Walsall Council,http://opendatacommunities.org/id/metropolitan-district-council/walsall ,WC137-193,30.04.2022,ADULT SOCIAL CARE,ACCORD HOUSING ASSOCIATION LIMITED - HOBS MEADOW,11/04/2022,"4,706.24",6541-Residential,THIRD PARTY PAYMENTS,PRIVATE CONTRACTOR,REVENUE
Walsall Council,http://opendatacommunities.org/id/metropolitan-district-council/walsall ,WC137-194,30.04.2022,ADULT SOCIAL CARE,ACCORD HOUSING ASSOCIATION LIMITED - HOBS MEADOW,11/04/2022,"4,706.24",6541-Residential,THIRD PARTY PAYMENTS,PRIVATE CONTRACTOR,REVENUE
Walsall Council,http://opendatacommunities.org/id/metropolitan-district-council/walsall ,WC137-195,30.04.2022,ADULT SOCIAL CARE,ACCORD HOUSING ASSOCIATION LIMITED - HOBS MEADOW,11/04/2022,"4,706.24",6541-Residential,THIRD PARTY PAYMENTS,PRIVATE CONTRACTOR,REVENUE
Walsall Council,http://opendatacommunities.org/id/metropolitan-district-council/walsall ,WC137-196,30.04.2022,"ECONOMY, ENVIRONMENT & COMMUNITIES",ACE ATV LTD,21/04/2022,"8,465.00",6410-Repair & Maintenance of Furniture & Equipment,SUPPLIES & SERVICES,EQUIPMENT FURNITURE & MATERIALS,REVENUE
Walsall Council,http://opendatacommunities.org/id/metropolitan-district-council/walsall ,WC137-197,30.04.2022,CHILDRENS,ACE CARS & MINIBUSES LTD,26/04/2022,"2,140.00",6241-Hire of Vehicle with Driver,TRANSPORT,DIRECT TRANSPORT COSTS,REVENUE
Walsall Council,http://opendatacommunities.org/id/metropolitan-district-council/walsall ,WC137-198,30.04.2022,CHILDRENS,ACE CARS & MINIBUSES LTD,26/04/2022,"2,360.00",6241-Hire of Vehicle with Driver,TRANSPORT,DIRECT TRANSPORT COSTS,REVENUE
Walsall Council,http://opendatacommunities.org/id/metropolitan-district-council/walsall ,WC137-199,30.04.2022,CHILDRENS,ACE CARS & MINIBUSES LTD,26/04/2022,"2,360.00",6241-Hire of Vehicle with Driver,TRANSPORT,DIRECT TRANSPORT COSTS,REVENUE
Walsall Council,http://opendatacommunities.org/id/metropolitan-district-council/walsall ,WC137-200,30.04.2022,CHILDRENS,ACE CARS & MINIBUSES LTD,26/04/2022,"2,690.40",6241-Hire of Vehicle with Driver,TRANSPORT,DIRECT TRANSPORT COSTS,REVENUE
Walsall Council,http://opendatacommunities.org/id/metropolitan-district-council/walsall ,WC137-201,30.04.2022,CHILDRENS,ACE CARS & MINIBUSES LTD,26/04/2022,"2,501.60",6241-Hire of Vehicle with Driver,TRANSPORT,DIRECT TRANSPORT COSTS,REVENUE
Walsall Council,http://opendatacommunities.org/id/metropolitan-district-council/walsall ,WC137-202,30.04.2022,CHILDRENS,ACE CARS & MINIBUSES LTD,26/04/2022,"2,360.00",6241-Hire of Vehicle with Driver,TRANSPORT,DIRECT TRANSPORT COSTS,REVENUE
Walsall Council,http://opendatacommunities.org/id/metropolitan-district-council/walsall ,WC137-203,30.04.2022,CHILDRENS,ACE CARS & MINIBUSES LTD,26/04/2022,"2,280.00",6241-Hire of Vehicle with Driver,TRANSPORT,DIRECT TRANSPORT COSTS,REVENUE
Walsall Council,http://opendatacommunities.org/id/metropolitan-district-council/walsall ,WC137-204,30.04.2022,CHILDRENS,ACE CARS & MINIBUSES LTD,26/04/2022,"2,390.00",6241-Hire of Vehicle with Driver,TRANSPORT,DIRECT TRANSPORT COSTS,REVENUE
Walsall Council,http://opendatacommunities.org/id/metropolitan-district-council/walsall ,WC137-205,30.04.2022,CHILDRENS,ACE CARS & MINIBUSES LTD,26/04/2022,"2,140.00",6241-Hire of Vehicle with Driver,TRANSPORT,DIRECT TRANSPORT COSTS,REVENUE
Walsall Council,http://opendatacommunities.org/id/metropolitan-district-council/walsall ,WC137-206,30.04.2022,CHILDRENS,ACE CARS & MINIBUSES LTD,26/04/2022,"2,140.00",6241-Hire of Vehicle with Driver,TRANSPORT,DIRECT TRANSPORT COSTS,REVENUE
Walsall Council,http://opendatacommunities.org/id/metropolitan-district-council/walsall ,WC137-207,30.04.2022,CHILDRENS,ACE CARS & MINIBUSES LTD,26/04/2022,"3,176.00",6241-Hire of Vehicle with Driver,TRANSPORT,DIRECT TRANSPORT COSTS,REVENUE
Walsall Council,http://opendatacommunities.org/id/metropolitan-district-council/walsall ,WC137-208,30.04.2022,CHILDRENS,ACE CARS & MINIBUSES LTD,26/04/2022,"2,390.00",6241-Hire of Vehicle with Driver,TRANSPORT,DIRECT TRANSPORT COSTS,REVENUE
Walsall Council,http://opendatacommunities.org/id/metropolitan-district-council/walsall ,WC137-209,30.04.2022,CHILDRENS,ACE CARS & MINIBUSES LTD,26/04/2022,"2,390.00",6241-Hire of Vehicle with Driver,TRANSPORT,DIRECT TRANSPORT COSTS,REVENUE
Walsall Council,http://opendatacommunities.org/id/metropolitan-district-council/walsall ,WC137-210,30.04.2022,CHILDRENS,ACE CARS & MINIBUSES LTD,26/04/2022,"2,390.00",6241-Hire of Vehicle with Driver,TRANSPORT,DIRECT TRANSPORT COSTS,REVENUE
Walsall Council,http://opendatacommunities.org/id/metropolitan-district-council/walsall ,WC137-211,30.04.2022,CHILDRENS,ACE CARS & MINIBUSES LTD,26/04/2022,"2,722.00",6241-Hire of Vehicle with Driver,TRANSPORT,DIRECT TRANSPORT COSTS,REVENUE
Walsall Council,http://opendatacommunities.org/id/metropolitan-district-council/walsall ,WC137-212,30.04.2022,CHILDRENS,ACE CARS & MINIBUSES LTD,26/04/2022,"2,722.00",6241-Hire of Vehicle with Driver,TRANSPORT,DIRECT TRANSPORT COSTS,REVENUE
Walsall Council,http://opendatacommunities.org/id/metropolitan-district-council/walsall ,WC137-213,30.04.2022,CHILDRENS,ACE CARS & MINIBUSES LTD,26/04/2022,"3,360.00",6241-Hire of Vehicle with Driver,TRANSPORT,DIRECT TRANSPORT COSTS,REVENUE
Walsall Council,http://opendatacommunities.org/id/metropolitan-district-council/walsall ,WC137-214,30.04.2022,CHILDRENS,ACE CARS & MINIBUSES LTD,26/04/2022,"2,722.00",6241-Hire of Vehicle with Driver,TRANSPORT,DIRECT TRANSPORT COSTS,REVENUE
Walsall Council,http://opendatacommunities.org/id/metropolitan-district-council/walsall ,WC137-215,30.04.2022,CHILDRENS,ACE CARS & MINIBUSES LTD,26/04/2022,"2,722.00",6241-Hire of Vehicle with Driver,TRANSPORT,DIRECT TRANSPORT COSTS,REVENUE
Walsall Council,http://opendatacommunities.org/id/metropolitan-district-council/walsall ,WC137-216,30.04.2022,CHILDRENS,ACE CARS & MINIBUSES LTD,26/04/2022,"2,722.00",6241-Hire of Vehicle with Driver,TRANSPORT,DIRECT TRANSPORT COSTS,REVENUE
Walsall Council,http://opendatacommunities.org/id/metropolitan-district-council/walsall ,WC137-217,30.04.2022,CHILDRENS,ACE CARS & MINIBUSES LTD,26/04/2022,"2,140.00",6241-Hire of Vehicle with Driver,TRANSPORT,DIRECT TRANSPORT COSTS,REVENUE
Walsall Council,http://opendatacommunities.org/id/metropolitan-district-council/walsall ,WC137-218,30.04.2022,CHILDRENS,ACE CARS & MINIBUSES LTD,26/04/2022,"2,140.00",6241-Hire of Vehicle with Driver,TRANSPORT,DIRECT TRANSPORT COSTS,REVENUE
Walsall Council,http://opendatacommunities.org/id/metropolitan-district-council/walsall ,WC137-219,30.04.2022,CHILDRENS,ACE CARS & MINIBUSES LTD,26/04/2022,"2,280.00",6241-Hire of Vehicle with Driver,TRANSPORT,DIRECT TRANSPORT COSTS,REVENUE
Walsall Council,http://opendatacommunities.org/id/metropolitan-district-council/walsall ,WC137-220,30.04.2022,CHILDRENS,ACE CARS & MINIBUSES LTD,26/04/2022,"2,390.00",6241-Hire of Vehicle with Driver,TRANSPORT,DIRECT TRANSPORT COSTS,REVENUE
Walsall Council,http://opendatacommunities.org/id/metropolitan-district-council/walsall ,WC137-221,30.04.2022,CHILDRENS,ACE CARS & MINIBUSES LTD,26/04/2022,"2,280.00",6241-Hire of Vehicle with Driver,TRANSPORT,DIRECT TRANSPORT COSTS,REVENUE
Walsall Council,http://opendatacommunities.org/id/metropolitan-district-council/walsall ,WC137-222,30.04.2022,CHILDRENS,ACE CARS & MINIBUSES LTD,26/04/2022,"2,140.00",6241-Hire of Vehicle with Driver,TRANSPORT,DIRECT TRANSPORT COSTS,REVENUE
Walsall Council,http://opendatacommunities.org/id/metropolitan-district-council/walsall ,WC137-223,30.04.2022,CHILDRENS,ACE CARS & MINIBUSES LTD,26/04/2022,"2,140.00",6241-Hire of Vehicle with Driver,TRANSPORT,DIRECT TRANSPORT COSTS,REVENUE
Walsall Council,http://opendatacommunities.org/id/metropolitan-district-council/walsall ,WC137-224,30.04.2022,CHILDRENS,ACE CARS & MINIBUSES LTD,26/04/2022,"2,360.00",6241-Hire of Vehicle with Driver,TRANSPORT,DIRECT TRANSPORT COSTS,REVENUE
Walsall Council,http://opendatacommunities.org/id/metropolitan-district-council/walsall ,WC137-225,30.04.2022,CHILDRENS,ACE CARS & MINIBUSES LTD,26/04/2022,"2,390.00",6241-Hire of Vehicle with Driver,TRANSPORT,DIRECT TRANSPORT COSTS,REVENUE
Walsall Council,http://opendatacommunities.org/id/metropolitan-district-council/walsall ,WC137-226,30.04.2022,CHILDRENS,ACE CARS & MINIBUSES LTD,26/04/2022,"2,722.00",6241-Hire of Vehicle with Driver,TRANSPORT,DIRECT TRANSPORT COSTS,REVENUE
Walsall Council,http://opendatacommunities.org/id/metropolitan-district-council/walsall ,WC137-227,30.04.2022,CHILDRENS,ACE CARS & MINIBUSES LTD,26/04/2022,"2,722.00",6241-Hire of Vehicle with Driver,TRANSPORT,DIRECT TRANSPORT COSTS,REVENUE
Walsall Council,http://opendatacommunities.org/id/metropolitan-district-council/walsall ,WC137-228,30.04.2022,CHILDRENS,ACE CARS & MINIBUSES LTD,26/04/2022,"2,140.00",6241-Hire of Vehicle with Driver,TRANSPORT,DIRECT TRANSPORT COSTS,REVENUE
Walsall Council,http://opendatacommunities.org/id/metropolitan-district-council/walsall ,WC137-229,30.04.2022,CHILDRENS,ACE CARS & MINIBUSES LTD,26/04/2022,"4,248.00",6241-Hire of Vehicle with Driver,TRANSPORT,DIRECT TRANSPORT COSTS,REVENUE
Walsall Council,http://opendatacommunities.org/id/metropolitan-district-council/walsall ,WC137-230,30.04.2022,CHILDRENS,ACE CARS & MINIBUSES LTD,26/04/2022,"2,140.00",6241-Hire of Vehicle with Driver,TRANSPORT,DIRECT TRANSPORT COSTS,REVENUE
Walsall Council,http://opendatacommunities.org/id/metropolitan-district-council/walsall ,WC137-231,30.04.2022,CHILDRENS,ACE CARS & MINIBUSES LTD,26/04/2022,"2,722.00",6241-Hire of Vehicle with Driver,TRANSPORT,DIRECT TRANSPORT COSTS,REVENUE
Walsall Council,http://opendatacommunities.org/id/metropolitan-district-council/walsall ,WC137-232,30.04.2022,CHILDRENS,ACE CARS & MINIBUSES LTD,26/04/2022,"2,360.00",6241-Hire of Vehicle with Driver,TRANSPORT,DIRECT TRANSPORT COSTS,REVENUE
Walsall Council,http://opendatacommunities.org/id/metropolitan-district-council/walsall ,WC137-233,30.04.2022,CHILDRENS,ACE CARS & MINIBUSES LTD,26/04/2022,"2,280.00",6241-Hire of Vehicle with Driver,TRANSPORT,DIRECT TRANSPORT COSTS,REVENUE
Walsall Council,http://opendatacommunities.org/id/metropolitan-district-council/walsall ,WC137-234,30.04.2022,ADULT SOCIAL CARE,ACEPAY LTD (COTTAGE NUR HOME),11/04/2022,"2,419.96",6541-Nursing,THIRD PARTY PAYMENTS,PRIVATE CONTRACTOR,REVENUE
Walsall Council,http://opendatacommunities.org/id/metropolitan-district-council/walsall ,WC137-235,30.04.2022,ADULT SOCIAL CARE,ACEPAY LTD (COTTAGE NUR HOME),11/04/2022,"2,419.96",6541-Nursing,THIRD PARTY PAYMENTS,PRIVATE CONTRACTOR,REVENUE
Walsall Council,http://opendatacommunities.org/id/metropolitan-district-council/walsall ,WC137-236,30.04.2022,ADULT SOCIAL CARE,ACEPAY LTD (COTTAGE NUR HOME),11/04/2022,"2,419.96",6541-Nursing,THIRD PARTY PAYMENTS,PRIVATE CONTRACTOR,REVENUE
Walsall Council,http://opendatacommunities.org/id/metropolitan-district-council/walsall ,WC137-237,30.04.2022,ADULT SOCIAL CARE,ACEPAY LTD (COTTAGE NUR HOME),11/04/2022,"2,419.96",6541-Nursing,THIRD PARTY PAYMENTS,PRIVATE CONTRACTOR,REVENUE
Walsall Council,http://opendatacommunities.org/id/metropolitan-district-council/walsall ,WC137-238,30.04.2022,ADULT SOCIAL CARE,ACEPAY LTD (COTTAGE NUR HOME),11/04/2022,"2,331.08",6541-Residential EMI,THIRD PARTY PAYMENTS,PRIVATE CONTRACTOR,REVENUE
Walsall Council,http://opendatacommunities.org/id/metropolitan-district-council/walsall ,WC137-239,30.04.2022,ADULT SOCIAL CARE,ACEPAY LTD (COTTAGE NUR HOME),11/04/2022,"1,382.83",6541-Nursing,THIRD PARTY PAYMENTS,PRIVATE CONTRACTOR,REVENUE
Walsall Council,http://opendatacommunities.org/id/metropolitan-district-council/walsall ,WC137-240,30.04.2022,ADULT SOCIAL CARE,ACEPAY LTD (COTTAGE NUR HOME),11/04/2022,"2,419.96",6541-Nursing,THIRD PARTY PAYMENTS,PRIVATE CONTRACTOR,REVENUE
Walsall Council,http://opendatacommunities.org/id/metropolitan-district-council/walsall ,WC137-241,30.04.2022,ADULT SOCIAL CARE,ACEPAY LTD (COTTAGE NUR HOME),11/04/2022,"2,419.96",6541-Nursing,THIRD PARTY PAYMENTS,PRIVATE CONTRACTOR,REVENUE
Walsall Council,http://opendatacommunities.org/id/metropolitan-district-council/walsall ,WC137-242,30.04.2022,ADULT SOCIAL CARE,ACEPAY LTD (COTTAGE NUR HOME),11/04/2022,"2,619.96",6541-Nursing,THIRD PARTY PAYMENTS,PRIVATE CONTRACTOR,REVENUE
Walsall Council,http://opendatacommunities.org/id/metropolitan-district-council/walsall ,WC137-243,30.04.2022,ADULT SOCIAL CARE,ACEPAY LTD (COTTAGE NUR HOME),11/04/2022,"2,722.96",6541-Nursing EMI,THIRD PARTY PAYMENTS,PRIVATE CONTRACTOR,REVENUE
Walsall Council,http://opendatacommunities.org/id/metropolitan-district-council/walsall ,WC137-244,30.04.2022,ADULT SOCIAL CARE,ACEPAY LTD (COTTAGE NUR HOME),11/04/2022,"2,064.44",6541-Residential & Nursing Care Placements,THIRD PARTY PAYMENTS,PRIVATE CONTRACTOR,REVENUE
Walsall Council,http://opendatacommunities.org/id/metropolitan-district-council/walsall ,WC137-245,30.04.2022,ADULT SOCIAL CARE,ACEPAY LTD (COTTAGE NUR HOME),11/04/2022,"2,419.96",6541-Nursing,THIRD PARTY PAYMENTS,PRIVATE CONTRACTOR,REVENUE
Walsall Council,http://opendatacommunities.org/id/metropolitan-district-council/walsall ,WC137-246,30.04.2022,ADULT SOCIAL CARE,ACEPAY LTD (COTTAGE NUR HOME),11/04/2022,"2,331.08",6541-Residential EMI,THIRD PARTY PAYMENTS,PRIVATE CONTRACTOR,REVENUE
Walsall Council,http://opendatacommunities.org/id/metropolitan-district-council/walsall ,WC137-247,30.04.2022,ADULT SOCIAL CARE,ACEPAY LTD (COTTAGE NUR HOME),11/04/2022,"2,722.96",6541-Nursing EMI,THIRD PARTY PAYMENTS,PRIVATE CONTRACTOR,REVENUE
Walsall Council,http://opendatacommunities.org/id/metropolitan-district-council/walsall ,WC137-248,30.04.2022,ADULT SOCIAL CARE,ACEPAY LTD (COTTAGE NUR HOME),11/04/2022,"2,722.96",6541-Nursing EMI,THIRD PARTY PAYMENTS,PRIVATE CONTRACTOR,REVENUE
Walsall Council,http://opendatacommunities.org/id/metropolitan-district-council/walsall ,WC137-249,30.04.2022,ADULT SOCIAL CARE,ACEPAY LTD (COTTAGE NUR HOME),11/04/2022,"4,407.78",6541-Nursing,THIRD PARTY PAYMENTS,PRIVATE CONTRACTOR,REVENUE
Walsall Council,http://opendatacommunities.org/id/metropolitan-district-council/walsall ,WC137-250,30.04.2022,CHILDRENS,ACIRE CARE LTD,13/04/2022,"8,233.60",6223-Accommodation and Related Costs-Assistance to S/S Clients,TRANSFER PAYMENTS,ADULT SOCIAL SERVICES CLIENT,REVENUE
Walsall Council,http://opendatacommunities.org/id/metropolitan-district-council/walsall ,WC137-251,30.04.2022,CHILDRENS,ACORN CARE & EDUCATION LTD (SALES),19/04/2022,"17,803.34",1220-Top Up Funding -Grants to Schools,SUPPLIES & SERVICES,GRANTS (EXP) & SUBSCRIPTIONS,REVENUE
Walsall Council,http://opendatacommunities.org/id/metropolitan-district-council/walsall ,WC137-252,30.04.2022,CHILDRENS,ACORN CARE & EDUCATION LTD (SALES),19/04/2022,"14,000.00",6223-External Residential Care-Oth Agency Provision,THIRD PARTY PAYMENTS,PRIVATE CONTRACTOR,REVENUE
Walsall Council,http://opendatacommunities.org/id/metropolitan-district-council/walsall ,WC137-253,30.04.2022,CHILDRENS,ACORN CARE & EDUCATION LTD (SALES),06/04/2022,"5,864.75",1220-Top Up Funding -Grants to Schools,SUPPLIES & SERVICES,GRANTS (EXP) & SUBSCRIPTIONS,REVENUE
Walsall Council,http://opendatacommunities.org/id/metropolitan-district-council/walsall ,WC137-254,30.04.2022,CHILDRENS,ACORN CARE & EDUCATION LTD (SALES),06/04/2022,"15,554.33",1220-Top Up Funding -Grants to Schools,SUPPLIES & SERVICES,GRANTS (EXP) & SUBSCRIPTIONS,REVENUE
Walsall Council,http://opendatacommunities.org/id/metropolitan-district-council/walsall ,WC137-255,30.04.2022,CHILDRENS,ACORN CARE & EDUCATION LTD (SALES),19/04/2022,"9,036.50",1220-Top Up Funding -Grants to Schools,SUPPLIES & SERVICES,GRANTS (EXP) & SUBSCRIPTIONS,REVENUE
Walsall Council,http://opendatacommunities.org/id/metropolitan-district-council/walsall ,WC137-256,30.04.2022,CHILDRENS,ACORN CARE & EDUCATION LTD (SALES),01/04/2022,"6,306.18",1220-Professional Fees & Services,SUPPLIES & SERVICES,SERVICES,REVENUE
Walsall Council,http://opendatacommunities.org/id/metropolitan-district-council/walsall ,WC137-257,30.04.2022,CHILDRENS,ACORN CARE & EDUCATION LTD (SALES),12/04/2022,"14,053.33",1220-Professional Fees & Services,SUPPLIES & SERVICES,SERVICES,REVENUE
Walsall Council,http://opendatacommunities.org/id/metropolitan-district-council/walsall ,WC137-258,30.04.2022,CHILDRENS,ACORN CARE & EDUCATION LTD (SALES),12/04/2022,"17,302.00",1220-Professional Fees & Services,SUPPLIES & SERVICES,SERVICES,REVENUE
Walsall Council,http://opendatacommunities.org/id/metropolitan-district-council/walsall ,WC137-259,30.04.2022,CHILDRENS,ACORN CARE & EDUCATION LTD (SALES),06/04/2022,"9,411.33",1220-Professional Fees & Services,SUPPLIES & SERVICES,SERVICES,REVENUE
Walsall Council,http://opendatacommunities.org/id/metropolitan-district-council/walsall ,WC137-260,30.04.2022,CHILDRENS,ACORN CARE & EDUCATION LTD (SALES),12/04/2022,"20,460.00",1220-Professional Fees & Services,SUPPLIES & SERVICES,SERVICES,REVENUE
Walsall Council,http://opendatacommunities.org/id/metropolitan-district-council/walsall ,WC137-261,30.04.2022,CHILDRENS,ACORN CARE & EDUCATION LTD (SALES),11/04/2022,"6,333.33",1220-Professional Fees & Services,SUPPLIES & SERVICES,SERVICES,REVENUE
Walsall Council,http://opendatacommunities.org/id/metropolitan-district-council/walsall ,WC137-262,30.04.2022,CHILDRENS,ACORN CARE & EDUCATION LTD (SALES),11/04/2022,"16,166.67",1220-Professional Fees & Services,SUPPLIES & SERVICES,SERVICES,REVENUE
Walsall Council,http://opendatacommunities.org/id/metropolitan-district-council/walsall ,WC137-263,30.04.2022,CHILDRENS,ACORN CARE & EDUCATION LTD (SALES),26/04/2022,"5,626.50",1220-Top Up Funding -Grants to Schools,SUPPLIES & SERVICES,GRANTS (EXP) & SUBSCRIPTIONS,REVENUE
Walsall Council,http://opendatacommunities.org/id/metropolitan-district-council/walsall ,WC137-264,30.04.2022,CHILDRENS,ACORN CARE & EDUCATION LTD (SALES),26/04/2022,"20,460.00",1220-Top Up Funding -Grants to Schools,SUPPLIES & SERVICES,GRANTS (EXP) & SUBSCRIPTIONS,REVENUE
Walsall Council,http://opendatacommunities.org/id/metropolitan-district-council/walsall ,WC137-265,30.04.2022,CHILDRENS,ACORN FOSTERING SERVICES LTD,19/04/2022,"3,240.00",6223-Independent Foster Care-Oth Agency Provision,THIRD PARTY PAYMENTS,PRIVATE CONTRACTOR,REVENUE
Walsall Council,http://opendatacommunities.org/id/metropolitan-district-council/walsall ,WC137-266,30.04.2022,CHILDRENS,ACTI FIT (MIDLANDS) LIMITED,14/04/2022,"6,032.00",6213-Professional Fees & Services,SUPPLIES & SERVICES,SERVICES,REVENUE
Walsall Council,http://opendatacommunities.org/id/metropolitan-district-council/walsall ,WC137-267,30.04.2022,CHILDRENS,ACTIVE CARE SOLUTIONS LTD,19/04/2022,"2,928.65",6223-Independent Foster Care-Oth Agency Provision,THIRD PARTY PAYMENTS,PRIVATE CONTRACTOR,REVENUE
Walsall Council,http://opendatacommunities.org/id/metropolitan-district-council/walsall ,WC137-268,30.04.2022,CHILDRENS,ADCS (ASSOCIATION OF DIRECTORS OF CHILDRENS SERVICES),05/04/2022,"2,740.00",6213-Contribution to PCT,THIRD PARTY PAYMENTS,HEALTH AUTHORITIES,REVENUE
Walsall Council,http://opendatacommunities.org/id/metropolitan-district-council/walsall ,WC137-269,30.04.2022,CHILDRENS,REDACTED,06/04/2022,363.24,6223-Residents Orders,TRANSFER PAYMENTS,CHILDREN SOCIAL SERVICES CLIENT,REVENUE
Walsall Council,http://opendatacommunities.org/id/metropolitan-district-council/walsall ,WC137-270,30.04.2022,ADULT SOCIAL CARE,REDACTED,07/04/2022,"2,083.20",6541-Direct Payment,THIRD PARTY PAYMENTS,PRIVATE CONTRACTOR,REVENUE
Walsall Council,http://opendatacommunities.org/id/metropolitan-district-council/walsall ,WC137-271,30.04.2022,ADULT SOCIAL CARE,ADVANCE HEALTH CARE (UK) LTD,07/04/2022,908.60,6541-Domiciliary Care,THIRD PARTY PAYMENTS,PRIVATE CONTRACTOR,REVENUE
Walsall Council,http://opendatacommunities.org/id/metropolitan-district-council/walsall ,WC137-272,30.04.2022,ADULT SOCIAL CARE,ADVANCE HEALTH CARE (UK) LTD,07/04/2022,"2,107.84",6541-Domiciliary Care,THIRD PARTY PAYMENTS,PRIVATE CONTRACTOR,REVENUE
Walsall Council,http://opendatacommunities.org/id/metropolitan-district-council/walsall ,WC137-273,30.04.2022,ADULT SOCIAL CARE,ADVANCE HEALTH CARE (UK) LTD,07/04/2022,"2,549.13",6541-Domiciliary Care,THIRD PARTY PAYMENTS,PRIVATE CONTRACTOR,REVENUE
Walsall Council,http://opendatacommunities.org/id/metropolitan-district-council/walsall ,WC137-274,30.04.2022,ADULT SOCIAL CARE,ADVANCE HEALTH CARE (UK) LTD,07/04/2022,"1,028.20",6541-Domiciliary Care,THIRD PARTY PAYMENTS,PRIVATE CONTRACTOR,REVENUE
Walsall Council,http://opendatacommunities.org/id/metropolitan-district-council/walsall ,WC137-275,30.04.2022,ADULT SOCIAL CARE,ADVANCE HEALTH CARE (UK) LTD,07/04/2022,"1,012.56",6541-Domiciliary Care,THIRD PARTY PAYMENTS,PRIVATE CONTRACTOR,REVENUE
Walsall Council,http://opendatacommunities.org/id/metropolitan-district-council/walsall ,WC137-276,30.04.2022,ADULT SOCIAL CARE,ADVANCE HEALTH CARE (UK) LTD,07/04/2022,763.00,6541-Domiciliary Care,THIRD PARTY PAYMENTS,PRIVATE CONTRACTOR,REVENUE
Walsall Council,http://opendatacommunities.org/id/metropolitan-district-council/walsall ,WC137-277,30.04.2022,ADULT SOCIAL CARE,ADVANCE HEALTH CARE (UK) LTD,07/04/2022,799.40,6541-Domiciliary Care,THIRD PARTY PAYMENTS,PRIVATE CONTRACTOR,REVENUE
Walsall Council,http://opendatacommunities.org/id/metropolitan-district-council/walsall ,WC137-278,30.04.2022,ADULT SOCIAL CARE,ADVANCE HEALTH CARE (UK) LTD,07/04/2022,726.88,6541-Domiciliary Care,THIRD PARTY PAYMENTS,PRIVATE CONTRACTOR,REVENUE
Walsall Council,http://opendatacommunities.org/id/metropolitan-district-council/walsall ,WC137-279,30.04.2022,ADULT SOCIAL CARE,ADVANCE HEALTH CARE (UK) LTD,07/04/2022,"1,744.12",6541-Domiciliary Care,THIRD PARTY PAYMENTS,PRIVATE CONTRACTOR,REVENUE
Walsall Council,http://opendatacommunities.org/id/metropolitan-district-council/walsall ,WC137-280,30.04.2022,ADULT SOCIAL CARE,ADVANCE HEALTH CARE (UK) LTD,07/04/2022,825.28,6541-Domiciliary Care,THIRD PARTY PAYMENTS,PRIVATE CONTRACTOR,REVENUE
Walsall Council,http://opendatacommunities.org/id/metropolitan-district-council/walsall ,WC137-281,30.04.2022,ADULT SOCIAL CARE,ADVANCE HEALTH CARE (UK) LTD,07/04/2022,472.36,6541-Domiciliary Care,THIRD PARTY PAYMENTS,PRIVATE CONTRACTOR,REVENUE
Walsall Council,http://opendatacommunities.org/id/metropolitan-district-council/walsall ,WC137-282,30.04.2022,ADULT SOCIAL CARE,ADVANCE HEALTH CARE (UK) LTD,07/04/2022,799.68,6541-Domiciliary Care,THIRD PARTY PAYMENTS,PRIVATE CONTRACTOR,REVENUE
Walsall Council,http://opendatacommunities.org/id/metropolitan-district-council/walsall ,WC137-283,30.04.2022,ADULT SOCIAL CARE,ADVANCE HEALTH CARE (UK) LTD,07/04/2022,825.28,6541-Domiciliary Care,THIRD PARTY PAYMENTS,PRIVATE CONTRACTOR,REVENUE
Walsall Council,http://opendatacommunities.org/id/metropolitan-district-council/walsall ,WC137-284,30.04.2022,ADULT SOCIAL CARE,ADVANCE HEALTH CARE (UK) LTD,21/04/2022,289.18,6554-Professional Services-Priv Contractor & Other Agencies,THIRD PARTY PAYMENTS,PRIVATE CONTRACTOR,REVENUE
Walsall Council,http://opendatacommunities.org/id/metropolitan-district-council/walsall ,WC137-285,30.04.2022,ADULT SOCIAL CARE,ADVANCE HEALTH CARE (UK) LTD,21/04/2022,416.41,6554-Professional Services-Priv Contractor & Other Agencies,THIRD PARTY PAYMENTS,PRIVATE CONTRACTOR,REVENUE
Walsall Council,http://opendatacommunities.org/id/metropolitan-district-council/walsall ,WC137-286,30.04.2022,ADULT SOCIAL CARE,ADVANCE HEALTH CARE (UK) LTD,21/04/2022,508.86,6554-Professional Services-Priv Contractor & Other Agencies,THIRD PARTY PAYMENTS,PRIVATE CONTRACTOR,REVENUE
Walsall Council,http://opendatacommunities.org/id/metropolitan-district-council/walsall ,WC137-287,30.04.2022,ADULT SOCIAL CARE,ADVANCE HEALTH CARE (UK) LTD,21/04/2022,287.68,6554-Professional Services-Priv Contractor & Other Agencies,THIRD PARTY PAYMENTS,PRIVATE CONTRACTOR,REVENUE
Walsall Council,http://opendatacommunities.org/id/metropolitan-district-council/walsall ,WC137-288,30.04.2022,ADULT SOCIAL CARE,ADVANCE HEALTH CARE (UK) LTD,21/04/2022,572.46,6554-Professional Services-Priv Contractor & Other Agencies,THIRD PARTY PAYMENTS,PRIVATE CONTRACTOR,REVENUE
Walsall Council,http://opendatacommunities.org/id/metropolitan-district-council/walsall ,WC137-289,30.04.2022,ADULT SOCIAL CARE,ADVANCE HEALTH CARE (UK) LTD,22/04/2022,"1,365.08",6554-Professional Services-Priv Contractor & Other Agencies,THIRD PARTY PAYMENTS,PRIVATE CONTRACTOR,REVENUE
Walsall Council,http://opendatacommunities.org/id/metropolitan-district-council/walsall ,WC137-290,30.04.2022,ADULT SOCIAL CARE,ADVANCE HEALTH CARE (UK) LTD,07/04/2022,"2,125.41",6541-Domiciliary Care,THIRD PARTY PAYMENTS,PRIVATE CONTRACTOR,REVENUE
Walsall Council,http://opendatacommunities.org/id/metropolitan-district-council/walsall ,WC137-291,30.04.2022,ADULT SOCIAL CARE,ADVANCE HEALTH CARE (UK) LTD,07/04/2022,961.93,6541-Domiciliary Care,THIRD PARTY PAYMENTS,PRIVATE CONTRACTOR,REVENUE
Walsall Council,http://opendatacommunities.org/id/metropolitan-district-council/walsall ,WC137-292,30.04.2022,ADULT SOCIAL CARE,ADVANCE HEALTH CARE (UK) LTD,07/04/2022,708.47,6541-Domiciliary Care,THIRD PARTY PAYMENTS,PRIVATE CONTRACTOR,REVENUE
Walsall Council,http://opendatacommunities.org/id/metropolitan-district-council/walsall ,WC137-293,30.04.2022,ADULT SOCIAL CARE,ADVANCE HEALTH CARE (UK) LTD,07/04/2022,981.40,6541-Domiciliary Care,THIRD PARTY PAYMENTS,PRIVATE CONTRACTOR,REVENUE
Walsall Council,http://opendatacommunities.org/id/metropolitan-district-council/walsall ,WC137-294,30.04.2022,ADULT SOCIAL CARE,ADVANCE HEALTH CARE (UK) LTD,07/04/2022,"1,743.84",6541-Domiciliary Care,THIRD PARTY PAYMENTS,PRIVATE CONTRACTOR,REVENUE
Walsall Council,http://opendatacommunities.org/id/metropolitan-district-council/walsall ,WC137-295,30.04.2022,ADULT SOCIAL CARE,ADVANCE HEALTH CARE (UK) LTD,07/04/2022,747.36,6541-Domiciliary Care,THIRD PARTY PAYMENTS,PRIVATE CONTRACTOR,REVENUE
Walsall Council,http://opendatacommunities.org/id/metropolitan-district-council/walsall ,WC137-296,30.04.2022,ADULT SOCIAL CARE,ADVANCE HEALTH CARE (UK) LTD,11/04/2022,833.03,6541-Domiciliary Care,THIRD PARTY PAYMENTS,PRIVATE CONTRACTOR,REVENUE
Walsall Council,http://opendatacommunities.org/id/metropolitan-district-council/walsall ,WC137-297,30.04.2022,ADULT SOCIAL CARE,ADVANCE HEALTH CARE (UK) LTD,11/04/2022,490.49,6541-Domiciliary Care,THIRD PARTY PAYMENTS,PRIVATE CONTRACTOR,REVENUE
Walsall Council,http://opendatacommunities.org/id/metropolitan-district-council/walsall ,WC137-298,30.04.2022,ADULT SOCIAL CARE,ADVANCE HEALTH CARE (UK) LTD,11/04/2022,524.19,6541-Domiciliary Care,THIRD PARTY PAYMENTS,PRIVATE CONTRACTOR,REVENUE
Walsall Council,http://opendatacommunities.org/id/metropolitan-district-council/walsall ,WC137-299,30.04.2022,ADULT SOCIAL CARE,ADVANCE HEALTH CARE (UK) LTD,11/04/2022,490.49,6541-Domiciliary Care,THIRD PARTY PAYMENTS,PRIVATE CONTRACTOR,REVENUE
Walsall Council,http://opendatacommunities.org/id/metropolitan-district-council/walsall ,WC137-300,30.04.2022,ADULT SOCIAL CARE,ADVANCE HEALTH CARE (UK) LTD,11/04/2022,435.96,6541-Domiciliary Care,THIRD PARTY PAYMENTS,PRIVATE CONTRACTOR,REVENUE
Walsall Council,http://opendatacommunities.org/id/metropolitan-district-council/walsall ,WC137-301,30.04.2022,ADULT SOCIAL CARE,ADVANCE HEALTH CARE (UK) LTD,11/04/2022,490.49,6541-Domiciliary Care,THIRD PARTY PAYMENTS,PRIVATE CONTRACTOR,REVENUE
Walsall Council,http://opendatacommunities.org/id/metropolitan-district-council/walsall ,WC137-302,30.04.2022,ADULT SOCIAL CARE,ADVANCE HEALTH CARE (UK) LTD,11/04/2022,326.97,6541-Domiciliary Care,THIRD PARTY PAYMENTS,PRIVATE CONTRACTOR,REVENUE
Walsall Council,http://opendatacommunities.org/id/metropolitan-district-council/walsall ,WC137-303,30.04.2022,ADULT SOCIAL CARE,ADVANCE HEALTH CARE (UK) LTD,11/04/2022,490.49,6541-Domiciliary Care,THIRD PARTY PAYMENTS,PRIVATE CONTRACTOR,REVENUE
Walsall Council,http://opendatacommunities.org/id/metropolitan-district-council/walsall ,WC137-304,30.04.2022,ADULT SOCIAL CARE,ADVANCE HEALTH CARE (UK) LTD,11/04/2022,568.34,6541-Domiciliary Care,THIRD PARTY PAYMENTS,PRIVATE CONTRACTOR,REVENUE
Walsall Council,http://opendatacommunities.org/id/metropolitan-district-council/walsall ,WC137-305,30.04.2022,ADULT SOCIAL CARE,ADVANCE HEALTH CARE (UK) LTD,11/04/2022,490.49,6541-Domiciliary Care,THIRD PARTY PAYMENTS,PRIVATE CONTRACTOR,REVENUE
Walsall Council,http://opendatacommunities.org/id/metropolitan-district-council/walsall ,WC137-306,30.04.2022,ADULT SOCIAL CARE,ADVANCE HEALTH CARE (UK) LTD,11/04/2022,490.49,6541-Domiciliary Care,THIRD PARTY PAYMENTS,PRIVATE CONTRACTOR,REVENUE
Walsall Council,http://opendatacommunities.org/id/metropolitan-district-council/walsall ,WC137-307,30.04.2022,ADULT SOCIAL CARE,ADVANCE HEALTH CARE (UK) LTD,11/04/2022,454.16,6541-Domiciliary Care,THIRD PARTY PAYMENTS,PRIVATE CONTRACTOR,REVENUE
Walsall Council,http://opendatacommunities.org/id/metropolitan-district-council/walsall ,WC137-308,30.04.2022,ADULT SOCIAL CARE,ADVANCE HEALTH CARE (UK) LTD,11/04/2022,490.49,6541-Domiciliary Care,THIRD PARTY PAYMENTS,PRIVATE CONTRACTOR,REVENUE
Walsall Council,http://opendatacommunities.org/id/metropolitan-district-council/walsall ,WC137-309,30.04.2022,ADULT SOCIAL CARE,ADVANCE HEALTH CARE (UK) LTD,11/04/2022,490.49,6541-Domiciliary Care,THIRD PARTY PAYMENTS,PRIVATE CONTRACTOR,REVENUE
Walsall Council,http://opendatacommunities.org/id/metropolitan-district-council/walsall ,WC137-310,30.04.2022,ADULT SOCIAL CARE,ADVANCE HEALTH CARE (UK) LTD,11/04/2022,363.30,6541-Domiciliary Care,THIRD PARTY PAYMENTS,PRIVATE CONTRACTOR,REVENUE
Walsall Council,http://opendatacommunities.org/id/metropolitan-district-council/walsall ,WC137-311,30.04.2022,ADULT SOCIAL CARE,ADVANCE HEALTH CARE (UK) LTD,11/04/2022,399.63,6541-Domiciliary Care,THIRD PARTY PAYMENTS,PRIVATE CONTRACTOR,REVENUE
Walsall Council,http://opendatacommunities.org/id/metropolitan-district-council/walsall ,WC137-312,30.04.2022,ADULT SOCIAL CARE,ADVANCE HEALTH CARE (UK) LTD,11/04/2022,326.97,6541-Domiciliary Care,THIRD PARTY PAYMENTS,PRIVATE CONTRACTOR,REVENUE
Walsall Council,http://opendatacommunities.org/id/metropolitan-district-council/walsall ,WC137-313,30.04.2022,ADULT SOCIAL CARE,ADVANCE HEALTH CARE (UK) LTD,11/04/2022,326.97,6541-Domiciliary Care,THIRD PARTY PAYMENTS,PRIVATE CONTRACTOR,REVENUE
Walsall Council,http://opendatacommunities.org/id/metropolitan-district-council/walsall ,WC137-314,30.04.2022,ADULT SOCIAL CARE,ADVANCE HEALTH CARE (UK) LTD,11/04/2022,490.49,6541-Domiciliary Care,THIRD PARTY PAYMENTS,PRIVATE CONTRACTOR,REVENUE
Walsall Council,http://opendatacommunities.org/id/metropolitan-district-council/walsall ,WC137-315,30.04.2022,ADULT SOCIAL CARE,ADVANCE HEALTH CARE (UK) LTD,11/04/2022,490.49,6541-Domiciliary Care,THIRD PARTY PAYMENTS,PRIVATE CONTRACTOR,REVENUE
Walsall Council,http://opendatacommunities.org/id/metropolitan-district-council/walsall ,WC137-316,30.04.2022,ADULT SOCIAL CARE,ADVANCE HEALTH CARE (UK) LTD,11/04/2022,490.49,6541-Domiciliary Care,THIRD PARTY PAYMENTS,PRIVATE CONTRACTOR,REVENUE
Walsall Council,http://opendatacommunities.org/id/metropolitan-district-council/walsall ,WC137-317,30.04.2022,ADULT SOCIAL CARE,ADVANCE HEALTH CARE (UK) LTD,11/04/2022,490.49,6541-Domiciliary Care,THIRD PARTY PAYMENTS,PRIVATE CONTRACTOR,REVENUE
Walsall Council,http://opendatacommunities.org/id/metropolitan-district-council/walsall ,WC137-318,30.04.2022,ADULT SOCIAL CARE,ADVANCE HEALTH CARE (UK) LTD,11/04/2022,326.97,6541-Domiciliary Care,THIRD PARTY PAYMENTS,PRIVATE CONTRACTOR,REVENUE
Walsall Council,http://opendatacommunities.org/id/metropolitan-district-council/walsall ,WC137-319,30.04.2022,ADULT SOCIAL CARE,ADVANCE HEALTH CARE (UK) LTD,11/04/2022,544.95,6541-Domiciliary Care,THIRD PARTY PAYMENTS,PRIVATE CONTRACTOR,REVENUE
Walsall Council,http://opendatacommunities.org/id/metropolitan-district-council/walsall ,WC137-320,30.04.2022,ADULT SOCIAL CARE,ADVANCE HEALTH CARE (UK) LTD,11/04/2022,490.49,6541-Domiciliary Care,THIRD PARTY PAYMENTS,PRIVATE CONTRACTOR,REVENUE
Walsall Council,http://opendatacommunities.org/id/metropolitan-district-council/walsall ,WC137-321,30.04.2022,ADULT SOCIAL CARE,ADVANCE HEALTH CARE (UK) LTD,11/04/2022,544.95,6541-Domiciliary Care,THIRD PARTY PAYMENTS,PRIVATE CONTRACTOR,REVENUE
Walsall Council,http://opendatacommunities.org/id/metropolitan-district-council/walsall ,WC137-322,30.04.2022,ADULT SOCIAL CARE,ADVANCE HEALTH CARE (UK) LTD,11/04/2022,498.84,6541-Domiciliary Care,THIRD PARTY PAYMENTS,PRIVATE CONTRACTOR,REVENUE
Walsall Council,http://opendatacommunities.org/id/metropolitan-district-council/walsall ,WC137-323,30.04.2022,ADULT SOCIAL CARE,ADVANCE HEALTH CARE (UK) LTD,11/04/2022,326.97,6541-Domiciliary Care,THIRD PARTY PAYMENTS,PRIVATE CONTRACTOR,REVENUE
Walsall Council,http://opendatacommunities.org/id/metropolitan-district-council/walsall ,WC137-324,30.04.2022,ADULT SOCIAL CARE,ADVANCE HEALTH CARE (UK) LTD,11/04/2022,490.49,6541-Domiciliary Care,THIRD PARTY PAYMENTS,PRIVATE CONTRACTOR,REVENUE
Walsall Council,http://opendatacommunities.org/id/metropolitan-district-council/walsall ,WC137-325,30.04.2022,ADULT SOCIAL CARE,ADVANCE HEALTH CARE (UK) LTD,11/04/2022,381.50,6541-Domiciliary Care,THIRD PARTY PAYMENTS,PRIVATE CONTRACTOR,REVENUE
Walsall Council,http://opendatacommunities.org/id/metropolitan-district-council/walsall ,WC137-326,30.04.2022,ADULT SOCIAL CARE,ADVANCE HEALTH CARE (UK) LTD,11/04/2022,490.49,6541-Domiciliary Care,THIRD PARTY PAYMENTS,PRIVATE CONTRACTOR,REVENUE
Walsall Council,http://opendatacommunities.org/id/metropolitan-district-council/walsall ,WC137-327,30.04.2022,ADULT SOCIAL CARE,ADVANCE HEALTH CARE (UK) LTD,11/04/2022,454.16,6541-Domiciliary Care,THIRD PARTY PAYMENTS,PRIVATE CONTRACTOR,REVENUE
Walsall Council,http://opendatacommunities.org/id/metropolitan-district-council/walsall ,WC137-328,30.04.2022,ADULT SOCIAL CARE,ADVANCE HEALTH CARE (UK) LTD,11/04/2022,871.92,6541-Domiciliary Care,THIRD PARTY PAYMENTS,PRIVATE CONTRACTOR,REVENUE
Walsall Council,http://opendatacommunities.org/id/metropolitan-district-council/walsall ,WC137-329,30.04.2022,ADULT SOCIAL CARE,ADVANCE HEALTH CARE (UK) LTD,11/04/2022,381.50,6541-Domiciliary Care,THIRD PARTY PAYMENTS,PRIVATE CONTRACTOR,REVENUE
Walsall Council,http://opendatacommunities.org/id/metropolitan-district-council/walsall ,WC137-330,30.04.2022,ADULT SOCIAL CARE,ADVANCE HEALTH CARE (UK) LTD,11/04/2022,490.49,6541-Domiciliary Care,THIRD PARTY PAYMENTS,PRIVATE CONTRACTOR,REVENUE
Walsall Council,http://opendatacommunities.org/id/metropolitan-district-council/walsall ,WC137-331,30.04.2022,ADULT SOCIAL CARE,ADVANCE HEALTH CARE (UK) LTD,11/04/2022,490.49,6541-Domiciliary Care,THIRD PARTY PAYMENTS,PRIVATE CONTRACTOR,REVENUE
Walsall Council,http://opendatacommunities.org/id/metropolitan-district-council/walsall ,WC137-332,30.04.2022,ADULT SOCIAL CARE,ADVANCE HEALTH CARE (UK) LTD,11/04/2022,544.95,6541-Domiciliary Care,THIRD PARTY PAYMENTS,PRIVATE CONTRACTOR,REVENUE
Walsall Council,http://opendatacommunities.org/id/metropolitan-district-council/walsall ,WC137-333,30.04.2022,ADULT SOCIAL CARE,ADVANCE HEALTH CARE (UK) LTD,11/04/2022,506.06,6541-Domiciliary Care,THIRD PARTY PAYMENTS,PRIVATE CONTRACTOR,REVENUE
Walsall Council,http://opendatacommunities.org/id/metropolitan-district-council/walsall ,WC137-334,30.04.2022,ADULT SOCIAL CARE,ADVANCE HEALTH CARE (UK) LTD,11/04/2022,490.49,6541-Domiciliary Care,THIRD PARTY PAYMENTS,PRIVATE CONTRACTOR,REVENUE
Walsall Council,http://opendatacommunities.org/id/metropolitan-district-council/walsall ,WC137-335,30.04.2022,ADULT SOCIAL CARE,ADVANCE HEALTH CARE (UK) LTD,11/04/2022,837.50,6541-Domiciliary Care,THIRD PARTY PAYMENTS,PRIVATE CONTRACTOR,REVENUE
Walsall Council,http://opendatacommunities.org/id/metropolitan-district-council/walsall ,WC137-336,30.04.2022,ADULT SOCIAL CARE,ADVANCE HEALTH CARE (UK) LTD,11/04/2022,493.58,6541-Domiciliary Care,THIRD PARTY PAYMENTS,PRIVATE CONTRACTOR,REVENUE
Walsall Council,http://opendatacommunities.org/id/metropolitan-district-council/walsall ,WC137-337,30.04.2022,ADULT SOCIAL CARE,ADVANCE HEALTH CARE (UK) LTD,11/04/2022,527.66,6541-Domiciliary Care,THIRD PARTY PAYMENTS,PRIVATE CONTRACTOR,REVENUE
Walsall Council,http://opendatacommunities.org/id/metropolitan-district-council/walsall ,WC137-338,30.04.2022,ADULT SOCIAL CARE,ADVANCE HEALTH CARE (UK) LTD,11/04/2022,493.58,6541-Domiciliary Care,THIRD PARTY PAYMENTS,PRIVATE CONTRACTOR,REVENUE
Walsall Council,http://opendatacommunities.org/id/metropolitan-district-council/walsall ,WC137-339,30.04.2022,ADULT SOCIAL CARE,ADVANCE HEALTH CARE (UK) LTD,11/04/2022,493.58,6541-Domiciliary Care,THIRD PARTY PAYMENTS,PRIVATE CONTRACTOR,REVENUE
Walsall Council,http://opendatacommunities.org/id/metropolitan-district-council/walsall ,WC137-340,30.04.2022,ADULT SOCIAL CARE,ADVANCE HEALTH CARE (UK) LTD,11/04/2022,493.58,6541-Domiciliary Care,THIRD PARTY PAYMENTS,PRIVATE CONTRACTOR,REVENUE
Walsall Council,http://opendatacommunities.org/id/metropolitan-district-council/walsall ,WC137-341,30.04.2022,ADULT SOCIAL CARE,ADVANCE HEALTH CARE (UK) LTD,11/04/2022,493.58,6541-Domiciliary Care,THIRD PARTY PAYMENTS,PRIVATE CONTRACTOR,REVENUE
Walsall Council,http://opendatacommunities.org/id/metropolitan-district-council/walsall ,WC137-342,30.04.2022,ADULT SOCIAL CARE,ADVANCE HEALTH CARE (UK) LTD,11/04/2022,571.66,6541-Domiciliary Care,THIRD PARTY PAYMENTS,PRIVATE CONTRACTOR,REVENUE
Walsall Council,http://opendatacommunities.org/id/metropolitan-district-council/walsall ,WC137-343,30.04.2022,ADULT SOCIAL CARE,ADVANCE HEALTH CARE (UK) LTD,11/04/2022,493.58,6541-Domiciliary Care,THIRD PARTY PAYMENTS,PRIVATE CONTRACTOR,REVENUE
Walsall Council,http://opendatacommunities.org/id/metropolitan-district-council/walsall ,WC137-344,30.04.2022,ADULT SOCIAL CARE,ADVANCE HEALTH CARE (UK) LTD,11/04/2022,493.58,6541-Domiciliary Care,THIRD PARTY PAYMENTS,PRIVATE CONTRACTOR,REVENUE
Walsall Council,http://opendatacommunities.org/id/metropolitan-district-council/walsall ,WC137-345,30.04.2022,ADULT SOCIAL CARE,ADVANCE HEALTH CARE (UK) LTD,11/04/2022,493.58,6541-Domiciliary Care,THIRD PARTY PAYMENTS,PRIVATE CONTRACTOR,REVENUE
Walsall Council,http://opendatacommunities.org/id/metropolitan-district-council/walsall ,WC137-346,30.04.2022,ADULT SOCIAL CARE,ADVANCE HEALTH CARE (UK) LTD,11/04/2022,438.72,6541-Domiciliary Care,THIRD PARTY PAYMENTS,PRIVATE CONTRACTOR,REVENUE
Walsall Council,http://opendatacommunities.org/id/metropolitan-district-council/walsall ,WC137-347,30.04.2022,ADULT SOCIAL CARE,ADVANCE HEALTH CARE (UK) LTD,11/04/2022,493.58,6541-Domiciliary Care,THIRD PARTY PAYMENTS,PRIVATE CONTRACTOR,REVENUE
Walsall Council,http://opendatacommunities.org/id/metropolitan-district-council/walsall ,WC137-348,30.04.2022,ADULT SOCIAL CARE,ADVANCE HEALTH CARE (UK) LTD,11/04/2022,329.10,6541-Domiciliary Care,THIRD PARTY PAYMENTS,PRIVATE CONTRACTOR,REVENUE
Walsall Council,http://opendatacommunities.org/id/metropolitan-district-council/walsall ,WC137-349,30.04.2022,ADULT SOCIAL CARE,ADVANCE HEALTH CARE (UK) LTD,11/04/2022,383.90,6541-Domiciliary Care,THIRD PARTY PAYMENTS,PRIVATE CONTRACTOR,REVENUE
Walsall Council,http://opendatacommunities.org/id/metropolitan-district-council/walsall ,WC137-350,30.04.2022,ADULT SOCIAL CARE,ADVANCE HEALTH CARE (UK) LTD,11/04/2022,493.58,6541-Domiciliary Care,THIRD PARTY PAYMENTS,PRIVATE CONTRACTOR,REVENUE
Walsall Council,http://opendatacommunities.org/id/metropolitan-district-council/walsall ,WC137-351,30.04.2022,ADULT SOCIAL CARE,ADVANCE HEALTH CARE (UK) LTD,11/04/2022,457.04,6541-Domiciliary Care,THIRD PARTY PAYMENTS,PRIVATE CONTRACTOR,REVENUE
Walsall Council,http://opendatacommunities.org/id/metropolitan-district-council/walsall ,WC137-352,30.04.2022,ADULT SOCIAL CARE,ADVANCE HEALTH CARE (UK) LTD,11/04/2022,548.40,6541-Domiciliary Care,THIRD PARTY PAYMENTS,PRIVATE CONTRACTOR,REVENUE
Walsall Council,http://opendatacommunities.org/id/metropolitan-district-council/walsall ,WC137-353,30.04.2022,ADULT SOCIAL CARE,ADVANCE HEALTH CARE (UK) LTD,11/04/2022,493.58,6541-Domiciliary Care,THIRD PARTY PAYMENTS,PRIVATE CONTRACTOR,REVENUE
Walsall Council,http://opendatacommunities.org/id/metropolitan-district-council/walsall ,WC137-354,30.04.2022,ADULT SOCIAL CARE,ADVANCE HEALTH CARE (UK) LTD,11/04/2022,548.40,6541-Domiciliary Care,THIRD PARTY PAYMENTS,PRIVATE CONTRACTOR,REVENUE
Walsall Council,http://opendatacommunities.org/id/metropolitan-district-council/walsall ,WC137-355,30.04.2022,ADULT SOCIAL CARE,ADVANCE HEALTH CARE (UK) LTD,11/04/2022,502.52,6541-Domiciliary Care,THIRD PARTY PAYMENTS,PRIVATE CONTRACTOR,REVENUE
Walsall Council,http://opendatacommunities.org/id/metropolitan-district-council/walsall ,WC137-356,30.04.2022,ADULT SOCIAL CARE,ADVANCE HEALTH CARE (UK) LTD,11/04/2022,365.64,6541-Domiciliary Care,THIRD PARTY PAYMENTS,PRIVATE CONTRACTOR,REVENUE
Walsall Council,http://opendatacommunities.org/id/metropolitan-district-council/walsall ,WC137-357,30.04.2022,ADULT SOCIAL CARE,ADVANCE HEALTH CARE (UK) LTD,11/04/2022,329.04,6541-Domiciliary Care,THIRD PARTY PAYMENTS,PRIVATE CONTRACTOR,REVENUE
Walsall Council,http://opendatacommunities.org/id/metropolitan-district-council/walsall ,WC137-358,30.04.2022,ADULT SOCIAL CARE,ADVANCE HEALTH CARE (UK) LTD,11/04/2022,329.10,6541-Domiciliary Care,THIRD PARTY PAYMENTS,PRIVATE CONTRACTOR,REVENUE
Walsall Council,http://opendatacommunities.org/id/metropolitan-district-council/walsall ,WC137-359,30.04.2022,ADULT SOCIAL CARE,ADVANCE HEALTH CARE (UK) LTD,11/04/2022,457.04,6541-Domiciliary Care,THIRD PARTY PAYMENTS,PRIVATE CONTRACTOR,REVENUE
Walsall Council,http://opendatacommunities.org/id/metropolitan-district-council/walsall ,WC137-360,30.04.2022,ADULT SOCIAL CARE,ADVANCE HEALTH CARE (UK) LTD,11/04/2022,493.58,6541-Domiciliary Care,THIRD PARTY PAYMENTS,PRIVATE CONTRACTOR,REVENUE
Walsall Council,http://opendatacommunities.org/id/metropolitan-district-council/walsall ,WC137-361,30.04.2022,ADULT SOCIAL CARE,ADVANCE HEALTH CARE (UK) LTD,11/04/2022,877.44,6541-Domiciliary Care,THIRD PARTY PAYMENTS,PRIVATE CONTRACTOR,REVENUE
Walsall Council,http://opendatacommunities.org/id/metropolitan-district-council/walsall ,WC137-362,30.04.2022,ADULT SOCIAL CARE,ADVANCE HEALTH CARE (UK) LTD,11/04/2022,273.30,6541-Domiciliary Care,THIRD PARTY PAYMENTS,PRIVATE CONTRACTOR,REVENUE
Walsall Council,http://opendatacommunities.org/id/metropolitan-district-council/walsall ,WC137-363,30.04.2022,ADULT SOCIAL CARE,ADVANCE HEALTH CARE (UK) LTD,11/04/2022,493.58,6541-Domiciliary Care,THIRD PARTY PAYMENTS,PRIVATE CONTRACTOR,REVENUE
Walsall Council,http://opendatacommunities.org/id/metropolitan-district-council/walsall ,WC137-364,30.04.2022,ADULT SOCIAL CARE,ADVANCE HEALTH CARE (UK) LTD,11/04/2022,493.58,6541-Domiciliary Care,THIRD PARTY PAYMENTS,PRIVATE CONTRACTOR,REVENUE
Walsall Council,http://opendatacommunities.org/id/metropolitan-district-council/walsall ,WC137-365,30.04.2022,ADULT SOCIAL CARE,ADVANCE HEALTH CARE (UK) LTD,11/04/2022,548.40,6541-Domiciliary Care,THIRD PARTY PAYMENTS,PRIVATE CONTRACTOR,REVENUE
Walsall Council,http://opendatacommunities.org/id/metropolitan-district-council/walsall ,WC137-366,30.04.2022,ADULT SOCIAL CARE,ADVANCE HEALTH CARE (UK) LTD,11/04/2022,509.15,6541-Domiciliary Care,THIRD PARTY PAYMENTS,PRIVATE CONTRACTOR,REVENUE
Walsall Council,http://opendatacommunities.org/id/metropolitan-district-council/walsall ,WC137-367,30.04.2022,ADULT SOCIAL CARE,ADVANCE HEALTH CARE (UK) LTD,11/04/2022,493.58,6541-Domiciliary Care,THIRD PARTY PAYMENTS,PRIVATE CONTRACTOR,REVENUE
Walsall Council,http://opendatacommunities.org/id/metropolitan-district-council/walsall ,WC137-368,30.04.2022,ADULT SOCIAL CARE,ADVANCE HEALTH CARE (UK) LTD,11/04/2022,493.58,6541-Domiciliary Care,THIRD PARTY PAYMENTS,PRIVATE CONTRACTOR,REVENUE
Walsall Council,http://opendatacommunities.org/id/metropolitan-district-council/walsall ,WC137-369,30.04.2022,ADULT SOCIAL CARE,ADVANCE HEALTH CARE (UK) LTD,11/04/2022,493.58,6541-Domiciliary Care,THIRD PARTY PAYMENTS,PRIVATE CONTRACTOR,REVENUE
Walsall Council,http://opendatacommunities.org/id/metropolitan-district-council/walsall ,WC137-370,30.04.2022,ADULT SOCIAL CARE,ADVANCE HEALTH CARE (UK) LTD,11/04/2022,329.04,6541-Domiciliary Care,THIRD PARTY PAYMENTS,PRIVATE CONTRACTOR,REVENUE
Walsall Council,http://opendatacommunities.org/id/metropolitan-district-council/walsall ,WC137-371,30.04.2022,ADULT SOCIAL CARE,ADVANCE HEALTH CARE (UK) LTD,26/04/2022,442.40,6541-Domiciliary Care,THIRD PARTY PAYMENTS,PRIVATE CONTRACTOR,REVENUE
Walsall Council,http://opendatacommunities.org/id/metropolitan-district-council/walsall ,WC137-372,30.04.2022,ADULT SOCIAL CARE,ADVANCE HEALTH CARE (UK) LTD,26/04/2022,497.70,6541-Domiciliary Care,THIRD PARTY PAYMENTS,PRIVATE CONTRACTOR,REVENUE
Walsall Council,http://opendatacommunities.org/id/metropolitan-district-council/walsall ,WC137-373,30.04.2022,ADULT SOCIAL CARE,ADVANCE HEALTH CARE (UK) LTD,26/04/2022,331.94,6541-Domiciliary Care,THIRD PARTY PAYMENTS,PRIVATE CONTRACTOR,REVENUE
Walsall Council,http://opendatacommunities.org/id/metropolitan-district-council/walsall ,WC137-374,30.04.2022,ADULT SOCIAL CARE,ADVANCE HEALTH CARE (UK) LTD,26/04/2022,845.30,6541-Domiciliary Care,THIRD PARTY PAYMENTS,PRIVATE CONTRACTOR,REVENUE
Walsall Council,http://opendatacommunities.org/id/metropolitan-district-council/walsall ,WC137-375,30.04.2022,ADULT SOCIAL CARE,ADVANCE HEALTH CARE (UK) LTD,26/04/2022,497.70,6541-Domiciliary Care,THIRD PARTY PAYMENTS,PRIVATE CONTRACTOR,REVENUE
Walsall Council,http://opendatacommunities.org/id/metropolitan-district-council/walsall ,WC137-376,30.04.2022,ADULT SOCIAL CARE,ADVANCE HEALTH CARE (UK) LTD,26/04/2022,531.98,6541-Domiciliary Care,THIRD PARTY PAYMENTS,PRIVATE CONTRACTOR,REVENUE
Walsall Council,http://opendatacommunities.org/id/metropolitan-district-council/walsall ,WC137-377,30.04.2022,ADULT SOCIAL CARE,ADVANCE HEALTH CARE (UK) LTD,26/04/2022,497.70,6541-Domiciliary Care,THIRD PARTY PAYMENTS,PRIVATE CONTRACTOR,REVENUE
Walsall Council,http://opendatacommunities.org/id/metropolitan-district-council/walsall ,WC137-378,30.04.2022,ADULT SOCIAL CARE,ADVANCE HEALTH CARE (UK) LTD,26/04/2022,497.70,6541-Domiciliary Care,THIRD PARTY PAYMENTS,PRIVATE CONTRACTOR,REVENUE
Walsall Council,http://opendatacommunities.org/id/metropolitan-district-council/walsall ,WC137-379,30.04.2022,ADULT SOCIAL CARE,ADVANCE HEALTH CARE (UK) LTD,26/04/2022,497.70,6541-Domiciliary Care,THIRD PARTY PAYMENTS,PRIVATE CONTRACTOR,REVENUE
Walsall Council,http://opendatacommunities.org/id/metropolitan-district-council/walsall ,WC137-380,30.04.2022,ADULT SOCIAL CARE,ADVANCE HEALTH CARE (UK) LTD,26/04/2022,576.70,6541-Domiciliary Care,THIRD PARTY PAYMENTS,PRIVATE CONTRACTOR,REVENUE
Walsall Council,http://opendatacommunities.org/id/metropolitan-district-council/walsall ,WC137-381,30.04.2022,ADULT SOCIAL CARE,ADVANCE HEALTH CARE (UK) LTD,26/04/2022,497.70,6541-Domiciliary Care,THIRD PARTY PAYMENTS,PRIVATE CONTRACTOR,REVENUE
Walsall Council,http://opendatacommunities.org/id/metropolitan-district-council/walsall ,WC137-382,30.04.2022,ADULT SOCIAL CARE,ADVANCE HEALTH CARE (UK) LTD,26/04/2022,497.70,6541-Domiciliary Care,THIRD PARTY PAYMENTS,PRIVATE CONTRACTOR,REVENUE
Walsall Council,http://opendatacommunities.org/id/metropolitan-district-council/walsall ,WC137-383,30.04.2022,ADULT SOCIAL CARE,ADVANCE HEALTH CARE (UK) LTD,26/04/2022,497.70,6541-Domiciliary Care,THIRD PARTY PAYMENTS,PRIVATE CONTRACTOR,REVENUE
Walsall Council,http://opendatacommunities.org/id/metropolitan-district-council/walsall ,WC137-384,30.04.2022,ADULT SOCIAL CARE,ADVANCE HEALTH CARE (UK) LTD,26/04/2022,497.70,6541-Domiciliary Care,THIRD PARTY PAYMENTS,PRIVATE CONTRACTOR,REVENUE
Walsall Council,http://opendatacommunities.org/id/metropolitan-district-council/walsall ,WC137-385,30.04.2022,ADULT SOCIAL CARE,ADVANCE HEALTH CARE (UK) LTD,26/04/2022,460.88,6541-Domiciliary Care,THIRD PARTY PAYMENTS,PRIVATE CONTRACTOR,REVENUE
Walsall Council,http://opendatacommunities.org/id/metropolitan-district-council/walsall ,WC137-386,30.04.2022,ADULT SOCIAL CARE,ADVANCE HEALTH CARE (UK) LTD,26/04/2022,497.70,6541-Domiciliary Care,THIRD PARTY PAYMENTS,PRIVATE CONTRACTOR,REVENUE
Walsall Council,http://opendatacommunities.org/id/metropolitan-district-council/walsall ,WC137-387,30.04.2022,ADULT SOCIAL CARE,ADVANCE HEALTH CARE (UK) LTD,26/04/2022,331.80,6541-Domiciliary Care,THIRD PARTY PAYMENTS,PRIVATE CONTRACTOR,REVENUE
Walsall Council,http://opendatacommunities.org/id/metropolitan-district-council/walsall ,WC137-388,30.04.2022,ADULT SOCIAL CARE,ADVANCE HEALTH CARE (UK) LTD,26/04/2022,-259.50,6541-Domiciliary Care,THIRD PARTY PAYMENTS,PRIVATE CONTRACTOR,REVENUE
Walsall Council,http://opendatacommunities.org/id/metropolitan-district-council/walsall ,WC137-389,30.04.2022,ADULT SOCIAL CARE,ADVANCE HEALTH CARE (UK) LTD,26/04/2022,497.70,6541-Domiciliary Care,THIRD PARTY PAYMENTS,PRIVATE CONTRACTOR,REVENUE
Walsall Council,http://opendatacommunities.org/id/metropolitan-district-council/walsall ,WC137-390,30.04.2022,ADULT SOCIAL CARE,ADVANCE HEALTH CARE (UK) LTD,26/04/2022,368.76,6541-Domiciliary Care,THIRD PARTY PAYMENTS,PRIVATE CONTRACTOR,REVENUE
Walsall Council,http://opendatacommunities.org/id/metropolitan-district-council/walsall ,WC137-391,30.04.2022,ADULT SOCIAL CARE,ADVANCE HEALTH CARE (UK) LTD,26/04/2022,405.58,6541-Domiciliary Care,THIRD PARTY PAYMENTS,PRIVATE CONTRACTOR,REVENUE
Walsall Council,http://opendatacommunities.org/id/metropolitan-district-council/walsall ,WC137-392,30.04.2022,ADULT SOCIAL CARE,ADVANCE HEALTH CARE (UK) LTD,26/04/2022,331.80,6541-Domiciliary Care,THIRD PARTY PAYMENTS,PRIVATE CONTRACTOR,REVENUE
Walsall Council,http://opendatacommunities.org/id/metropolitan-district-council/walsall ,WC137-393,30.04.2022,ADULT SOCIAL CARE,ADVANCE HEALTH CARE (UK) LTD,26/04/2022,331.94,6541-Domiciliary Care,THIRD PARTY PAYMENTS,PRIVATE CONTRACTOR,REVENUE
Walsall Council,http://opendatacommunities.org/id/metropolitan-district-council/walsall ,WC137-394,30.04.2022,ADULT SOCIAL CARE,ADVANCE HEALTH CARE (UK) LTD,26/04/2022,553.00,6541-Domiciliary Care,THIRD PARTY PAYMENTS,PRIVATE CONTRACTOR,REVENUE
Walsall Council,http://opendatacommunities.org/id/metropolitan-district-council/walsall ,WC137-395,30.04.2022,ADULT SOCIAL CARE,ADVANCE HEALTH CARE (UK) LTD,26/04/2022,"-1,544.63",6541-Domiciliary Care,THIRD PARTY PAYMENTS,PRIVATE CONTRACTOR,REVENUE
Walsall Council,http://opendatacommunities.org/id/metropolitan-district-council/walsall ,WC137-396,30.04.2022,ADULT SOCIAL CARE,ADVANCE HEALTH CARE (UK) LTD,26/04/2022,553.00,6541-Domiciliary Care,THIRD PARTY PAYMENTS,PRIVATE CONTRACTOR,REVENUE
Walsall Council,http://opendatacommunities.org/id/metropolitan-district-council/walsall ,WC137-397,30.04.2022,ADULT SOCIAL CARE,ADVANCE HEALTH CARE (UK) LTD,26/04/2022,318.90,6541-Domiciliary Care,THIRD PARTY PAYMENTS,PRIVATE CONTRACTOR,REVENUE
Walsall Council,http://opendatacommunities.org/id/metropolitan-district-council/walsall ,WC137-398,30.04.2022,ADULT SOCIAL CARE,ADVANCE HEALTH CARE (UK) LTD,26/04/2022,884.80,6541-Domiciliary Care,THIRD PARTY PAYMENTS,PRIVATE CONTRACTOR,REVENUE
Walsall Council,http://opendatacommunities.org/id/metropolitan-district-council/walsall ,WC137-399,30.04.2022,ADULT SOCIAL CARE,ADVANCE HEALTH CARE (UK) LTD,26/04/2022,497.70,6541-Domiciliary Care,THIRD PARTY PAYMENTS,PRIVATE CONTRACTOR,REVENUE
Walsall Council,http://opendatacommunities.org/id/metropolitan-district-council/walsall ,WC137-400,30.04.2022,ADULT SOCIAL CARE,ADVANCE HEALTH CARE (UK) LTD,26/04/2022,387.10,6541-Domiciliary Care,THIRD PARTY PAYMENTS,PRIVATE CONTRACTOR,REVENUE
Walsall Council,http://opendatacommunities.org/id/metropolitan-district-council/walsall ,WC137-401,30.04.2022,ADULT SOCIAL CARE,ADVANCE HEALTH CARE (UK) LTD,26/04/2022,497.70,6541-Domiciliary Care,THIRD PARTY PAYMENTS,PRIVATE CONTRACTOR,REVENUE
Walsall Council,http://opendatacommunities.org/id/metropolitan-district-council/walsall ,WC137-402,30.04.2022,ADULT SOCIAL CARE,ADVANCE HEALTH CARE (UK) LTD,26/04/2022,460.88,6541-Domiciliary Care,THIRD PARTY PAYMENTS,PRIVATE CONTRACTOR,REVENUE
Walsall Council,http://opendatacommunities.org/id/metropolitan-district-council/walsall ,WC137-403,30.04.2022,ADULT SOCIAL CARE,ADVANCE HEALTH CARE (UK) LTD,26/04/2022,"1,341.63",6541-Domiciliary Care,THIRD PARTY PAYMENTS,PRIVATE CONTRACTOR,REVENUE
Walsall Council,http://opendatacommunities.org/id/metropolitan-district-council/walsall ,WC137-404,30.04.2022,ADULT SOCIAL CARE,ADVANCE HEALTH CARE (UK) LTD,26/04/2022,497.70,6541-Domiciliary Care,THIRD PARTY PAYMENTS,PRIVATE CONTRACTOR,REVENUE
Walsall Council,http://opendatacommunities.org/id/metropolitan-district-council/walsall ,WC137-405,30.04.2022,ADULT SOCIAL CARE,ADVANCE HEALTH CARE (UK) LTD,26/04/2022,553.00,6541-Domiciliary Care,THIRD PARTY PAYMENTS,PRIVATE CONTRACTOR,REVENUE
Walsall Council,http://opendatacommunities.org/id/metropolitan-district-council/walsall ,WC137-406,30.04.2022,ADULT SOCIAL CARE,ADVANCE HEALTH CARE (UK) LTD,26/04/2022,513.50,6541-Domiciliary Care,THIRD PARTY PAYMENTS,PRIVATE CONTRACTOR,REVENUE
Walsall Council,http://opendatacommunities.org/id/metropolitan-district-council/walsall ,WC137-407,30.04.2022,ADULT SOCIAL CARE,ADVANCE HEALTH CARE (UK) LTD,26/04/2022,497.70,6541-Domiciliary Care,THIRD PARTY PAYMENTS,PRIVATE CONTRACTOR,REVENUE
Walsall Council,http://opendatacommunities.org/id/metropolitan-district-council/walsall ,WC137-408,30.04.2022,ADULT SOCIAL CARE,ADVANCE HEALTH CARE (UK) LTD,26/04/2022,845.30,6541-Domiciliary Care,THIRD PARTY PAYMENTS,PRIVATE CONTRACTOR,REVENUE
Walsall Council,http://opendatacommunities.org/id/metropolitan-district-council/walsall ,WC137-409,30.04.2022,ADULT SOCIAL CARE,ADVANCE HEALTH CARE (UK) LTD,26/04/2022,497.70,6541-Domiciliary Care,THIRD PARTY PAYMENTS,PRIVATE CONTRACTOR,REVENUE
Walsall Council,http://opendatacommunities.org/id/metropolitan-district-council/walsall ,WC137-410,30.04.2022,ADULT SOCIAL CARE,ADVANCE HEALTH CARE (UK) LTD,26/04/2022,531.98,6541-Domiciliary Care,THIRD PARTY PAYMENTS,PRIVATE CONTRACTOR,REVENUE
Walsall Council,http://opendatacommunities.org/id/metropolitan-district-council/walsall ,WC137-411,30.04.2022,ADULT SOCIAL CARE,ADVANCE HEALTH CARE (UK) LTD,26/04/2022,497.70,6541-Domiciliary Care,THIRD PARTY PAYMENTS,PRIVATE CONTRACTOR,REVENUE
Walsall Council,http://opendatacommunities.org/id/metropolitan-district-council/walsall ,WC137-412,30.04.2022,ADULT SOCIAL CARE,ADVANCE HEALTH CARE (UK) LTD,26/04/2022,442.40,6541-Domiciliary Care,THIRD PARTY PAYMENTS,PRIVATE CONTRACTOR,REVENUE
Walsall Council,http://opendatacommunities.org/id/metropolitan-district-council/walsall ,WC137-413,30.04.2022,ADULT SOCIAL CARE,ADVANCE HEALTH CARE (UK) LTD,26/04/2022,497.70,6541-Domiciliary Care,THIRD PARTY PAYMENTS,PRIVATE CONTRACTOR,REVENUE
Walsall Council,http://opendatacommunities.org/id/metropolitan-district-council/walsall ,WC137-414,30.04.2022,ADULT SOCIAL CARE,ADVANCE HEALTH CARE (UK) LTD,26/04/2022,331.94,6541-Domiciliary Care,THIRD PARTY PAYMENTS,PRIVATE CONTRACTOR,REVENUE
Walsall Council,http://opendatacommunities.org/id/metropolitan-district-council/walsall ,WC137-415,30.04.2022,ADULT SOCIAL CARE,ADVANCE HEALTH CARE (UK) LTD,26/04/2022,497.70,6541-Domiciliary Care,THIRD PARTY PAYMENTS,PRIVATE CONTRACTOR,REVENUE
Walsall Council,http://opendatacommunities.org/id/metropolitan-district-council/walsall ,WC137-416,30.04.2022,ADULT SOCIAL CARE,ADVANCE HEALTH CARE (UK) LTD,26/04/2022,460.88,6541-Domiciliary Care,THIRD PARTY PAYMENTS,PRIVATE CONTRACTOR,REVENUE
Walsall Council,http://opendatacommunities.org/id/metropolitan-district-council/walsall ,WC137-417,30.04.2022,ADULT SOCIAL CARE,ADVANCE HEALTH CARE (UK) LTD,26/04/2022,497.70,6541-Domiciliary Care,THIRD PARTY PAYMENTS,PRIVATE CONTRACTOR,REVENUE
Walsall Council,http://opendatacommunities.org/id/metropolitan-district-council/walsall ,WC137-418,30.04.2022,ADULT SOCIAL CARE,ADVANCE HEALTH CARE (UK) LTD,26/04/2022,331.80,6541-Domiciliary Care,THIRD PARTY PAYMENTS,PRIVATE CONTRACTOR,REVENUE
Walsall Council,http://opendatacommunities.org/id/metropolitan-district-council/walsall ,WC137-419,30.04.2022,ADULT SOCIAL CARE,ADVANCE HEALTH CARE (UK) LTD,26/04/2022,884.80,6541-Domiciliary Care,THIRD PARTY PAYMENTS,PRIVATE CONTRACTOR,REVENUE
Walsall Council,http://opendatacommunities.org/id/metropolitan-district-council/walsall ,WC137-420,30.04.2022,ADULT SOCIAL CARE,ADVANCE HEALTH CARE (UK) LTD,26/04/2022,497.70,6541-Domiciliary Care,THIRD PARTY PAYMENTS,PRIVATE CONTRACTOR,REVENUE
Walsall Council,http://opendatacommunities.org/id/metropolitan-district-council/walsall ,WC137-421,30.04.2022,ADULT SOCIAL CARE,ADVANCE HEALTH CARE (UK) LTD,26/04/2022,497.70,6541-Domiciliary Care,THIRD PARTY PAYMENTS,PRIVATE CONTRACTOR,REVENUE
Walsall Council,http://opendatacommunities.org/id/metropolitan-district-council/walsall ,WC137-422,30.04.2022,ADULT SOCIAL CARE,ADVANCE HEALTH CARE (UK) LTD,26/04/2022,553.00,6541-Domiciliary Care,THIRD PARTY PAYMENTS,PRIVATE CONTRACTOR,REVENUE
Walsall Council,http://opendatacommunities.org/id/metropolitan-district-council/walsall ,WC137-423,30.04.2022,ADULT SOCIAL CARE,ADVANCE HEALTH CARE (UK) LTD,26/04/2022,513.50,6541-Domiciliary Care,THIRD PARTY PAYMENTS,PRIVATE CONTRACTOR,REVENUE
Walsall Council,http://opendatacommunities.org/id/metropolitan-district-council/walsall ,WC137-424,30.04.2022,ADULT SOCIAL CARE,ADVANCE HEALTH CARE (UK) LTD,26/04/2022,497.70,6541-Domiciliary Care,THIRD PARTY PAYMENTS,PRIVATE CONTRACTOR,REVENUE
Walsall Council,http://opendatacommunities.org/id/metropolitan-district-council/walsall ,WC137-425,30.04.2022,ADULT SOCIAL CARE,ADVANCE HEALTH CARE (UK) LTD,26/04/2022,387.10,6541-Domiciliary Care,THIRD PARTY PAYMENTS,PRIVATE CONTRACTOR,REVENUE
Walsall Council,http://opendatacommunities.org/id/metropolitan-district-council/walsall ,WC137-426,30.04.2022,ADULT SOCIAL CARE,ADVANCE HEALTH CARE (UK) LTD,26/04/2022,497.70,6541-Domiciliary Care,THIRD PARTY PAYMENTS,PRIVATE CONTRACTOR,REVENUE
Walsall Council,http://opendatacommunities.org/id/metropolitan-district-council/walsall ,WC137-427,30.04.2022,ADULT SOCIAL CARE,ADVANCE HEALTH CARE (UK) LTD,26/04/2022,460.88,6541-Domiciliary Care,THIRD PARTY PAYMENTS,PRIVATE CONTRACTOR,REVENUE
Walsall Council,http://opendatacommunities.org/id/metropolitan-district-council/walsall ,WC137-428,30.04.2022,ADULT SOCIAL CARE,ADVANCE HEALTH CARE (UK) LTD,26/04/2022,497.70,6541-Domiciliary Care,THIRD PARTY PAYMENTS,PRIVATE CONTRACTOR,REVENUE
Walsall Council,http://opendatacommunities.org/id/metropolitan-district-council/walsall ,WC137-429,30.04.2022,ADULT SOCIAL CARE,ADVANCE HEALTH CARE (UK) LTD,26/04/2022,497.70,6541-Domiciliary Care,THIRD PARTY PAYMENTS,PRIVATE CONTRACTOR,REVENUE
Walsall Council,http://opendatacommunities.org/id/metropolitan-district-council/walsall ,WC137-430,30.04.2022,ADULT SOCIAL CARE,ADVANCE HEALTH CARE (UK) LTD,26/04/2022,553.00,6541-Domiciliary Care,THIRD PARTY PAYMENTS,PRIVATE CONTRACTOR,REVENUE
Walsall Council,http://opendatacommunities.org/id/metropolitan-district-council/walsall ,WC137-431,30.04.2022,ADULT SOCIAL CARE,ADVANCE HEALTH CARE (UK) LTD,26/04/2022,553.00,6541-Domiciliary Care,THIRD PARTY PAYMENTS,PRIVATE CONTRACTOR,REVENUE
Walsall Council,http://opendatacommunities.org/id/metropolitan-district-council/walsall ,WC137-432,30.04.2022,ADULT SOCIAL CARE,ADVANCE HEALTH CARE (UK) LTD,26/04/2022,490.40,6541-Domiciliary Care,THIRD PARTY PAYMENTS,PRIVATE CONTRACTOR,REVENUE
Walsall Council,http://opendatacommunities.org/id/metropolitan-district-council/walsall ,WC137-433,30.04.2022,ADULT SOCIAL CARE,ADVANCE HEALTH CARE (UK) LTD,26/04/2022,497.70,6541-Domiciliary Care,THIRD PARTY PAYMENTS,PRIVATE CONTRACTOR,REVENUE
Walsall Council,http://opendatacommunities.org/id/metropolitan-district-council/walsall ,WC137-434,30.04.2022,ADULT SOCIAL CARE,ADVANCE HEALTH CARE (UK) LTD,26/04/2022,576.70,6541-Domiciliary Care,THIRD PARTY PAYMENTS,PRIVATE CONTRACTOR,REVENUE
Walsall Council,http://opendatacommunities.org/id/metropolitan-district-council/walsall ,WC137-435,30.04.2022,ADULT SOCIAL CARE,ADVANCE HEALTH CARE (UK) LTD,26/04/2022,497.70,6541-Domiciliary Care,THIRD PARTY PAYMENTS,PRIVATE CONTRACTOR,REVENUE
Walsall Council,http://opendatacommunities.org/id/metropolitan-district-council/walsall ,WC137-436,30.04.2022,ADULT SOCIAL CARE,ADVANCE HEALTH CARE (UK) LTD,26/04/2022,497.70,6541-Domiciliary Care,THIRD PARTY PAYMENTS,PRIVATE CONTRACTOR,REVENUE
Walsall Council,http://opendatacommunities.org/id/metropolitan-district-council/walsall ,WC137-437,30.04.2022,ADULT SOCIAL CARE,ADVANCE HEALTH CARE (UK) LTD,26/04/2022,497.70,6541-Domiciliary Care,THIRD PARTY PAYMENTS,PRIVATE CONTRACTOR,REVENUE
Walsall Council,http://opendatacommunities.org/id/metropolitan-district-council/walsall ,WC137-438,30.04.2022,ADULT SOCIAL CARE,ADVANCE HEALTH CARE (UK) LTD,26/04/2022,368.76,6541-Domiciliary Care,THIRD PARTY PAYMENTS,PRIVATE CONTRACTOR,REVENUE
Walsall Council,http://opendatacommunities.org/id/metropolitan-district-council/walsall ,WC137-439,30.04.2022,ADULT SOCIAL CARE,ADVANCE HEALTH CARE (UK) LTD,26/04/2022,405.58,6541-Domiciliary Care,THIRD PARTY PAYMENTS,PRIVATE CONTRACTOR,REVENUE
Walsall Council,http://opendatacommunities.org/id/metropolitan-district-council/walsall ,WC137-440,30.04.2022,ADULT SOCIAL CARE,ADVANCE HEALTH CARE (UK) LTD,26/04/2022,331.80,6541-Domiciliary Care,THIRD PARTY PAYMENTS,PRIVATE CONTRACTOR,REVENUE
Walsall Council,http://opendatacommunities.org/id/metropolitan-district-council/walsall ,WC137-441,30.04.2022,ADULT SOCIAL CARE,ADVANCE HEALTH CARE (UK) LTD,26/04/2022,331.94,6541-Domiciliary Care,THIRD PARTY PAYMENTS,PRIVATE CONTRACTOR,REVENUE
Walsall Council,http://opendatacommunities.org/id/metropolitan-district-council/walsall ,WC137-442,30.04.2022,CHILDRENS,ADVENTURELAND DAY NURSERY,12/04/2022,"6,376.50",1184-Other-Grants to Other Orgs,SUPPLIES & SERVICES,GRANTS (EXP) & SUBSCRIPTIONS,REVENUE
Walsall Council,http://opendatacommunities.org/id/metropolitan-district-council/walsall ,WC137-443,30.04.2022,CHILDRENS,ADVENTURELAND DAY NURSERY,12/04/2022,"31,215.60",1184-Other-Grants to Other Orgs,SUPPLIES & SERVICES,GRANTS (EXP) & SUBSCRIPTIONS,REVENUE
Walsall Council,http://opendatacommunities.org/id/metropolitan-district-council/walsall ,WC137-444,30.04.2022,CHILDRENS,ADVENTURELAND DAY NURSERY,01/04/2022,"7,729.20",1184-Other-Grants to Other Orgs,SUPPLIES & SERVICES,GRANTS (EXP) & SUBSCRIPTIONS,REVENUE
Walsall Council,http://opendatacommunities.org/id/metropolitan-district-council/walsall ,WC137-445,30.04.2022,ADULT SOCIAL CARE,ADVINIA CARE HOMES LTD - HAMMERWICH HALL CARE HOME,11/04/2022,"2,331.08",6541-Residential EMI,THIRD PARTY PAYMENTS,PRIVATE CONTRACTOR,REVENUE
Walsall Council,http://opendatacommunities.org/id/metropolitan-district-council/walsall ,WC137-446,30.04.2022,ADULT SOCIAL CARE,ADVINIA CARE HOMES LTD - HAMMERWICH HALL CARE HOME,11/04/2022,"2,064.44",6541-Residential,THIRD PARTY PAYMENTS,PRIVATE CONTRACTOR,REVENUE
Walsall Council,http://opendatacommunities.org/id/metropolitan-district-council/walsall ,WC137-447,30.04.2022,CHILDRENS,REDACTED,06/04/2022,539.62,6223-Foster Carers Maintenance Allowance,TRANSFER PAYMENTS,CHILDREN SOCIAL SERVICES CLIENT,REVENUE
Walsall Council,http://opendatacommunities.org/id/metropolitan-district-council/walsall ,WC137-448,30.04.2022,CHILDRENS,REDACTED,06/04/2022,408.00,6223-Internal Foster Carers-Carer Fees,TRANSFER PAYMENTS,CHILDREN SOCIAL SERVICES CLIENT,REVENUE
Walsall Council,http://opendatacommunities.org/id/metropolitan-district-council/walsall ,WC137-449,30.04.2022,CHILDRENS,REDACTED,06/04/2022,599.43,6223-Foster Carers Maintenance Allowance,TRANSFER PAYMENTS,CHILDREN SOCIAL SERVICES CLIENT,REVENUE
Walsall Council,http://opendatacommunities.org/id/metropolitan-district-council/walsall ,WC137-450,30.04.2022,RESOURCES AND TRANSFORMATION CAPITAL,AGILISYS LTD,01/04/2022,"58,383.00",7300-Consultants Fees,CAPITAL,"NEW CONSTRUCTION,CONVERSION & RENOVATION",CAPITAL
Walsall Council,http://opendatacommunities.org/id/metropolitan-district-council/walsall ,WC137-451,30.04.2022,RESOURCES AND TRANSFORMATION CAPITAL,AGILISYS LTD,11/04/2022,"4,732.50",7300-Consultants Fees,CAPITAL,"NEW CONSTRUCTION,CONVERSION & RENOVATION",CAPITAL
Walsall Council,http://opendatacommunities.org/id/metropolitan-district-council/walsall ,WC137-452,30.04.2022,RESOURCES AND TRANSFORMATION CAPITAL,AGILISYS LTD,11/04/2022,"-43,890.00",7300-Consultants Fees,CAPITAL,"NEW CONSTRUCTION,CONVERSION & RENOVATION",CAPITAL
Walsall Council,http://opendatacommunities.org/id/metropolitan-district-council/walsall ,WC137-453,30.04.2022,RESOURCES AND TRANSFORMATION CAPITAL,AGILISYS LTD,11/04/2022,"43,890.00",7300-Consultants Fees,CAPITAL,"NEW CONSTRUCTION,CONVERSION & RENOVATION",CAPITAL
Walsall Council,http://opendatacommunities.org/id/metropolitan-district-council/walsall ,WC137-454,30.04.2022,RESOURCES AND TRANSFORMATION CAPITAL,AGILISYS LTD,11/04/2022,"9,634.00",7300-Consultants Fees,CAPITAL,"NEW CONSTRUCTION,CONVERSION & RENOVATION",CAPITAL
Walsall Council,http://opendatacommunities.org/id/metropolitan-district-council/walsall ,WC137-455,30.04.2022,RESOURCES AND TRANSFORMATION CAPITAL,AGILISYS LTD,11/04/2022,"12,716.00",7300-Consultants Fees,CAPITAL,"NEW CONSTRUCTION,CONVERSION & RENOVATION",CAPITAL
Walsall Council,http://opendatacommunities.org/id/metropolitan-district-council/walsall ,WC137-456,30.04.2022,RESOURCES AND TRANSFORMATION CAPITAL,AGILISYS LTD,11/04/2022,"1,590.00",7300-Consultants Fees,CAPITAL,"NEW CONSTRUCTION,CONVERSION & RENOVATION",CAPITAL
Walsall Council,http://opendatacommunities.org/id/metropolitan-district-council/walsall ,WC137-457,30.04.2022,RESOURCES AND TRANSFORMATION CAPITAL,AGILISYS LTD,11/04/2022,"1,096.00",7300-Consultants Fees,CAPITAL,"NEW CONSTRUCTION,CONVERSION & RENOVATION",CAPITAL
Walsall Council,http://opendatacommunities.org/id/metropolitan-district-council/walsall ,WC137-458,30.04.2022,RESOURCES AND TRANSFORMATION CAPITAL,AGILISYS LTD,11/04/2022,"1,096.00",7300-Consultants Fees,CAPITAL,"NEW CONSTRUCTION,CONVERSION & RENOVATION",CAPITAL
Walsall Council,http://opendatacommunities.org/id/metropolitan-district-council/walsall ,WC137-459,30.04.2022,RESOURCES AND TRANSFORMATION,AGILISYS LTD,11/04/2022,"59,145.98",6626-Consultant Fees,SUPPLIES & SERVICES,SERVICES,REVENUE
Walsall Council,http://opendatacommunities.org/id/metropolitan-district-council/walsall ,WC137-460,30.04.2022,RESOURCES AND TRANSFORMATION CAPITAL,AGILISYS LTD,11/04/2022,"6,272.00",7300-Consultants Fees,CAPITAL,"NEW CONSTRUCTION,CONVERSION & RENOVATION",CAPITAL
Walsall Council,http://opendatacommunities.org/id/metropolitan-district-council/walsall ,WC137-461,30.04.2022,RESOURCES AND TRANSFORMATION CAPITAL,AGILISYS LTD,11/04/2022,"1,096.00",7300-Consultants Fees,CAPITAL,"NEW CONSTRUCTION,CONVERSION & RENOVATION",CAPITAL
Walsall Council,http://opendatacommunities.org/id/metropolitan-district-council/walsall ,WC137-462,30.04.2022,RESOURCES AND TRANSFORMATION,AGILISYS LTD,26/04/2022,"69,872.37",6626-Consultant Fees,SUPPLIES & SERVICES,SERVICES,REVENUE
Walsall Council,http://opendatacommunities.org/id/metropolitan-district-council/walsall ,WC137-463,30.04.2022,"ECONOMY, ENVIRONMENT & COMMUNITIES",AGROVISTA UK LTD,26/04/2022,500.00,6410-Materials,SUPPLIES & SERVICES,EQUIPMENT FURNITURE & MATERIALS,REVENUE
Walsall Council,http://opendatacommunities.org/id/metropolitan-district-council/walsall ,WC137-464,30.04.2022,ADULT SOCIAL CARE,REDACTED,07/04/2022,"2,502.79",6541-Direct Payment,THIRD PARTY PAYMENTS,PRIVATE CONTRACTOR,REVENUE
Walsall Council,http://opendatacommunities.org/id/metropolitan-district-council/walsall ,WC137-465,30.04.2022,"ECONOMY, ENVIRONMENT & COMMUNITIES",AIRQUEE,07/04/2022,"4,522.50",6413-Repair & Maintenance of Furniture & Equipment,SUPPLIES & SERVICES,EQUIPMENT FURNITURE & MATERIALS,REVENUE
Walsall Council,http://opendatacommunities.org/id/metropolitan-district-council/walsall ,WC137-466,30.04.2022,CHILDRENS,ALDRIDGE & BARONS LIMITED,26/04/2022,"2,080.00",6241-Hire of Vehicle with Driver,TRANSPORT,DIRECT TRANSPORT COSTS,REVENUE
Walsall Council,http://opendatacommunities.org/id/metropolitan-district-council/walsall ,WC137-467,30.04.2022,CHILDRENS,ALDRIDGE & BARONS LIMITED,26/04/2022,"2,626.00",6241-Hire of Vehicle with Driver,TRANSPORT,DIRECT TRANSPORT COSTS,REVENUE
Walsall Council,http://opendatacommunities.org/id/metropolitan-district-council/walsall ,WC137-468,30.04.2022,CHILDRENS,ALDRIDGE & BARONS LIMITED,26/04/2022,"2,130.00",6241-Hire of Vehicle with Driver,TRANSPORT,DIRECT TRANSPORT COSTS,REVENUE
Walsall Council,http://opendatacommunities.org/id/metropolitan-district-council/walsall ,WC137-469,30.04.2022,CHILDRENS,ALDRIDGE & BARONS LIMITED,26/04/2022,"1,684.00",6241-Hire of Vehicle with Driver,TRANSPORT,DIRECT TRANSPORT COSTS,REVENUE
Walsall Council,http://opendatacommunities.org/id/metropolitan-district-council/walsall ,WC137-470,30.04.2022,CHILDRENS,ALDRIDGE & BARONS LIMITED,26/04/2022,"2,600.00",6241-Hire of Vehicle with Driver,TRANSPORT,DIRECT TRANSPORT COSTS,REVENUE
Walsall Council,http://opendatacommunities.org/id/metropolitan-district-council/walsall ,WC137-471,30.04.2022,CHILDRENS,ALDRIDGE & BARONS LIMITED,26/04/2022,"1,946.00",6241-Hire of Vehicle with Driver,TRANSPORT,DIRECT TRANSPORT COSTS,REVENUE
Walsall Council,http://opendatacommunities.org/id/metropolitan-district-council/walsall ,WC137-472,30.04.2022,CHILDRENS,ALDRIDGE & BARONS LIMITED,26/04/2022,"2,200.00",6241-Hire of Vehicle with Driver,TRANSPORT,DIRECT TRANSPORT COSTS,REVENUE
Walsall Council,http://opendatacommunities.org/id/metropolitan-district-council/walsall ,WC137-473,30.04.2022,CHILDRENS,ALDRIDGE & BARONS LIMITED,26/04/2022,"2,414.00",6241-Hire of Vehicle with Driver,TRANSPORT,DIRECT TRANSPORT COSTS,REVENUE
Walsall Council,http://opendatacommunities.org/id/metropolitan-district-council/walsall ,WC137-474,30.04.2022,CHILDRENS,ALDRIDGE & BARONS LIMITED,26/04/2022,696.00,6241-Hire of Vehicle with Driver,TRANSPORT,DIRECT TRANSPORT COSTS,REVENUE
Walsall Council,http://opendatacommunities.org/id/metropolitan-district-council/walsall ,WC137-475,30.04.2022,CHILDRENS,ALDRIDGE & BARONS LIMITED,26/04/2022,"2,232.00",6241-Hire of Vehicle with Driver,TRANSPORT,DIRECT TRANSPORT COSTS,REVENUE
Walsall Council,http://opendatacommunities.org/id/metropolitan-district-council/walsall ,WC137-476,30.04.2022,CHILDRENS,ALDRIDGE & BARONS LIMITED,26/04/2022,"2,464.00",6241-Hire of Vehicle with Driver,TRANSPORT,DIRECT TRANSPORT COSTS,REVENUE
Walsall Council,http://opendatacommunities.org/id/metropolitan-district-council/walsall ,WC137-477,30.04.2022,CHILDRENS,ALDRIDGE & BARONS LIMITED,26/04/2022,"2,147.60",6241-Hire of Vehicle with Driver,TRANSPORT,DIRECT TRANSPORT COSTS,REVENUE
Walsall Council,http://opendatacommunities.org/id/metropolitan-district-council/walsall ,WC137-478,30.04.2022,CHILDRENS,ALDRIDGE & BARONS LIMITED,26/04/2022,"1,800.00",6241-Hire of Vehicle with Driver,TRANSPORT,DIRECT TRANSPORT COSTS,REVENUE
Walsall Council,http://opendatacommunities.org/id/metropolitan-district-council/walsall ,WC137-479,30.04.2022,CHILDRENS,ALDRIDGE & BARONS LIMITED,26/04/2022,"1,800.00",6241-Hire of Vehicle with Driver,TRANSPORT,DIRECT TRANSPORT COSTS,REVENUE
Walsall Council,http://opendatacommunities.org/id/metropolitan-district-council/walsall ,WC137-480,30.04.2022,CHILDRENS,ALDRIDGE & BARONS LIMITED,26/04/2022,"1,631.15",6241-Hire of Vehicle with Driver,TRANSPORT,DIRECT TRANSPORT COSTS,REVENUE
Walsall Council,http://opendatacommunities.org/id/metropolitan-district-council/walsall ,WC137-481,30.04.2022,CHILDRENS,ALDRIDGE & BARONS LIMITED,26/04/2022,"2,124.00",6241-Hire of Vehicle with Driver,TRANSPORT,DIRECT TRANSPORT COSTS,REVENUE
Walsall Council,http://opendatacommunities.org/id/metropolitan-district-council/walsall ,WC137-482,30.04.2022,CHILDRENS,ALDRIDGE & BARONS LIMITED,26/04/2022,"2,278.00",6241-Hire of Vehicle with Driver,TRANSPORT,DIRECT TRANSPORT COSTS,REVENUE
Walsall Council,http://opendatacommunities.org/id/metropolitan-district-council/walsall ,WC137-483,30.04.2022,CHILDRENS,ALDRIDGE & BARONS LIMITED,26/04/2022,"2,200.20",6241-Hire of Vehicle with Driver,TRANSPORT,DIRECT TRANSPORT COSTS,REVENUE
Walsall Council,http://opendatacommunities.org/id/metropolitan-district-council/walsall ,WC137-484,30.04.2022,CHILDRENS,ALDRIDGE & BARONS LIMITED,26/04/2022,"3,000.00",6241-Hire of Vehicle with Driver,TRANSPORT,DIRECT TRANSPORT COSTS,REVENUE
Walsall Council,http://opendatacommunities.org/id/metropolitan-district-council/walsall ,WC137-485,30.04.2022,CHILDRENS,ALDRIDGE & BARONS LIMITED,26/04/2022,"1,931.40",6241-Hire of Vehicle with Driver,TRANSPORT,DIRECT TRANSPORT COSTS,REVENUE
Walsall Council,http://opendatacommunities.org/id/metropolitan-district-council/walsall ,WC137-486,30.04.2022,CHILDRENS,ALDRIDGE & BARONS LIMITED,26/04/2022,"1,935.00",6241-Hire of Vehicle with Driver,TRANSPORT,DIRECT TRANSPORT COSTS,REVENUE
Walsall Council,http://opendatacommunities.org/id/metropolitan-district-council/walsall ,WC137-487,30.04.2022,CHILDRENS,ALDRIDGE & BARONS LIMITED,26/04/2022,"2,240.00",6241-Hire of Vehicle with Driver,TRANSPORT,DIRECT TRANSPORT COSTS,REVENUE
Walsall Council,http://opendatacommunities.org/id/metropolitan-district-council/walsall ,WC137-488,30.04.2022,CHILDRENS,ALDRIDGE & BARONS LIMITED,26/04/2022,960.00,6241-Hire of Vehicle with Driver,TRANSPORT,DIRECT TRANSPORT COSTS,REVENUE
Walsall Council,http://opendatacommunities.org/id/metropolitan-district-council/walsall ,WC137-489,30.04.2022,CHILDRENS,ALDRIDGE & BARONS LIMITED,26/04/2022,"1,800.00",6241-Hire of Vehicle with Driver,TRANSPORT,DIRECT TRANSPORT COSTS,REVENUE
Walsall Council,http://opendatacommunities.org/id/metropolitan-district-council/walsall ,WC137-490,30.04.2022,CHILDRENS,ALDRIDGE & BARONS LIMITED,26/04/2022,"2,200.00",6241-Hire of Vehicle with Driver,TRANSPORT,DIRECT TRANSPORT COSTS,REVENUE
Walsall Council,http://opendatacommunities.org/id/metropolitan-district-council/walsall ,WC137-491,30.04.2022,CHILDRENS,ALDRIDGE & BARONS LIMITED,26/04/2022,"1,640.00",6241-Hire of Vehicle with Driver,TRANSPORT,DIRECT TRANSPORT COSTS,REVENUE
Walsall Council,http://opendatacommunities.org/id/metropolitan-district-council/walsall ,WC137-492,30.04.2022,CHILDRENS,ALDRIDGE & BARONS LIMITED,26/04/2022,"1,575.60",6241-Hire of Vehicle with Driver,TRANSPORT,DIRECT TRANSPORT COSTS,REVENUE
Walsall Council,http://opendatacommunities.org/id/metropolitan-district-council/walsall ,WC137-493,30.04.2022,CHILDRENS,ALDRIDGE & BARONS LIMITED,26/04/2022,"1,911.60",6241-Hire of Vehicle with Driver,TRANSPORT,DIRECT TRANSPORT COSTS,REVENUE
Walsall Council,http://opendatacommunities.org/id/metropolitan-district-council/walsall ,WC137-494,30.04.2022,CHILDRENS,ALDRIDGE & BARONS LIMITED,26/04/2022,"1,800.00",6241-Hire of Vehicle with Driver,TRANSPORT,DIRECT TRANSPORT COSTS,REVENUE
Walsall Council,http://opendatacommunities.org/id/metropolitan-district-council/walsall ,WC137-495,30.04.2022,CHILDRENS,ALDRIDGE & BARONS LIMITED,26/04/2022,"1,914.00",6241-Hire of Vehicle with Driver,TRANSPORT,DIRECT TRANSPORT COSTS,REVENUE
Walsall Council,http://opendatacommunities.org/id/metropolitan-district-council/walsall ,WC137-496,30.04.2022,CHILDRENS,ALDRIDGE & BARONS LIMITED,26/04/2022,"2,080.00",6241-Hire of Vehicle with Driver,TRANSPORT,DIRECT TRANSPORT COSTS,REVENUE
Walsall Council,http://opendatacommunities.org/id/metropolitan-district-council/walsall ,WC137-497,30.04.2022,CHILDRENS,ALDRIDGE & BARONS LIMITED,26/04/2022,"1,985.00",6241-Hire of Vehicle with Driver,TRANSPORT,DIRECT TRANSPORT COSTS,REVENUE
Walsall Council,http://opendatacommunities.org/id/metropolitan-district-council/walsall ,WC137-498,30.04.2022,CHILDRENS,ALDRIDGE & BARONS LIMITED,26/04/2022,"1,500.00",6241-Hire of Vehicle with Driver,TRANSPORT,DIRECT TRANSPORT COSTS,REVENUE
Walsall Council,http://opendatacommunities.org/id/metropolitan-district-council/walsall ,WC137-499,30.04.2022,ADULT SOCIAL CARE,REDACTED,07/04/2022,"1,508.12",6541-Direct Payment,THIRD PARTY PAYMENTS,PRIVATE CONTRACTOR,REVENUE
Walsall Council,http://opendatacommunities.org/id/metropolitan-district-council/walsall ,WC137-500,30.04.2022,ADULT SOCIAL CARE,ALEXANDRA HOUSE CARE SERVICES LTD T/A STONEBRIDGE NURSING HOME,11/04/2022,"7,434.72",6541-Residential,THIRD PARTY PAYMENTS,PRIVATE CONTRACTOR,REVENUE
Walsall Council,http://opendatacommunities.org/id/metropolitan-district-council/walsall ,WC137-501,30.04.2022,ADULT SOCIAL CARE,REDACTED,07/04/2022,965.99,6541-Direct Payment,THIRD PARTY PAYMENTS,PRIVATE CONTRACTOR,REVENUE
Walsall Council,http://opendatacommunities.org/id/metropolitan-district-council/walsall ,WC137-502,30.04.2022,CHILDRENS,REDACTED,06/04/2022,318.68,6223-Special Guardianship Orders,TRANSFER PAYMENTS,CHILDREN SOCIAL SERVICES CLIENT,REVENUE
Walsall Council,http://opendatacommunities.org/id/metropolitan-district-council/walsall ,WC137-503,30.04.2022,RESOURCES AND TRANSFORMATION,ALLIED PUBLICITY SERVICES (MANCHESTER) LIMITED T/A APS GROUP,25/04/2022,921.96,6312-External Printing Services,SUPPLIES & SERVICES,PRINTING STATIONERY & GENERAL OFFICE,REVENUE
Walsall Council,http://opendatacommunities.org/id/metropolitan-district-council/walsall ,WC137-504,30.04.2022,ADULT SOCIAL CARE,ALMA COURT,11/04/2022,"3,826.96",6541-Nursing EMI,THIRD PARTY PAYMENTS,PRIVATE CONTRACTOR,REVENUE
Walsall Council,http://opendatacommunities.org/id/metropolitan-district-council/walsall ,WC137-505,30.04.2022,ADULT SOCIAL CARE,ALMA COURT,11/04/2022,"4,764.88",6541-Nursing EMI,THIRD PARTY PAYMENTS,PRIVATE CONTRACTOR,REVENUE
Walsall Council,http://opendatacommunities.org/id/metropolitan-district-council/walsall ,WC137-506,30.04.2022,ADULT SOCIAL CARE,ALMA COURT,11/04/2022,"4,200.00",6541-Residential,THIRD PARTY PAYMENTS,PRIVATE CONTRACTOR,REVENUE
Walsall Council,http://opendatacommunities.org/id/metropolitan-district-council/walsall ,WC137-507,30.04.2022,ADULT SOCIAL CARE,ALMA COURT,11/04/2022,"3,626.96",6541-Nursing EMI,THIRD PARTY PAYMENTS,PRIVATE CONTRACTOR,REVENUE
Walsall Council,http://opendatacommunities.org/id/metropolitan-district-council/walsall ,WC137-508,30.04.2022,ADULT SOCIAL CARE,ALMA COURT,11/04/2022,"6,619.12",6541-Residential,THIRD PARTY PAYMENTS,PRIVATE CONTRACTOR,REVENUE
Walsall Council,http://opendatacommunities.org/id/metropolitan-district-council/walsall ,WC137-509,30.04.2022,ADULT SOCIAL CARE,ALMA COURT,11/04/2022,"4,200.00",6541-Nursing EMI,THIRD PARTY PAYMENTS,PRIVATE CONTRACTOR,REVENUE
Walsall Council,http://opendatacommunities.org/id/metropolitan-district-council/walsall ,WC137-510,30.04.2022,CHILDRENS,ALMOZENE NURSERY & CHILDRENS CENTRE,12/04/2022,"5,579.44",1184-Other-Grants to Other Orgs,SUPPLIES & SERVICES,GRANTS (EXP) & SUBSCRIPTIONS,REVENUE
Walsall Council,http://opendatacommunities.org/id/metropolitan-district-council/walsall ,WC137-511,30.04.2022,CHILDRENS,ALMOZENE NURSERY & CHILDRENS CENTRE,12/04/2022,"11,536.20",1184-Other-Grants to Other Orgs,SUPPLIES & SERVICES,GRANTS (EXP) & SUBSCRIPTIONS,REVENUE
Walsall Council,http://opendatacommunities.org/id/metropolitan-district-council/walsall ,WC137-512,30.04.2022,CHILDRENS,ALMOZENE NURSERY & CHILDRENS CENTRE,01/04/2022,"1,299.60",1184-Other-Grants to Other Orgs,SUPPLIES & SERVICES,GRANTS (EXP) & SUBSCRIPTIONS,REVENUE
Walsall Council,http://opendatacommunities.org/id/metropolitan-district-council/walsall ,WC137-513,30.04.2022,"ECONOMY, ENVIRONMENT & COMMUNITIES",ALMOZENE NURSERY & CHILDRENS CENTRE,12/04/2022,500.00,6313-Grants to Other Orgs,SUPPLIES & SERVICES,GRANTS (EXP) & SUBSCRIPTIONS,REVENUE
Walsall Council,http://opendatacommunities.org/id/metropolitan-district-council/walsall ,WC137-514,30.04.2022,"ECONOMY, ENVIRONMENT & COMMUNITIES",ALMOZENE NURSERY & CHILDRENS CENTRE,27/04/2022,677.87,6313-Grants to Other Orgs,SUPPLIES & SERVICES,GRANTS (EXP) & SUBSCRIPTIONS,REVENUE
Walsall Council,http://opendatacommunities.org/id/metropolitan-district-council/walsall ,WC137-515,30.04.2022,"ECONOMY, ENVIRONMENT & COMMUNITIES",ALMOZENE NURSERY & CHILDRENS CENTRE,27/04/2022,"1,027.76",6313-Grants to Other Orgs,SUPPLIES & SERVICES,GRANTS (EXP) & SUBSCRIPTIONS,REVENUE
Walsall Council,http://opendatacommunities.org/id/metropolitan-district-council/walsall ,WC137-516,30.04.2022,"ECONOMY, ENVIRONMENT & COMMUNITIES",ALMOZENE NURSERY & CHILDRENS CENTRE,12/04/2022,623.20,6313-Grants to Other Orgs,SUPPLIES & SERVICES,GRANTS (EXP) & SUBSCRIPTIONS,REVENUE
Walsall Council,http://opendatacommunities.org/id/metropolitan-district-council/walsall ,WC137-517,30.04.2022,"ECONOMY, ENVIRONMENT & COMMUNITIES",ALMOZENE NURSERY & CHILDRENS CENTRE,12/04/2022,623.70,6313-Grants to Other Orgs,SUPPLIES & SERVICES,GRANTS (EXP) & SUBSCRIPTIONS,REVENUE
Walsall Council,http://opendatacommunities.org/id/metropolitan-district-council/walsall ,WC137-518,30.04.2022,ADULT SOCIAL CARE,ALPHA HEALTH CARE LTD,11/04/2022,"3,091.28",6541-Nursing EMI,THIRD PARTY PAYMENTS,PRIVATE CONTRACTOR,REVENUE
Walsall Council,http://opendatacommunities.org/id/metropolitan-district-council/walsall ,WC137-519,30.04.2022,ADULT SOCIAL CARE,ALPHA HEALTH CARE LTD,11/04/2022,"7,000.00",6541-Residential,THIRD PARTY PAYMENTS,PRIVATE CONTRACTOR,REVENUE
Walsall Council,http://opendatacommunities.org/id/metropolitan-district-council/walsall ,WC137-520,30.04.2022,ADULT SOCIAL CARE,ALPHA HEALTH CARE LTD,11/04/2022,"2,722.96",6541-Nursing EMI,THIRD PARTY PAYMENTS,PRIVATE CONTRACTOR,REVENUE
Walsall Council,http://opendatacommunities.org/id/metropolitan-district-council/walsall ,WC137-521,30.04.2022,ADULT SOCIAL CARE,ALPHA HEALTH CARE LTD,11/04/2022,"7,026.96",6541-Nursing EMI,THIRD PARTY PAYMENTS,PRIVATE CONTRACTOR,REVENUE
Walsall Council,http://opendatacommunities.org/id/metropolitan-district-council/walsall ,WC137-522,30.04.2022,ADULT SOCIAL CARE,ALPHA HEALTH CARE LTD,11/04/2022,"2,331.08",6541-Residential EMI,THIRD PARTY PAYMENTS,PRIVATE CONTRACTOR,REVENUE
Walsall Council,http://opendatacommunities.org/id/metropolitan-district-council/walsall ,WC137-523,30.04.2022,ADULT SOCIAL CARE,ALPHA HEALTH CARE LTD,11/04/2022,"2,731.08",6541-Residential EMI,THIRD PARTY PAYMENTS,PRIVATE CONTRACTOR,REVENUE
Walsall Council,http://opendatacommunities.org/id/metropolitan-district-council/walsall ,WC137-524,30.04.2022,ADULT SOCIAL CARE,ALPHA HEALTH CARE LTD,11/04/2022,"3,062.96",6541-Nursing EMI,THIRD PARTY PAYMENTS,PRIVATE CONTRACTOR,REVENUE
Walsall Council,http://opendatacommunities.org/id/metropolitan-district-council/walsall ,WC137-525,30.04.2022,ADULT SOCIAL CARE,ALPHA HEALTH CARE LTD,11/04/2022,"3,900.00",6541-Residential,THIRD PARTY PAYMENTS,PRIVATE CONTRACTOR,REVENUE
Walsall Council,http://opendatacommunities.org/id/metropolitan-district-council/walsall ,WC137-526,30.04.2022,ADULT SOCIAL CARE,ALPHA HEALTH CARE LTD,11/04/2022,"3,800.00",6541-Nursing,THIRD PARTY PAYMENTS,PRIVATE CONTRACTOR,REVENUE
Walsall Council,http://opendatacommunities.org/id/metropolitan-district-council/walsall ,WC137-527,30.04.2022,ADULT SOCIAL CARE,ALPHA HEALTH CARE LTD,11/04/2022,"3,091.28",6541-Nursing EMI,THIRD PARTY PAYMENTS,PRIVATE CONTRACTOR,REVENUE
Walsall Council,http://opendatacommunities.org/id/metropolitan-district-council/walsall ,WC137-528,30.04.2022,ADULT SOCIAL CARE,ALPHA HEALTH CARE LTD,11/04/2022,"3,363.08",6541-Residential EMI,THIRD PARTY PAYMENTS,PRIVATE CONTRACTOR,REVENUE
Walsall Council,http://opendatacommunities.org/id/metropolitan-district-council/walsall ,WC137-529,30.04.2022,ADULT SOCIAL CARE,ALPHA HEALTH CARE LTD,11/04/2022,"3,049.60",6541-Nursing EMI,THIRD PARTY PAYMENTS,PRIVATE CONTRACTOR,REVENUE
Walsall Council,http://opendatacommunities.org/id/metropolitan-district-council/walsall ,WC137-530,30.04.2022,ADULT SOCIAL CARE,ALPHA HEALTH CARE LTD,11/04/2022,"7,140.00",6541-Residential,THIRD PARTY PAYMENTS,PRIVATE CONTRACTOR,REVENUE
Walsall Council,http://opendatacommunities.org/id/metropolitan-district-council/walsall ,WC137-531,30.04.2022,ADULT SOCIAL CARE,ALPHA HEALTH CARE LTD,11/04/2022,"3,992.86",6541-Residential & Nursing Care Placements,THIRD PARTY PAYMENTS,PRIVATE CONTRACTOR,REVENUE
Walsall Council,http://opendatacommunities.org/id/metropolitan-district-council/walsall ,WC137-532,30.04.2022,ADULT SOCIAL CARE,ALPHA HEALTH CARE LTD,11/04/2022,"3,340.00",6541-Residential EMI,THIRD PARTY PAYMENTS,PRIVATE CONTRACTOR,REVENUE
Walsall Council,http://opendatacommunities.org/id/metropolitan-district-council/walsall ,WC137-533,30.04.2022,ADULT SOCIAL CARE,ALPHA HEALTH CARE LTD,11/04/2022,"3,340.00",6541-Residential EMI,THIRD PARTY PAYMENTS,PRIVATE CONTRACTOR,REVENUE
Walsall Council,http://opendatacommunities.org/id/metropolitan-district-council/walsall ,WC137-534,30.04.2022,ADULT SOCIAL CARE,ALPHA HEALTH CARE LTD,11/04/2022,"2,722.96",6541-Nursing EMI,THIRD PARTY PAYMENTS,PRIVATE CONTRACTOR,REVENUE
Walsall Council,http://opendatacommunities.org/id/metropolitan-district-council/walsall ,WC137-535,30.04.2022,ADULT SOCIAL CARE,ALPHA HEALTH CARE LTD,11/04/2022,"2,961.72",6541-Nursing,THIRD PARTY PAYMENTS,PRIVATE CONTRACTOR,REVENUE
Walsall Council,http://opendatacommunities.org/id/metropolitan-district-council/walsall ,WC137-536,30.04.2022,ADULT SOCIAL CARE,ALPHA HEALTH CARE LTD,11/04/2022,"3,626.96",6541-Nursing EMI,THIRD PARTY PAYMENTS,PRIVATE CONTRACTOR,REVENUE
Walsall Council,http://opendatacommunities.org/id/metropolitan-district-council/walsall ,WC137-537,30.04.2022,ADULT SOCIAL CARE,ALPHA HEALTH CARE LTD,11/04/2022,"2,854.56",6541-Residential EMI,THIRD PARTY PAYMENTS,PRIVATE CONTRACTOR,REVENUE
Walsall Council,http://opendatacommunities.org/id/metropolitan-district-council/walsall ,WC137-538,30.04.2022,ADULT SOCIAL CARE,ALPHA HEALTH CARE LTD,11/04/2022,"2,722.96",6541-Nursing EMI,THIRD PARTY PAYMENTS,PRIVATE CONTRACTOR,REVENUE
Walsall Council,http://opendatacommunities.org/id/metropolitan-district-council/walsall ,WC137-539,30.04.2022,ADULT SOCIAL CARE,ALPHA HEALTH CARE LTD,11/04/2022,"-2,664.09",6541-Residential EMI,THIRD PARTY PAYMENTS,PRIVATE CONTRACTOR,REVENUE
Walsall Council,http://opendatacommunities.org/id/metropolitan-district-council/walsall ,WC137-540,30.04.2022,ADULT SOCIAL CARE,ALPHA HEALTH CARE LTD,11/04/2022,"6,249.60",6541-Residential,THIRD PARTY PAYMENTS,PRIVATE CONTRACTOR,REVENUE
Walsall Council,http://opendatacommunities.org/id/metropolitan-district-council/walsall ,WC137-541,30.04.2022,ADULT SOCIAL CARE,ALPHA HEALTH CARE LTD,11/04/2022,"5,656.00",6541-Residential,THIRD PARTY PAYMENTS,PRIVATE CONTRACTOR,REVENUE
Walsall Council,http://opendatacommunities.org/id/metropolitan-district-council/walsall ,WC137-542,30.04.2022,ADULT SOCIAL CARE,ALPHA HEALTH CARE LTD,11/04/2022,"3,064.32",6541-Nursing EMI,THIRD PARTY PAYMENTS,PRIVATE CONTRACTOR,REVENUE
Walsall Council,http://opendatacommunities.org/id/metropolitan-district-council/walsall ,WC137-543,30.04.2022,ADULT SOCIAL CARE,ALPHA HEALTH CARE LTD,11/04/2022,"3,049.60",6541-Nursing,THIRD PARTY PAYMENTS,PRIVATE CONTRACTOR,REVENUE
Walsall Council,http://opendatacommunities.org/id/metropolitan-district-council/walsall ,WC137-544,30.04.2022,ADULT SOCIAL CARE,ALPHA HEALTH CARE LTD,11/04/2022,"2,600.00",6541-Residential,THIRD PARTY PAYMENTS,PRIVATE CONTRACTOR,REVENUE
Walsall Council,http://opendatacommunities.org/id/metropolitan-district-council/walsall ,WC137-545,30.04.2022,CHILDRENS,ALPHABIOLABS,22/04/2022,716.00,6220-School Only Payments - Catering,THIRD PARTY PAYMENTS,INDEPENDENT UNIT WITHIN COUNCIL,REVENUE
Walsall Council,http://opendatacommunities.org/id/metropolitan-district-council/walsall ,WC137-546,30.04.2022,CHILDRENS,ALPHABIOLABS,04/04/2022,569.00,6220-School Only Payments - Catering,THIRD PARTY PAYMENTS,INDEPENDENT UNIT WITHIN COUNCIL,REVENUE
Walsall Council,http://opendatacommunities.org/id/metropolitan-district-council/walsall ,WC137-547,30.04.2022,CHILDRENS,ALPHABIOLABS,27/04/2022,"1,929.00",6220-School Only Payments - Catering,THIRD PARTY PAYMENTS,INDEPENDENT UNIT WITHIN COUNCIL,REVENUE
Walsall Council,http://opendatacommunities.org/id/metropolitan-district-council/walsall ,WC137-548,30.04.2022,CHILDRENS,AMAH NURSERIES LIMITED T/A BANANA MOON WALSALL,12/04/2022,"7,173.56",1184-Other-Grants to Other Orgs,SUPPLIES & SERVICES,GRANTS (EXP) & SUBSCRIPTIONS,REVENUE
Walsall Council,http://opendatacommunities.org/id/metropolitan-district-council/walsall ,WC137-549,30.04.2022,CHILDRENS,AMAH NURSERIES LIMITED T/A BANANA MOON WALSALL,12/04/2022,"35,287.20",1184-Other-Grants to Other Orgs,SUPPLIES & SERVICES,GRANTS (EXP) & SUBSCRIPTIONS,REVENUE
Walsall Council,http://opendatacommunities.org/id/metropolitan-district-council/walsall ,WC137-550,30.04.2022,CHILDRENS,AMANS TRAVEL LTD,26/04/2022,"3,800.00",6241-Hire of Vehicle with Driver,TRANSPORT,DIRECT TRANSPORT COSTS,REVENUE
Walsall Council,http://opendatacommunities.org/id/metropolitan-district-council/walsall ,WC137-551,30.04.2022,CHILDRENS,AMANS TRAVEL LTD,26/04/2022,"3,800.00",6241-Hire of Vehicle with Driver,TRANSPORT,DIRECT TRANSPORT COSTS,REVENUE
Walsall Council,http://opendatacommunities.org/id/metropolitan-district-council/walsall ,WC137-552,30.04.2022,CHILDRENS,AMANS TRAVEL LTD,26/04/2022,"3,800.00",6241-Hire of Vehicle with Driver,TRANSPORT,DIRECT TRANSPORT COSTS,REVENUE
Walsall Council,http://opendatacommunities.org/id/metropolitan-district-council/walsall ,WC137-553,30.04.2022,ADULT SOCIAL CARE,REDACTED,07/04/2022,"1,641.48",6541-Direct Payment,THIRD PARTY PAYMENTS,PRIVATE CONTRACTOR,REVENUE
Walsall Council,http://opendatacommunities.org/id/metropolitan-district-council/walsall ,WC137-554,30.04.2022,RESOURCES AND TRANSFORMATION,AMBUR RADIO,04/04/2022,"8,958.79",6312-Grants to Other Orgs,SUPPLIES & SERVICES,GRANTS (EXP) & SUBSCRIPTIONS,REVENUE
Walsall Council,http://opendatacommunities.org/id/metropolitan-district-council/walsall ,WC137-555,30.04.2022,"ECONOMY, ENVIRONMENT & COMMUNITIES",AMEY LG LIMITED,04/04/2022,461.71,6430-Repair & Maintenance of Furniture & Equipment,SUPPLIES & SERVICES,EQUIPMENT FURNITURE & MATERIALS,REVENUE
Walsall Council,http://opendatacommunities.org/id/metropolitan-district-council/walsall ,WC137-556,30.04.2022,"ECONOMY, ENVIRONMENT & COMMUNITIES",AMEY LG LIMITED,22/04/2022,"-4,914.93",6411-Repair & Maintenance of Furniture & Equipment,SUPPLIES & SERVICES,EQUIPMENT FURNITURE & MATERIALS,REVENUE
Walsall Council,http://opendatacommunities.org/id/metropolitan-district-council/walsall ,WC137-557,30.04.2022,"ECONOMY, ENVIRONMENT & COMMUNITIES",AMEY LG LIMITED,22/04/2022,"4,914.93",6411-Repair & Maintenance of Furniture & Equipment,SUPPLIES & SERVICES,EQUIPMENT FURNITURE & MATERIALS,REVENUE
Walsall Council,http://opendatacommunities.org/id/metropolitan-district-council/walsall ,WC137-558,30.04.2022,ECONOMY & ENVIRONMENT CAPITAL,AMEY LG LIMITED,22/04/2022,"-2,554.07",7200-Site Works Contractors,CAPITAL,"NEW CONSTRUCTION,CONVERSION & RENOVATION",CAPITAL
Walsall Council,http://opendatacommunities.org/id/metropolitan-district-council/walsall ,WC137-559,30.04.2022,ECONOMY & ENVIRONMENT CAPITAL,AMEY LG LIMITED,22/04/2022,"2,554.07",7200-Site Works Contractors,CAPITAL,"NEW CONSTRUCTION,CONVERSION & RENOVATION",CAPITAL
Walsall Council,http://opendatacommunities.org/id/metropolitan-district-council/walsall ,WC137-560,30.04.2022,ECONOMY & ENVIRONMENT CAPITAL,AMEY LG LIMITED,22/04/2022,"-1,476.19",7200-Site Works Contractors,CAPITAL,"NEW CONSTRUCTION,CONVERSION & RENOVATION",CAPITAL
Walsall Council,http://opendatacommunities.org/id/metropolitan-district-council/walsall ,WC137-561,30.04.2022,ECONOMY & ENVIRONMENT CAPITAL,AMEY LG LIMITED,22/04/2022,"1,476.19",7200-Site Works Contractors,CAPITAL,"NEW CONSTRUCTION,CONVERSION & RENOVATION",CAPITAL
Walsall Council,http://opendatacommunities.org/id/metropolitan-district-council/walsall ,WC137-562,30.04.2022,ECONOMY & ENVIRONMENT CAPITAL,AMEY LG LIMITED,22/04/2022,"15,157.96",7200-Site Works Contractors,CAPITAL,"NEW CONSTRUCTION,CONVERSION & RENOVATION",CAPITAL
Walsall Council,http://opendatacommunities.org/id/metropolitan-district-council/walsall ,WC137-563,30.04.2022,ECONOMY & ENVIRONMENT CAPITAL,AMEY LG LIMITED,27/04/2022,"1,455.54",7200-Site Works Contractors,CAPITAL,"NEW CONSTRUCTION,CONVERSION & RENOVATION",CAPITAL
Walsall Council,http://opendatacommunities.org/id/metropolitan-district-council/walsall ,WC137-564,30.04.2022,"ECONOMY, ENVIRONMENT & COMMUNITIES",AMEY LG LIMITED,22/04/2022,"-2,536.45",6430-Materials,SUPPLIES & SERVICES,EQUIPMENT FURNITURE & MATERIALS,REVENUE
Walsall Council,http://opendatacommunities.org/id/metropolitan-district-council/walsall ,WC137-565,30.04.2022,"ECONOMY, ENVIRONMENT & COMMUNITIES",AMEY LG LIMITED,22/04/2022,"2,536.45",6430-Materials,SUPPLIES & SERVICES,EQUIPMENT FURNITURE & MATERIALS,REVENUE
Walsall Council,http://opendatacommunities.org/id/metropolitan-district-council/walsall ,WC137-566,30.04.2022,ECONOMY & ENVIRONMENT CAPITAL,AMEY LG LIMITED,22/04/2022,463.60,7200-Project Fees,CAPITAL,"NEW CONSTRUCTION,CONVERSION & RENOVATION",CAPITAL
Walsall Council,http://opendatacommunities.org/id/metropolitan-district-council/walsall ,WC137-567,30.04.2022,ECONOMY & ENVIRONMENT CAPITAL,AMEY LG LIMITED,22/04/2022,"5,530.48",7200-Site Works Contractors,CAPITAL,"NEW CONSTRUCTION,CONVERSION & RENOVATION",CAPITAL
Walsall Council,http://opendatacommunities.org/id/metropolitan-district-council/walsall ,WC137-568,30.04.2022,RESOURCES AND TRANSFORMATION,AMEY LG LIMITED,22/04/2022,"-4,462.91",6313-Professional Fees & Services,SUPPLIES & SERVICES,SERVICES,REVENUE
Walsall Council,http://opendatacommunities.org/id/metropolitan-district-council/walsall ,WC137-569,30.04.2022,RESOURCES AND TRANSFORMATION,AMEY LG LIMITED,22/04/2022,"4,462.91",6313-Professional Fees & Services,SUPPLIES & SERVICES,SERVICES,REVENUE
Walsall Council,http://opendatacommunities.org/id/metropolitan-district-council/walsall ,WC137-570,30.04.2022,ECONOMY & ENVIRONMENT CAPITAL,AMEY LG LIMITED,22/04/2022,"6,634.02",7200-Site Works Contractors,CAPITAL,"NEW CONSTRUCTION,CONVERSION & RENOVATION",CAPITAL
Walsall Council,http://opendatacommunities.org/id/metropolitan-district-council/walsall ,WC137-571,30.04.2022,"ECONOMY, ENVIRONMENT & COMMUNITIES",AMEY LG LIMITED,26/04/2022,"12,836.55",6411-Materials,SUPPLIES & SERVICES,EQUIPMENT FURNITURE & MATERIALS,REVENUE
Walsall Council,http://opendatacommunities.org/id/metropolitan-district-council/walsall ,WC137-572,30.04.2022,"ECONOMY, ENVIRONMENT & COMMUNITIES",AMEY LG LIMITED,27/04/2022,403.51,6430-Repair & Maintenance of Furniture & Equipment,SUPPLIES & SERVICES,EQUIPMENT FURNITURE & MATERIALS,REVENUE
Walsall Council,http://opendatacommunities.org/id/metropolitan-district-council/walsall ,WC137-573,30.04.2022,"ECONOMY, ENVIRONMENT & COMMUNITIES",AMEY LG LIMITED,29/04/2022,"1,128.80",6430-Repair & Maintenance of Furniture & Equipment,SUPPLIES & SERVICES,EQUIPMENT FURNITURE & MATERIALS,REVENUE
Walsall Council,http://opendatacommunities.org/id/metropolitan-district-council/walsall ,WC137-574,30.04.2022,ECONOMY & ENVIRONMENT CAPITAL,AMEY OW LTD,08/04/2022,"19,448.17",7200-Project Fees,CAPITAL,"NEW CONSTRUCTION,CONVERSION & RENOVATION",CAPITAL
Walsall Council,http://opendatacommunities.org/id/metropolitan-district-council/walsall ,WC137-575,30.04.2022,ECONOMY & ENVIRONMENT CAPITAL,AMEY OW LTD,22/04/2022,"15,263.39",7200-Project Fees,CAPITAL,"NEW CONSTRUCTION,CONVERSION & RENOVATION",CAPITAL
Walsall Council,http://opendatacommunities.org/id/metropolitan-district-council/walsall ,WC137-576,30.04.2022,ADULT SOCIAL CARE,AMG NURSING CARE SERVICES,07/04/2022,"15,507.77",6541-Community Supported Living/Supported Accommodation,THIRD PARTY PAYMENTS,PRIVATE CONTRACTOR,REVENUE
Walsall Council,http://opendatacommunities.org/id/metropolitan-district-council/walsall ,WC137-577,30.04.2022,ADULT SOCIAL CARE,AMG NURSING CARE SERVICES,07/04/2022,"4,032.08",6541-Community Supported Living/Supported Accommodation,THIRD PARTY PAYMENTS,PRIVATE CONTRACTOR,REVENUE
Walsall Council,http://opendatacommunities.org/id/metropolitan-district-council/walsall ,WC137-578,30.04.2022,CHILDRENS,AMG NURSING CARE SERVICES,11/04/2022,"1,322.36",6220-Accommodation and Related Costs-Assistance to S/S Clients,TRANSFER PAYMENTS,ADULT SOCIAL SERVICES CLIENT,REVENUE
Walsall Council,http://opendatacommunities.org/id/metropolitan-district-council/walsall ,WC137-579,30.04.2022,CHILDRENS,AMG NURSING CARE SERVICES,12/04/2022,397.56,6220-Professional Fees & Services,SUPPLIES & SERVICES,SERVICES,REVENUE
Walsall Council,http://opendatacommunities.org/id/metropolitan-district-council/walsall ,WC137-580,30.04.2022,CHILDRENS,AMG NURSING CARE SERVICES,12/04/2022,938.86,6220-Accommodation and Related Costs-Assistance to S/S Clients,TRANSFER PAYMENTS,ADULT SOCIAL SERVICES CLIENT,REVENUE
Walsall Council,http://opendatacommunities.org/id/metropolitan-district-council/walsall ,WC137-581,30.04.2022,CHILDRENS,AMG NURSING CARE SERVICES,12/04/2022,406.60,6220-Professional Fees & Services,SUPPLIES & SERVICES,SERVICES,REVENUE
Walsall Council,http://opendatacommunities.org/id/metropolitan-district-council/walsall ,WC137-582,30.04.2022,CHILDRENS,AMG NURSING CARE SERVICES,12/04/2022,"1,137.24",6220-Accommodation and Related Costs-Assistance to S/S Clients,TRANSFER PAYMENTS,ADULT SOCIAL SERVICES CLIENT,REVENUE
Walsall Council,http://opendatacommunities.org/id/metropolitan-district-council/walsall ,WC137-583,30.04.2022,CHILDRENS,AMG NURSING CARE SERVICES,26/04/2022,403.16,6220-Professional Fees & Services,SUPPLIES & SERVICES,SERVICES,REVENUE
Walsall Council,http://opendatacommunities.org/id/metropolitan-district-council/walsall ,WC137-584,30.04.2022,CHILDRENS,AMG NURSING CARE SERVICES,25/04/2022,555.36,6220-Accommodation and Related Costs-Assistance to S/S Clients,TRANSFER PAYMENTS,ADULT SOCIAL SERVICES CLIENT,REVENUE
Walsall Council,http://opendatacommunities.org/id/metropolitan-district-council/walsall ,WC137-585,30.04.2022,CHILDRENS,AMG NURSING CARE SERVICES,26/04/2022,406.60,6220-Professional Fees & Services,SUPPLIES & SERVICES,SERVICES,REVENUE
Walsall Council,http://opendatacommunities.org/id/metropolitan-district-council/walsall ,WC137-586,30.04.2022,"ECONOMY, ENVIRONMENT & COMMUNITIES",AMICK PRODUCTIONS LTD,13/04/2022,"6,837.70",6414-Professional Fees & Services,SUPPLIES & SERVICES,SERVICES,REVENUE
Walsall Council,http://opendatacommunities.org/id/metropolitan-district-council/walsall ,WC137-587,30.04.2022,CHILDRENS,REDACTED,06/04/2022,599.43,6223-Foster Carers Maintenance Allowance,TRANSFER PAYMENTS,CHILDREN SOCIAL SERVICES CLIENT,REVENUE
Walsall Council,http://opendatacommunities.org/id/metropolitan-district-council/walsall ,WC137-588,30.04.2022,CHILDRENS,REDACTED,06/04/2022,340.00,6223-Internal Foster Carers-Carer Fees,TRANSFER PAYMENTS,CHILDREN SOCIAL SERVICES CLIENT,REVENUE
Walsall Council,http://opendatacommunities.org/id/metropolitan-district-council/walsall ,WC137-589,30.04.2022,ADULT SOCIAL CARE,ANCHOR CARE HOMES LTD,11/04/2022,"2,331.08",6541-Residential EMI,THIRD PARTY PAYMENTS,PRIVATE CONTRACTOR,REVENUE
Walsall Council,http://opendatacommunities.org/id/metropolitan-district-council/walsall ,WC137-590,30.04.2022,ADULT SOCIAL CARE,ANCHOR CAREHOMES LTD - HARDEN HALL,11/04/2022,"2,331.08",6541-Residential EMI,THIRD PARTY PAYMENTS,PRIVATE CONTRACTOR,REVENUE
Walsall Council,http://opendatacommunities.org/id/metropolitan-district-council/walsall ,WC137-591,30.04.2022,ADULT SOCIAL CARE,ANCHOR CAREHOMES LTD - HARDEN HALL,11/04/2022,"2,331.08",6541-Residential EMI,THIRD PARTY PAYMENTS,PRIVATE CONTRACTOR,REVENUE
Walsall Council,http://opendatacommunities.org/id/metropolitan-district-council/walsall ,WC137-592,30.04.2022,ADULT SOCIAL CARE,ANCHOR CAREHOMES LTD - HARDEN HALL,11/04/2022,"2,331.08",6541-Residential EMI,THIRD PARTY PAYMENTS,PRIVATE CONTRACTOR,REVENUE
Walsall Council,http://opendatacommunities.org/id/metropolitan-district-council/walsall ,WC137-593,30.04.2022,ADULT SOCIAL CARE,ANCHOR CAREHOMES LTD - HARDEN HALL,11/04/2022,"2,331.08",6541-Residential EMI,THIRD PARTY PAYMENTS,PRIVATE CONTRACTOR,REVENUE
Walsall Council,http://opendatacommunities.org/id/metropolitan-district-council/walsall ,WC137-594,30.04.2022,ADULT SOCIAL CARE,ANCHOR CAREHOMES LTD - HARDEN HALL,11/04/2022,"2,331.08",6541-Residential EMI,THIRD PARTY PAYMENTS,PRIVATE CONTRACTOR,REVENUE
Walsall Council,http://opendatacommunities.org/id/metropolitan-district-council/walsall ,WC137-595,30.04.2022,ADULT SOCIAL CARE,ANCHOR CAREHOMES LTD - HARDEN HALL,11/04/2022,"2,331.08",6541-Residential EMI,THIRD PARTY PAYMENTS,PRIVATE CONTRACTOR,REVENUE
Walsall Council,http://opendatacommunities.org/id/metropolitan-district-council/walsall ,WC137-596,30.04.2022,ADULT SOCIAL CARE,ANCHOR CAREHOMES LTD - HARDEN HALL,11/04/2022,"2,294.56",6541-Residential EMI,THIRD PARTY PAYMENTS,PRIVATE CONTRACTOR,REVENUE
Walsall Council,http://opendatacommunities.org/id/metropolitan-district-council/walsall ,WC137-597,30.04.2022,ADULT SOCIAL CARE,ANCHOR CAREHOMES LTD - HARDEN HALL,11/04/2022,"2,331.08",6541-Residential EMI,THIRD PARTY PAYMENTS,PRIVATE CONTRACTOR,REVENUE
Walsall Council,http://opendatacommunities.org/id/metropolitan-district-council/walsall ,WC137-598,30.04.2022,ADULT SOCIAL CARE,ANCHOR CAREHOMES LTD - HARDEN HALL,11/04/2022,"2,691.08",6541-Residential EMI,THIRD PARTY PAYMENTS,PRIVATE CONTRACTOR,REVENUE
Walsall Council,http://opendatacommunities.org/id/metropolitan-district-council/walsall ,WC137-599,30.04.2022,ADULT SOCIAL CARE,ANCHOR CAREHOMES LTD - HARDEN HALL,11/04/2022,"2,531.08",6541-Residential EMI,THIRD PARTY PAYMENTS,PRIVATE CONTRACTOR,REVENUE
Walsall Council,http://opendatacommunities.org/id/metropolitan-district-council/walsall ,WC137-600,30.04.2022,ADULT SOCIAL CARE,ANCHOR CAREHOMES LTD - HARDEN HALL,11/04/2022,"2,382.04",6541-Residential EMI,THIRD PARTY PAYMENTS,PRIVATE CONTRACTOR,REVENUE
Walsall Council,http://opendatacommunities.org/id/metropolitan-district-council/walsall ,WC137-601,30.04.2022,ADULT SOCIAL CARE,ANCHOR CAREHOMES LTD - HARDEN HALL,11/04/2022,"2,064.44",6541-Residential,THIRD PARTY PAYMENTS,PRIVATE CONTRACTOR,REVENUE
Walsall Council,http://opendatacommunities.org/id/metropolitan-district-council/walsall ,WC137-602,30.04.2022,ADULT SOCIAL CARE,ANCHOR CAREHOMES LTD - HARDEN HALL,11/04/2022,"2,331.08",6541-Residential EMI,THIRD PARTY PAYMENTS,PRIVATE CONTRACTOR,REVENUE
Walsall Council,http://opendatacommunities.org/id/metropolitan-district-council/walsall ,WC137-603,30.04.2022,ADULT SOCIAL CARE,ANCHOR CAREHOMES LTD - HARDEN HALL,11/04/2022,"2,331.08",6541-Residential EMI,THIRD PARTY PAYMENTS,PRIVATE CONTRACTOR,REVENUE
Walsall Council,http://opendatacommunities.org/id/metropolitan-district-council/walsall ,WC137-604,30.04.2022,ADULT SOCIAL CARE,ANCHOR CAREHOMES LTD - HARDEN HALL,11/04/2022,"1,769.52",6541-Residential,THIRD PARTY PAYMENTS,PRIVATE CONTRACTOR,REVENUE
Walsall Council,http://opendatacommunities.org/id/metropolitan-district-council/walsall ,WC137-605,30.04.2022,ADULT SOCIAL CARE,ANCHOR CAREHOMES LTD - HARDEN HALL,11/04/2022,"2,691.08",6541-Residential EMI,THIRD PARTY PAYMENTS,PRIVATE CONTRACTOR,REVENUE
Walsall Council,http://opendatacommunities.org/id/metropolitan-district-council/walsall ,WC137-606,30.04.2022,ADULT SOCIAL CARE,ANCHOR CAREHOMES LTD - HARDEN HALL,11/04/2022,"1,537.76",6541-Residential EMI,THIRD PARTY PAYMENTS,PRIVATE CONTRACTOR,REVENUE
Walsall Council,http://opendatacommunities.org/id/metropolitan-district-council/walsall ,WC137-607,30.04.2022,ADULT SOCIAL CARE,ANCHOR CAREHOMES LTD - HARDEN HALL,11/04/2022,499.52,6541-Residential EMI,THIRD PARTY PAYMENTS,PRIVATE CONTRACTOR,REVENUE
Walsall Council,http://opendatacommunities.org/id/metropolitan-district-council/walsall ,WC137-608,30.04.2022,ADULT SOCIAL CARE,ANCHOR CAREHOMES LTD - HARDEN HALL,11/04/2022,"2,331.08",6541-Residential EMI,THIRD PARTY PAYMENTS,PRIVATE CONTRACTOR,REVENUE
Walsall Council,http://opendatacommunities.org/id/metropolitan-district-council/walsall ,WC137-609,30.04.2022,ADULT SOCIAL CARE,ANCHOR CAREHOMES LTD - HARDEN HALL,11/04/2022,"2,064.44",6541-Residential,THIRD PARTY PAYMENTS,PRIVATE CONTRACTOR,REVENUE
Walsall Council,http://opendatacommunities.org/id/metropolitan-district-council/walsall ,WC137-610,30.04.2022,ADULT SOCIAL CARE,ANCHOR CAREHOMES LTD - HARDEN HALL,11/04/2022,"2,331.08",6541-Residential EMI,THIRD PARTY PAYMENTS,PRIVATE CONTRACTOR,REVENUE
Walsall Council,http://opendatacommunities.org/id/metropolitan-district-council/walsall ,WC137-611,30.04.2022,ADULT SOCIAL CARE,ANCHOR CAREHOMES LTD - HARDEN HALL,11/04/2022,"2,691.08",6541-Residential EMI,THIRD PARTY PAYMENTS,PRIVATE CONTRACTOR,REVENUE
Walsall Council,http://opendatacommunities.org/id/metropolitan-district-council/walsall ,WC137-612,30.04.2022,ADULT SOCIAL CARE,ANCHOR CAREHOMES LTD - HARDEN HALL,11/04/2022,"2,691.08",6541-Residential EMI,THIRD PARTY PAYMENTS,PRIVATE CONTRACTOR,REVENUE
Walsall Council,http://opendatacommunities.org/id/metropolitan-district-council/walsall ,WC137-613,30.04.2022,ADULT SOCIAL CARE,ANCHOR CAREHOMES LTD - HARDEN HALL,11/04/2022,"2,691.08",6541-Residential EMI,THIRD PARTY PAYMENTS,PRIVATE CONTRACTOR,REVENUE
Walsall Council,http://opendatacommunities.org/id/metropolitan-district-council/walsall ,WC137-614,30.04.2022,ADULT SOCIAL CARE,ANCHOR CAREHOMES LTD - HARDEN HALL,11/04/2022,"2,331.08",6541-Residential EMI,THIRD PARTY PAYMENTS,PRIVATE CONTRACTOR,REVENUE
Walsall Council,http://opendatacommunities.org/id/metropolitan-district-council/walsall ,WC137-615,30.04.2022,CHILDRENS,REDACTED,06/04/2022,274.13,6223-Special Guardianship Orders,TRANSFER PAYMENTS,CHILDREN SOCIAL SERVICES CLIENT,REVENUE
Walsall Council,http://opendatacommunities.org/id/metropolitan-district-council/walsall ,WC137-616,30.04.2022,ADULT SOCIAL CARE,REDACTED,07/04/2022,"2,733.87",6541-Direct Payment,THIRD PARTY PAYMENTS,PRIVATE CONTRACTOR,REVENUE
Walsall Council,http://opendatacommunities.org/id/metropolitan-district-council/walsall ,WC137-617,30.04.2022,CHILDRENS CAPITAL,ANDREWS ELECTRICAL LTD,26/04/2022,"1,250.00",7150-Site Works Contractors,CAPITAL,"NEW CONSTRUCTION,CONVERSION & RENOVATION",CAPITAL
Walsall Council,http://opendatacommunities.org/id/metropolitan-district-council/walsall ,WC137-618,30.04.2022,RESOURCES AND TRANSFORMATION,ANDREWS ELECTRICAL LTD,26/04/2022,495.00,6310-Planned Maintenance,PREMISES,REPAIRS & MAINTENANCE,REVENUE
Walsall Council,http://opendatacommunities.org/id/metropolitan-district-council/walsall ,WC137-619,30.04.2022,CHILDRENS,ANGEL SOLUTIONS LTD,28/04/2022,"11,500.00",6240-Subscriptions,SUPPLIES & SERVICES,GRANTS (EXP) & SUBSCRIPTIONS,REVENUE
Walsall Council,http://opendatacommunities.org/id/metropolitan-district-council/walsall ,WC137-620,30.04.2022,CHILDRENS,REDACTED,06/04/2022,496.04,6223-Special Guardianship Orders,TRANSFER PAYMENTS,CHILDREN SOCIAL SERVICES CLIENT,REVENUE
Walsall Council,http://opendatacommunities.org/id/metropolitan-district-council/walsall ,WC137-621,30.04.2022,CHILDRENS,REDACTED,06/04/2022,363.24,6223-Special Guardianship Orders,TRANSFER PAYMENTS,CHILDREN SOCIAL SERVICES CLIENT,REVENUE
Walsall Council,http://opendatacommunities.org/id/metropolitan-district-council/walsall ,WC137-622,30.04.2022,CHILDRENS,REDACTED,06/04/2022,318.36,6223-Special Guardianship Orders,TRANSFER PAYMENTS,CHILDREN SOCIAL SERVICES CLIENT,REVENUE
Walsall Council,http://opendatacommunities.org/id/metropolitan-district-council/walsall ,WC137-623,30.04.2022,CHILDRENS,ANGELS AND BUTTERFLIES CHILDMINDING,12/04/2022,"1,594.13",1184-Other-Grants to Other Orgs,SUPPLIES & SERVICES,GRANTS (EXP) & SUBSCRIPTIONS,REVENUE
Walsall Council,http://opendatacommunities.org/id/metropolitan-district-council/walsall ,WC137-624,30.04.2022,CHILDRENS,ANGELS AND BUTTERFLIES CHILDMINDING,12/04/2022,"3,393.00",1184-Other-Grants to Other Orgs,SUPPLIES & SERVICES,GRANTS (EXP) & SUBSCRIPTIONS,REVENUE
Walsall Council,http://opendatacommunities.org/id/metropolitan-district-council/walsall ,WC137-625,30.04.2022,ADULT SOCIAL CARE,REDACTED,07/04/2022,306.25,6541-Shared Lives,THIRD PARTY PAYMENTS,PRIVATE CONTRACTOR,REVENUE
Walsall Council,http://opendatacommunities.org/id/metropolitan-district-council/walsall ,WC137-626,30.04.2022,ADULT SOCIAL CARE,REDACTED,20/04/2022,801.60,6541-Shared Lives,THIRD PARTY PAYMENTS,PRIVATE CONTRACTOR,REVENUE
Walsall Council,http://opendatacommunities.org/id/metropolitan-district-council/walsall ,WC137-627,30.04.2022,CHILDRENS,REDACTED,06/04/2022,539.62,6223-Foster Carers Maintenance Allowance,TRANSFER PAYMENTS,CHILDREN SOCIAL SERVICES CLIENT,REVENUE
Walsall Council,http://opendatacommunities.org/id/metropolitan-district-council/walsall ,WC137-628,30.04.2022,CHILDRENS,REDACTED,06/04/2022,963.81,6223-Foster Carers Maintenance Allowance,TRANSFER PAYMENTS,CHILDREN SOCIAL SERVICES CLIENT,REVENUE
Walsall Council,http://opendatacommunities.org/id/metropolitan-district-council/walsall ,WC137-629,30.04.2022,CHILDRENS,REDACTED,06/04/2022,448.84,6223-Special Guardianship Orders,TRANSFER PAYMENTS,CHILDREN SOCIAL SERVICES CLIENT,REVENUE
Walsall Council,http://opendatacommunities.org/id/metropolitan-district-council/walsall ,WC137-630,30.04.2022,ADULT SOCIAL CARE,ANSON COURT RESIDENTIAL HOME,11/04/2022,"2,331.08",6541-Residential EMI,THIRD PARTY PAYMENTS,PRIVATE CONTRACTOR,REVENUE
Walsall Council,http://opendatacommunities.org/id/metropolitan-district-council/walsall ,WC137-631,30.04.2022,ADULT SOCIAL CARE,ANSON COURT RESIDENTIAL HOME,11/04/2022,"2,331.08",6541-Residential EMI,THIRD PARTY PAYMENTS,PRIVATE CONTRACTOR,REVENUE
Walsall Council,http://opendatacommunities.org/id/metropolitan-district-council/walsall ,WC137-632,30.04.2022,ADULT SOCIAL CARE,ANSON COURT RESIDENTIAL HOME,11/04/2022,"2,331.08",6541-Residential EMI,THIRD PARTY PAYMENTS,PRIVATE CONTRACTOR,REVENUE
Walsall Council,http://opendatacommunities.org/id/metropolitan-district-council/walsall ,WC137-633,30.04.2022,ADULT SOCIAL CARE,ANSON COURT RESIDENTIAL HOME,11/04/2022,666.02,6541-Residential EMI,THIRD PARTY PAYMENTS,PRIVATE CONTRACTOR,REVENUE
Walsall Council,http://opendatacommunities.org/id/metropolitan-district-council/walsall ,WC137-634,30.04.2022,ADULT SOCIAL CARE,ANSON COURT RESIDENTIAL HOME,11/04/2022,"2,331.08",6541-Residential EMI,THIRD PARTY PAYMENTS,PRIVATE CONTRACTOR,REVENUE
Walsall Council,http://opendatacommunities.org/id/metropolitan-district-council/walsall ,WC137-635,30.04.2022,ADULT SOCIAL CARE,ANSON COURT RESIDENTIAL HOME,11/04/2022,"2,064.44",6541-Residential,THIRD PARTY PAYMENTS,PRIVATE CONTRACTOR,REVENUE
Walsall Council,http://opendatacommunities.org/id/metropolitan-district-council/walsall ,WC137-636,30.04.2022,ADULT SOCIAL CARE,ANSON COURT RESIDENTIAL HOME,11/04/2022,"2,184.44",6541-Residential,THIRD PARTY PAYMENTS,PRIVATE CONTRACTOR,REVENUE
Walsall Council,http://opendatacommunities.org/id/metropolitan-district-council/walsall ,WC137-637,30.04.2022,ADULT SOCIAL CARE,ANSON COURT RESIDENTIAL HOME,11/04/2022,"2,064.44",6541-Residential,THIRD PARTY PAYMENTS,PRIVATE CONTRACTOR,REVENUE
Walsall Council,http://opendatacommunities.org/id/metropolitan-district-council/walsall ,WC137-638,30.04.2022,ADULT SOCIAL CARE,ANSON COURT RESIDENTIAL HOME,11/04/2022,"2,064.44",6541-Short Stay Residential,THIRD PARTY PAYMENTS,PRIVATE CONTRACTOR,REVENUE
Walsall Council,http://opendatacommunities.org/id/metropolitan-district-council/walsall ,WC137-639,30.04.2022,ADULT SOCIAL CARE,ANSON COURT RESIDENTIAL HOME,11/04/2022,"2,331.08",6541-Residential EMI,THIRD PARTY PAYMENTS,PRIVATE CONTRACTOR,REVENUE
Walsall Council,http://opendatacommunities.org/id/metropolitan-district-council/walsall ,WC137-640,30.04.2022,ADULT SOCIAL CARE,ANSON COURT RESIDENTIAL HOME,11/04/2022,"2,331.08",6541-Residential EMI,THIRD PARTY PAYMENTS,PRIVATE CONTRACTOR,REVENUE
Walsall Council,http://opendatacommunities.org/id/metropolitan-district-council/walsall ,WC137-641,30.04.2022,ADULT SOCIAL CARE,ANSON COURT RESIDENTIAL HOME,11/04/2022,"2,331.08",6541-Residential EMI,THIRD PARTY PAYMENTS,PRIVATE CONTRACTOR,REVENUE
Walsall Council,http://opendatacommunities.org/id/metropolitan-district-council/walsall ,WC137-642,30.04.2022,ADULT SOCIAL CARE,ANSON COURT RESIDENTIAL HOME,11/04/2022,"2,331.08",6541-Residential EMI,THIRD PARTY PAYMENTS,PRIVATE CONTRACTOR,REVENUE
Walsall Council,http://opendatacommunities.org/id/metropolitan-district-council/walsall ,WC137-643,30.04.2022,ADULT SOCIAL CARE,ANSON COURT RESIDENTIAL HOME,11/04/2022,"2,331.08",6541-Residential EMI,THIRD PARTY PAYMENTS,PRIVATE CONTRACTOR,REVENUE
Walsall Council,http://opendatacommunities.org/id/metropolitan-district-council/walsall ,WC137-644,30.04.2022,ADULT SOCIAL CARE,ANSON COURT RESIDENTIAL HOME,11/04/2022,"2,331.08",6541-Residential EMI,THIRD PARTY PAYMENTS,PRIVATE CONTRACTOR,REVENUE
Walsall Council,http://opendatacommunities.org/id/metropolitan-district-council/walsall ,WC137-645,30.04.2022,ADULT SOCIAL CARE,ANSON COURT RESIDENTIAL HOME,11/04/2022,"2,064.44",6541-Residential,THIRD PARTY PAYMENTS,PRIVATE CONTRACTOR,REVENUE
Walsall Council,http://opendatacommunities.org/id/metropolitan-district-council/walsall ,WC137-646,30.04.2022,ADULT SOCIAL CARE,ANSON COURT RESIDENTIAL HOME,11/04/2022,"2,331.08",6541-Residential EMI,THIRD PARTY PAYMENTS,PRIVATE CONTRACTOR,REVENUE
Walsall Council,http://opendatacommunities.org/id/metropolitan-district-council/walsall ,WC137-647,30.04.2022,ADULT SOCIAL CARE,ANSON COURT RESIDENTIAL HOME,11/04/2022,"2,331.08",6541-Residential EMI,THIRD PARTY PAYMENTS,PRIVATE CONTRACTOR,REVENUE
Walsall Council,http://opendatacommunities.org/id/metropolitan-district-council/walsall ,WC137-648,30.04.2022,CHILDRENS,REDACTED,06/04/2022,334.64,6223-Special Guardianship Orders,TRANSFER PAYMENTS,CHILDREN SOCIAL SERVICES CLIENT,REVENUE
Walsall Council,http://opendatacommunities.org/id/metropolitan-district-council/walsall ,WC137-649,30.04.2022,"ECONOMY, ENVIRONMENT & COMMUNITIES",APCOA PARKING SERVICES (UK) LTD,05/04/2022,"61,442.80",6411-Professional Services-Priv Contractor & Other Agencies,THIRD PARTY PAYMENTS,PRIVATE CONTRACTOR,REVENUE
Walsall Council,http://opendatacommunities.org/id/metropolitan-district-council/walsall ,WC137-650,30.04.2022,RESOURCES AND TRANSFORMATION,APCOA PARKING SERVICES (UK) LTD,06/04/2022,-890.92,6634-Oxygen Finance Rebates ,SUPPLIES & SERVICES,SERVICES,REVENUE
Walsall Council,http://opendatacommunities.org/id/metropolitan-district-council/walsall ,WC137-651,30.04.2022,CHILDRENS,APP CARZ,26/04/2022,400.00,6241-Hire of Vehicle with Driver,TRANSPORT,DIRECT TRANSPORT COSTS,REVENUE
Walsall Council,http://opendatacommunities.org/id/metropolitan-district-council/walsall ,WC137-652,30.04.2022,CHILDRENS,APP CARZ,26/04/2022,704.00,6241-Hire of Vehicle with Driver,TRANSPORT,DIRECT TRANSPORT COSTS,REVENUE
Walsall Council,http://opendatacommunities.org/id/metropolitan-district-council/walsall ,WC137-653,30.04.2022,CHILDRENS,APP CARZ,26/04/2022,880.00,6241-Hire of Vehicle with Driver,TRANSPORT,DIRECT TRANSPORT COSTS,REVENUE
Walsall Council,http://opendatacommunities.org/id/metropolitan-district-council/walsall ,WC137-654,30.04.2022,CHILDRENS,APP CARZ,26/04/2022,432.00,6241-Hire of Vehicle with Driver,TRANSPORT,DIRECT TRANSPORT COSTS,REVENUE
Walsall Council,http://opendatacommunities.org/id/metropolitan-district-council/walsall ,WC137-655,30.04.2022,CHILDRENS,APP CARZ,26/04/2022,"1,800.00",6241-Hire of Vehicle with Driver,TRANSPORT,DIRECT TRANSPORT COSTS,REVENUE
Walsall Council,http://opendatacommunities.org/id/metropolitan-district-council/walsall ,WC137-656,30.04.2022,CHILDRENS,APP CARZ,26/04/2022,"1,880.00",6241-Hire of Vehicle with Driver,TRANSPORT,DIRECT TRANSPORT COSTS,REVENUE
Walsall Council,http://opendatacommunities.org/id/metropolitan-district-council/walsall ,WC137-657,30.04.2022,CHILDRENS,APP CARZ,26/04/2022,"2,200.00",6241-Hire of Vehicle with Driver,TRANSPORT,DIRECT TRANSPORT COSTS,REVENUE
Walsall Council,http://opendatacommunities.org/id/metropolitan-district-council/walsall ,WC137-658,30.04.2022,CHILDRENS,APP CARZ,26/04/2022,768.00,6241-Hire of Vehicle with Driver,TRANSPORT,DIRECT TRANSPORT COSTS,REVENUE
Walsall Council,http://opendatacommunities.org/id/metropolitan-district-council/walsall ,WC137-659,30.04.2022,CHILDRENS,APP CARZ,26/04/2022,"1,000.00",6241-Hire of Vehicle with Driver,TRANSPORT,DIRECT TRANSPORT COSTS,REVENUE
Walsall Council,http://opendatacommunities.org/id/metropolitan-district-council/walsall ,WC137-660,30.04.2022,CHILDRENS,APP CARZ,26/04/2022,"1,200.00",6241-Hire of Vehicle with Driver,TRANSPORT,DIRECT TRANSPORT COSTS,REVENUE
Walsall Council,http://opendatacommunities.org/id/metropolitan-district-council/walsall ,WC137-661,30.04.2022,CHILDRENS,APP CARZ,26/04/2022,"2,100.00",6241-Hire of Vehicle with Driver,TRANSPORT,DIRECT TRANSPORT COSTS,REVENUE
Walsall Council,http://opendatacommunities.org/id/metropolitan-district-council/walsall ,WC137-662,30.04.2022,CHILDRENS,APP CARZ,26/04/2022,-540.00,6241-Hire of Vehicle with Driver,TRANSPORT,DIRECT TRANSPORT COSTS,REVENUE
Walsall Council,http://opendatacommunities.org/id/metropolitan-district-council/walsall ,WC137-663,30.04.2022,CHILDRENS,APP CARZ,26/04/2022,"1,700.00",6241-Hire of Vehicle with Driver,TRANSPORT,DIRECT TRANSPORT COSTS,REVENUE
Walsall Council,http://opendatacommunities.org/id/metropolitan-district-council/walsall ,WC137-664,30.04.2022,CHILDRENS,APP CARZ,26/04/2022,"1,235.00",6241-Hire of Vehicle with Driver,TRANSPORT,DIRECT TRANSPORT COSTS,REVENUE
Walsall Council,http://opendatacommunities.org/id/metropolitan-district-council/walsall ,WC137-665,30.04.2022,CHILDRENS,APP CARZ,26/04/2022,"1,080.00",6241-Hire of Vehicle with Driver,TRANSPORT,DIRECT TRANSPORT COSTS,REVENUE
Walsall Council,http://opendatacommunities.org/id/metropolitan-district-council/walsall ,WC137-666,30.04.2022,CHILDRENS,APPLE TRANSCRIPTION LIMITED,04/04/2022,598.65,6220-School Only Payments - Catering,THIRD PARTY PAYMENTS,INDEPENDENT UNIT WITHIN COUNCIL,REVENUE
Walsall Council,http://opendatacommunities.org/id/metropolitan-district-council/walsall ,WC137-667,30.04.2022,"ECONOMY, ENVIRONMENT & COMMUNITIES",APSE 001,13/04/2022,"3,394.00",6315-Subscriptions,SUPPLIES & SERVICES,GRANTS (EXP) & SUBSCRIPTIONS,REVENUE
Walsall Council,http://opendatacommunities.org/id/metropolitan-district-council/walsall ,WC137-668,30.04.2022,"ECONOMY, ENVIRONMENT & COMMUNITIES",AQUILA TRUCK CENTRES LTD,12/04/2022,454.75,6410-Materials,SUPPLIES & SERVICES,EQUIPMENT FURNITURE & MATERIALS,REVENUE
Walsall Council,http://opendatacommunities.org/id/metropolitan-district-council/walsall ,WC137-669,30.04.2022,ADULT SOCIAL CARE,ARBORETUM NURSING HOME.,11/04/2022,"2,419.96",6541-Nursing,THIRD PARTY PAYMENTS,PRIVATE CONTRACTOR,REVENUE
Walsall Council,http://opendatacommunities.org/id/metropolitan-district-council/walsall ,WC137-670,30.04.2022,ADULT SOCIAL CARE,ARBORETUM NURSING HOME.,11/04/2022,"2,419.96",6541-Nursing,THIRD PARTY PAYMENTS,PRIVATE CONTRACTOR,REVENUE
Walsall Council,http://opendatacommunities.org/id/metropolitan-district-council/walsall ,WC137-671,30.04.2022,ADULT SOCIAL CARE,ARBORETUM NURSING HOME.,11/04/2022,"2,419.96",6541-Nursing,THIRD PARTY PAYMENTS,PRIVATE CONTRACTOR,REVENUE
Walsall Council,http://opendatacommunities.org/id/metropolitan-district-council/walsall ,WC137-672,30.04.2022,ADULT SOCIAL CARE,ARBORETUM NURSING HOME.,11/04/2022,"2,419.96",6541-Nursing,THIRD PARTY PAYMENTS,PRIVATE CONTRACTOR,REVENUE
Walsall Council,http://opendatacommunities.org/id/metropolitan-district-council/walsall ,WC137-673,30.04.2022,ADULT SOCIAL CARE,ARBORETUM NURSING HOME.,11/04/2022,"2,419.96",6541-Nursing,THIRD PARTY PAYMENTS,PRIVATE CONTRACTOR,REVENUE
Walsall Council,http://opendatacommunities.org/id/metropolitan-district-council/walsall ,WC137-674,30.04.2022,ADULT SOCIAL CARE,ARBORETUM NURSING HOME.,11/04/2022,"2,599.96",6541-Nursing,THIRD PARTY PAYMENTS,PRIVATE CONTRACTOR,REVENUE
Walsall Council,http://opendatacommunities.org/id/metropolitan-district-council/walsall ,WC137-675,30.04.2022,ADULT SOCIAL CARE,ARBORETUM NURSING HOME.,11/04/2022,"2,599.96",6541-Nursing,THIRD PARTY PAYMENTS,PRIVATE CONTRACTOR,REVENUE
Walsall Council,http://opendatacommunities.org/id/metropolitan-district-council/walsall ,WC137-676,30.04.2022,ADULT SOCIAL CARE,ARBORETUM NURSING HOME.,11/04/2022,"2,599.96",6541-Nursing,THIRD PARTY PAYMENTS,PRIVATE CONTRACTOR,REVENUE
Walsall Council,http://opendatacommunities.org/id/metropolitan-district-council/walsall ,WC137-677,30.04.2022,ADULT SOCIAL CARE,ARBORETUM NURSING HOME.,11/04/2022,"2,797.71",6541-Residential & Nursing Care Placements,THIRD PARTY PAYMENTS,PRIVATE CONTRACTOR,REVENUE
Walsall Council,http://opendatacommunities.org/id/metropolitan-district-council/walsall ,WC137-678,30.04.2022,ADULT SOCIAL CARE,ARBORETUM NURSING HOME.,11/04/2022,"2,980.00",6541-Residential & Nursing Care Placements,THIRD PARTY PAYMENTS,PRIVATE CONTRACTOR,REVENUE
Walsall Council,http://opendatacommunities.org/id/metropolitan-district-council/walsall ,WC137-679,30.04.2022,ADULT SOCIAL CARE,ARBORETUM NURSING HOME.,11/04/2022,"1,277.14",6541-Residential & Nursing Care Placements,THIRD PARTY PAYMENTS,PRIVATE CONTRACTOR,REVENUE
Walsall Council,http://opendatacommunities.org/id/metropolitan-district-council/walsall ,WC137-680,30.04.2022,ADULT SOCIAL CARE,ARBORETUM NURSING HOME.,11/04/2022,"1,277.14",6541-Residential & Nursing Care Placements,THIRD PARTY PAYMENTS,PRIVATE CONTRACTOR,REVENUE
Walsall Council,http://opendatacommunities.org/id/metropolitan-district-council/walsall ,WC137-681,30.04.2022,ADULT SOCIAL CARE,ARBORETUM NURSING HOME.,11/04/2022,"2,599.96",6541-Nursing,THIRD PARTY PAYMENTS,PRIVATE CONTRACTOR,REVENUE
Walsall Council,http://opendatacommunities.org/id/metropolitan-district-council/walsall ,WC137-682,30.04.2022,ADULT SOCIAL CARE,ARBORETUM NURSING HOME.,11/04/2022,"2,599.96",6541-Nursing,THIRD PARTY PAYMENTS,PRIVATE CONTRACTOR,REVENUE
Walsall Council,http://opendatacommunities.org/id/metropolitan-district-council/walsall ,WC137-683,30.04.2022,ADULT SOCIAL CARE,ARBORETUM NURSING HOME.,11/04/2022,"2,599.96",6541-Nursing,THIRD PARTY PAYMENTS,PRIVATE CONTRACTOR,REVENUE
Walsall Council,http://opendatacommunities.org/id/metropolitan-district-council/walsall ,WC137-684,30.04.2022,ADULT SOCIAL CARE,ARBORETUM NURSING HOME.,11/04/2022,425.71,6541-Residential & Nursing Care Placements,THIRD PARTY PAYMENTS,PRIVATE CONTRACTOR,REVENUE
Walsall Council,http://opendatacommunities.org/id/metropolitan-district-council/walsall ,WC137-685,30.04.2022,ADULT SOCIAL CARE,ARBORETUM NURSING HOME.,11/04/2022,"2,314.29",6541-Short Stay Residential,THIRD PARTY PAYMENTS,PRIVATE CONTRACTOR,REVENUE
Walsall Council,http://opendatacommunities.org/id/metropolitan-district-council/walsall ,WC137-686,30.04.2022,ADULT SOCIAL CARE,ARBORETUM NURSING HOME.,11/04/2022,"2,599.96",6541-Nursing,THIRD PARTY PAYMENTS,PRIVATE CONTRACTOR,REVENUE
Walsall Council,http://opendatacommunities.org/id/metropolitan-district-council/walsall ,WC137-687,30.04.2022,ADULT SOCIAL CARE,ARBORETUM NURSING HOME.,11/04/2022,"2,505.00",6541-Residential & Nursing Care Placements,THIRD PARTY PAYMENTS,PRIVATE CONTRACTOR,REVENUE
Walsall Council,http://opendatacommunities.org/id/metropolitan-district-council/walsall ,WC137-688,30.04.2022,ADULT SOCIAL CARE,ARBORETUM NURSING HOME.,11/04/2022,"2,980.00",6541-Residential & Nursing Care Placements,THIRD PARTY PAYMENTS,PRIVATE CONTRACTOR,REVENUE
Walsall Council,http://opendatacommunities.org/id/metropolitan-district-council/walsall ,WC137-689,30.04.2022,ADULT SOCIAL CARE,ARBORETUM NURSING HOME.,11/04/2022,"2,419.96",6541-Nursing,THIRD PARTY PAYMENTS,PRIVATE CONTRACTOR,REVENUE
Walsall Council,http://opendatacommunities.org/id/metropolitan-district-council/walsall ,WC137-690,30.04.2022,ADULT SOCIAL CARE,ARBORETUM NURSING HOME.,11/04/2022,"2,419.96",6541-Nursing,THIRD PARTY PAYMENTS,PRIVATE CONTRACTOR,REVENUE
Walsall Council,http://opendatacommunities.org/id/metropolitan-district-council/walsall ,WC137-691,30.04.2022,ADULT SOCIAL CARE,ARBORETUM NURSING HOME.,11/04/2022,"2,599.96",6541-Nursing,THIRD PARTY PAYMENTS,PRIVATE CONTRACTOR,REVENUE
Walsall Council,http://opendatacommunities.org/id/metropolitan-district-council/walsall ,WC137-692,30.04.2022,ADULT SOCIAL CARE,ARBORETUM NURSING HOME.,11/04/2022,"2,980.00",6541-Residential & Nursing Care Placements,THIRD PARTY PAYMENTS,PRIVATE CONTRACTOR,REVENUE
Walsall Council,http://opendatacommunities.org/id/metropolitan-district-council/walsall ,WC137-693,30.04.2022,ADULT SOCIAL CARE,ARBORETUM NURSING HOME.,11/04/2022,"2,419.96",6541-Nursing,THIRD PARTY PAYMENTS,PRIVATE CONTRACTOR,REVENUE
Walsall Council,http://opendatacommunities.org/id/metropolitan-district-council/walsall ,WC137-694,30.04.2022,"ECONOMY, ENVIRONMENT & COMMUNITIES",ARCADIS,05/04/2022,"6,000.00",6313-Professional Services-Priv Contractor & Other Agencies,THIRD PARTY PAYMENTS,PRIVATE CONTRACTOR,REVENUE
Walsall Council,http://opendatacommunities.org/id/metropolitan-district-council/walsall ,WC137-695,30.04.2022,RESOURCES AND TRANSFORMATION CAPITAL,ARCADIS,06/04/2022,"11,485.00",7300-Consultants Fees,CAPITAL,"NEW CONSTRUCTION,CONVERSION & RENOVATION",CAPITAL
Walsall Council,http://opendatacommunities.org/id/metropolitan-district-council/walsall ,WC137-696,30.04.2022,RESOURCES AND TRANSFORMATION CAPITAL,ARCADIS,06/04/2022,"17,910.00",7300-Consultants Fees,CAPITAL,"NEW CONSTRUCTION,CONVERSION & RENOVATION",CAPITAL
Walsall Council,http://opendatacommunities.org/id/metropolitan-district-council/walsall ,WC137-697,30.04.2022,"ECONOMY, ENVIRONMENT & COMMUNITIES",ARCADIS,14/04/2022,"2,249.00",6313-Professional Fees & Services,SUPPLIES & SERVICES,SERVICES,REVENUE
Walsall Council,http://opendatacommunities.org/id/metropolitan-district-council/walsall ,WC137-698,30.04.2022,RESOURCES AND TRANSFORMATION CAPITAL,ARCADIS,12/04/2022,"13,000.00",7300-Consultants Fees,CAPITAL,"NEW CONSTRUCTION,CONVERSION & RENOVATION",CAPITAL
Walsall Council,http://opendatacommunities.org/id/metropolitan-district-council/walsall ,WC137-699,30.04.2022,ECONOMY & ENVIRONMENT CAPITAL,ARCADIS,26/04/2022,"25,000.00",7200-Project Fees,CAPITAL,"NEW CONSTRUCTION,CONVERSION & RENOVATION",CAPITAL
Walsall Council,http://opendatacommunities.org/id/metropolitan-district-council/walsall ,WC137-700,30.04.2022,RESOURCES AND TRANSFORMATION CAPITAL,ARCADIS,12/04/2022,"8,750.00",7300-Consultants Fees,CAPITAL,"NEW CONSTRUCTION,CONVERSION & RENOVATION",CAPITAL
Walsall Council,http://opendatacommunities.org/id/metropolitan-district-council/walsall ,WC137-701,30.04.2022,RESOURCES AND TRANSFORMATION CAPITAL,ARCADIS,21/04/2022,"17,610.00",7300-Consultants Fees,CAPITAL,"NEW CONSTRUCTION,CONVERSION & RENOVATION",CAPITAL
Walsall Council,http://opendatacommunities.org/id/metropolitan-district-council/walsall ,WC137-702,30.04.2022,"ECONOMY, ENVIRONMENT & COMMUNITIES",ARCHWAY TCS LTD,01/04/2022,271.72,6410-Vehicle Wash Plant Materials,SUPPLIES & SERVICES,EQUIPMENT FURNITURE & MATERIALS,REVENUE
Walsall Council,http://opendatacommunities.org/id/metropolitan-district-council/walsall ,WC137-703,30.04.2022,"ECONOMY, ENVIRONMENT & COMMUNITIES",ARCHWAY TCS LTD,01/04/2022,-255.78,6410-Vehicle Wash Plant Materials,SUPPLIES & SERVICES,EQUIPMENT FURNITURE & MATERIALS,REVENUE
Walsall Council,http://opendatacommunities.org/id/metropolitan-district-council/walsall ,WC137-704,30.04.2022,"ECONOMY, ENVIRONMENT & COMMUNITIES",ARCHWAY TCS LTD,01/04/2022,255.76,6410-Vehicle Wash Plant Materials,SUPPLIES & SERVICES,EQUIPMENT FURNITURE & MATERIALS,REVENUE
Walsall Council,http://opendatacommunities.org/id/metropolitan-district-council/walsall ,WC137-705,30.04.2022,"ECONOMY, ENVIRONMENT & COMMUNITIES",ARCHWAY TCS LTD,01/04/2022,255.78,6410-Vehicle Wash Plant Materials,SUPPLIES & SERVICES,EQUIPMENT FURNITURE & MATERIALS,REVENUE
Walsall Council,http://opendatacommunities.org/id/metropolitan-district-council/walsall ,WC137-706,30.04.2022,"ECONOMY, ENVIRONMENT & COMMUNITIES",ARCHWAY TCS LTD,01/04/2022,767.50,6410-Vehicle Wash Plant Materials,SUPPLIES & SERVICES,EQUIPMENT FURNITURE & MATERIALS,REVENUE
Walsall Council,http://opendatacommunities.org/id/metropolitan-district-council/walsall ,WC137-707,30.04.2022,"ECONOMY, ENVIRONMENT & COMMUNITIES",ARCHWAY TCS LTD,19/04/2022,392.70,6410-Materials,SUPPLIES & SERVICES,EQUIPMENT FURNITURE & MATERIALS,REVENUE
Walsall Council,http://opendatacommunities.org/id/metropolitan-district-council/walsall ,WC137-708,30.04.2022,ADULT SOCIAL CARE,ASH GRANGE CARE HOME,11/04/2022,"2,722.96",6541-Nursing EMI,THIRD PARTY PAYMENTS,PRIVATE CONTRACTOR,REVENUE
Walsall Council,http://opendatacommunities.org/id/metropolitan-district-council/walsall ,WC137-709,30.04.2022,ADULT SOCIAL CARE,ASH GRANGE CARE HOME,11/04/2022,"2,064.44",6541-Residential,THIRD PARTY PAYMENTS,PRIVATE CONTRACTOR,REVENUE
Walsall Council,http://opendatacommunities.org/id/metropolitan-district-council/walsall ,WC137-710,30.04.2022,ADULT SOCIAL CARE,ASH GRANGE CARE HOME,11/04/2022,"2,419.96",6541-Nursing,THIRD PARTY PAYMENTS,PRIVATE CONTRACTOR,REVENUE
Walsall Council,http://opendatacommunities.org/id/metropolitan-district-council/walsall ,WC137-711,30.04.2022,ADULT SOCIAL CARE,ASH GRANGE CARE HOME,11/04/2022,"2,400.00",6541-Residential,THIRD PARTY PAYMENTS,PRIVATE CONTRACTOR,REVENUE
Walsall Council,http://opendatacommunities.org/id/metropolitan-district-council/walsall ,WC137-712,30.04.2022,ADULT SOCIAL CARE,ASH GRANGE CARE HOME,11/04/2022,"2,200.00",6541-Residential,THIRD PARTY PAYMENTS,PRIVATE CONTRACTOR,REVENUE
Walsall Council,http://opendatacommunities.org/id/metropolitan-district-council/walsall ,WC137-713,30.04.2022,ADULT SOCIAL CARE,ASH GRANGE CARE HOME,11/04/2022,"2,722.96",6541-Nursing EMI,THIRD PARTY PAYMENTS,PRIVATE CONTRACTOR,REVENUE
Walsall Council,http://opendatacommunities.org/id/metropolitan-district-council/walsall ,WC137-714,30.04.2022,ADULT SOCIAL CARE,ASH GRANGE CARE HOME,11/04/2022,"2,798.92",6541-Nursing,THIRD PARTY PAYMENTS,PRIVATE CONTRACTOR,REVENUE
Walsall Council,http://opendatacommunities.org/id/metropolitan-district-council/walsall ,WC137-715,30.04.2022,ADULT SOCIAL CARE,ASH GRANGE CARE HOME,11/04/2022,"2,619.96",6541-Nursing,THIRD PARTY PAYMENTS,PRIVATE CONTRACTOR,REVENUE
Walsall Council,http://opendatacommunities.org/id/metropolitan-district-council/walsall ,WC137-716,30.04.2022,ADULT SOCIAL CARE,ASH GRANGE CARE HOME,11/04/2022,"3,000.00",6541-Residential & Nursing Care Placements,THIRD PARTY PAYMENTS,PRIVATE CONTRACTOR,REVENUE
Walsall Council,http://opendatacommunities.org/id/metropolitan-district-council/walsall ,WC137-717,30.04.2022,ADULT SOCIAL CARE,ASH GRANGE CARE HOME,11/04/2022,"2,035.71",6541-Residential & Nursing Care Placements,THIRD PARTY PAYMENTS,PRIVATE CONTRACTOR,REVENUE
Walsall Council,http://opendatacommunities.org/id/metropolitan-district-council/walsall ,WC137-718,30.04.2022,ADULT SOCIAL CARE,ASH GRANGE CARE HOME,11/04/2022,"2,722.96",6541-Nursing EMI,THIRD PARTY PAYMENTS,PRIVATE CONTRACTOR,REVENUE
Walsall Council,http://opendatacommunities.org/id/metropolitan-district-council/walsall ,WC137-719,30.04.2022,ADULT SOCIAL CARE,ASH GRANGE CARE HOME,11/04/2022,"2,419.96",6541-Nursing,THIRD PARTY PAYMENTS,PRIVATE CONTRACTOR,REVENUE
Walsall Council,http://opendatacommunities.org/id/metropolitan-district-council/walsall ,WC137-720,30.04.2022,ADULT SOCIAL CARE,ASH GRANGE CARE HOME,11/04/2022,"2,419.96",6541-Nursing,THIRD PARTY PAYMENTS,PRIVATE CONTRACTOR,REVENUE
Walsall Council,http://opendatacommunities.org/id/metropolitan-district-council/walsall ,WC137-721,30.04.2022,ADULT SOCIAL CARE,ASH GRANGE CARE HOME,11/04/2022,294.92,6541-Residential,THIRD PARTY PAYMENTS,PRIVATE CONTRACTOR,REVENUE
Walsall Council,http://opendatacommunities.org/id/metropolitan-district-council/walsall ,WC137-722,30.04.2022,ADULT SOCIAL CARE,ASH GRANGE CARE HOME,11/04/2022,"2,419.96",6541-Nursing,THIRD PARTY PAYMENTS,PRIVATE CONTRACTOR,REVENUE
Walsall Council,http://opendatacommunities.org/id/metropolitan-district-council/walsall ,WC137-723,30.04.2022,ADULT SOCIAL CARE,ASH GRANGE CARE HOME,11/04/2022,"2,606.96",6541-Residential,THIRD PARTY PAYMENTS,PRIVATE CONTRACTOR,REVENUE
Walsall Council,http://opendatacommunities.org/id/metropolitan-district-council/walsall ,WC137-724,30.04.2022,ADULT SOCIAL CARE,ASH GRANGE CARE HOME,11/04/2022,"2,719.96",6541-Nursing,THIRD PARTY PAYMENTS,PRIVATE CONTRACTOR,REVENUE
Walsall Council,http://opendatacommunities.org/id/metropolitan-district-council/walsall ,WC137-725,30.04.2022,ADULT SOCIAL CARE,ASH GRANGE CARE HOME,11/04/2022,964.29,6541-Residential & Nursing Care Placements,THIRD PARTY PAYMENTS,PRIVATE CONTRACTOR,REVENUE
Walsall Council,http://opendatacommunities.org/id/metropolitan-district-council/walsall ,WC137-726,30.04.2022,ADULT SOCIAL CARE,ASH GRANGE CARE HOME,11/04/2022,"2,400.00",6541-Residential,THIRD PARTY PAYMENTS,PRIVATE CONTRACTOR,REVENUE
Walsall Council,http://opendatacommunities.org/id/metropolitan-district-council/walsall ,WC137-727,30.04.2022,ADULT SOCIAL CARE,ASH GRANGE CARE HOME,11/04/2022,"1,800.00",6541-Short Stay Residential,THIRD PARTY PAYMENTS,PRIVATE CONTRACTOR,REVENUE
Walsall Council,http://opendatacommunities.org/id/metropolitan-district-council/walsall ,WC137-728,30.04.2022,ADULT SOCIAL CARE,ASH GRANGE CARE HOME,11/04/2022,"2,419.96",6541-Nursing,THIRD PARTY PAYMENTS,PRIVATE CONTRACTOR,REVENUE
Walsall Council,http://opendatacommunities.org/id/metropolitan-district-council/walsall ,WC137-729,30.04.2022,ADULT SOCIAL CARE,ASH GRANGE CARE HOME,11/04/2022,"5,052.78",6541-Nursing,THIRD PARTY PAYMENTS,PRIVATE CONTRACTOR,REVENUE
Walsall Council,http://opendatacommunities.org/id/metropolitan-district-council/walsall ,WC137-730,30.04.2022,ECONOMY & ENVIRONMENT CAPITAL,ASHCROFT MEMORIALS,27/04/2022,370.00,7200-Site Works - Other Contractors,CAPITAL,"NEW CONSTRUCTION,CONVERSION & RENOVATION",CAPITAL
Walsall Council,http://opendatacommunities.org/id/metropolitan-district-council/walsall ,WC137-731,30.04.2022,ADULT SOCIAL CARE,REDACTED,07/04/2022,"1,428.27",6541-Direct Payment,THIRD PARTY PAYMENTS,PRIVATE CONTRACTOR,REVENUE
Walsall Council,http://opendatacommunities.org/id/metropolitan-district-council/walsall ,WC137-732,30.04.2022,CHILDRENS,ASK RETROFIT-UK LTD,11/04/2022,"1,105.00",6314-Consultant Fees,SUPPLIES & SERVICES,SERVICES,REVENUE
Walsall Council,http://opendatacommunities.org/id/metropolitan-district-council/walsall ,WC137-733,30.04.2022,CHILDRENS,ASK RETROFIT-UK LTD,11/04/2022,500.00,6314-Professional Fees & Services,SUPPLIES & SERVICES,SERVICES,REVENUE
Walsall Council,http://opendatacommunities.org/id/metropolitan-district-council/walsall ,WC137-734,30.04.2022,"ECONOMY, ENVIRONMENT & COMMUNITIES",ASKEWS AND HOLTS LIBRARY SERVICES LTD,06/04/2022,970.94,6414-Library Books,SUPPLIES & SERVICES,EQUIPMENT FURNITURE & MATERIALS,REVENUE
Walsall Council,http://opendatacommunities.org/id/metropolitan-district-council/walsall ,WC137-735,30.04.2022,"ECONOMY, ENVIRONMENT & COMMUNITIES",ASKEWS AND HOLTS LIBRARY SERVICES LTD,21/04/2022,578.18,6414-Library Books,SUPPLIES & SERVICES,EQUIPMENT FURNITURE & MATERIALS,REVENUE
Walsall Council,http://opendatacommunities.org/id/metropolitan-district-council/walsall ,WC137-736,30.04.2022,"ECONOMY, ENVIRONMENT & COMMUNITIES",ASKEWS AND HOLTS LIBRARY SERVICES LTD,26/04/2022,"1,239.36",6414-Library Books,SUPPLIES & SERVICES,EQUIPMENT FURNITURE & MATERIALS,REVENUE
Walsall Council,http://opendatacommunities.org/id/metropolitan-district-council/walsall ,WC137-737,30.04.2022,"ECONOMY, ENVIRONMENT & COMMUNITIES",ASKEWS AND HOLTS LIBRARY SERVICES LTD,27/04/2022,734.44,6414-Library Books,SUPPLIES & SERVICES,EQUIPMENT FURNITURE & MATERIALS,REVENUE
Walsall Council,http://opendatacommunities.org/id/metropolitan-district-council/walsall ,WC137-738,30.04.2022,"ECONOMY, ENVIRONMENT & COMMUNITIES",ASKEWS AND HOLTS LIBRARY SERVICES LTD,28/04/2022,567.14,6414-Library Books,SUPPLIES & SERVICES,EQUIPMENT FURNITURE & MATERIALS,REVENUE
Walsall Council,http://opendatacommunities.org/id/metropolitan-district-council/walsall ,WC137-739,30.04.2022,ADULT SOCIAL CARE,REDACTED,07/04/2022,757.43,6541-Direct Payment,THIRD PARTY PAYMENTS,PRIVATE CONTRACTOR,REVENUE
Walsall Council,http://opendatacommunities.org/id/metropolitan-district-council/walsall ,WC137-740,30.04.2022,ADULT SOCIAL CARE,ASPECTS CARE LTD,07/04/2022,464.96,6541-Community Supported Living/Supported Accommodation,THIRD PARTY PAYMENTS,PRIVATE CONTRACTOR,REVENUE
Walsall Council,http://opendatacommunities.org/id/metropolitan-district-council/walsall ,WC137-741,30.04.2022,ADULT SOCIAL CARE,ASPECTS CARE LTD,07/04/2022,421.44,6541-Community Supported Living/Supported Accommodation,THIRD PARTY PAYMENTS,PRIVATE CONTRACTOR,REVENUE
Walsall Council,http://opendatacommunities.org/id/metropolitan-district-council/walsall ,WC137-742,30.04.2022,ADULT SOCIAL CARE,ASPECTS CARE LTD,07/04/2022,"6,586.37",6541-Community Supported Living/Supported Accommodation,THIRD PARTY PAYMENTS,PRIVATE CONTRACTOR,REVENUE
Walsall Council,http://opendatacommunities.org/id/metropolitan-district-council/walsall ,WC137-743,30.04.2022,ADULT SOCIAL CARE,ASPECTS CARE LTD,07/04/2022,523.12,6541-Community Supported Living/Supported Accommodation,THIRD PARTY PAYMENTS,PRIVATE CONTRACTOR,REVENUE
Walsall Council,http://opendatacommunities.org/id/metropolitan-district-council/walsall ,WC137-744,30.04.2022,ADULT SOCIAL CARE,ASPECTS CARE LTD,07/04/2022,566.68,6541-Community Supported Living/Supported Accommodation,THIRD PARTY PAYMENTS,PRIVATE CONTRACTOR,REVENUE
Walsall Council,http://opendatacommunities.org/id/metropolitan-district-council/walsall ,WC137-745,30.04.2022,ADULT SOCIAL CARE,ASPECTS CARE LTD,07/04/2022,"1,089.76",6541-Community Supported Living/Supported Accommodation,THIRD PARTY PAYMENTS,PRIVATE CONTRACTOR,REVENUE
Walsall Council,http://opendatacommunities.org/id/metropolitan-district-council/walsall ,WC137-746,30.04.2022,ADULT SOCIAL CARE,ASPECTS CARE LTD,07/04/2022,508.48,6541-Community Supported Living/Supported Accommodation,THIRD PARTY PAYMENTS,PRIVATE CONTRACTOR,REVENUE
Walsall Council,http://opendatacommunities.org/id/metropolitan-district-council/walsall ,WC137-747,30.04.2022,ADULT SOCIAL CARE,ASPECTS CARE LTD,07/04/2022,523.16,6541-Community Supported Living/Supported Accommodation,THIRD PARTY PAYMENTS,PRIVATE CONTRACTOR,REVENUE
Walsall Council,http://opendatacommunities.org/id/metropolitan-district-council/walsall ,WC137-748,30.04.2022,ADULT SOCIAL CARE,ASPECTS CARE LTD,07/04/2022,799.12,6541-Community Supported Living/Supported Accommodation,THIRD PARTY PAYMENTS,PRIVATE CONTRACTOR,REVENUE
Walsall Council,http://opendatacommunities.org/id/metropolitan-district-council/walsall ,WC137-749,30.04.2022,ADULT SOCIAL CARE,ASPECTS CARE LTD,07/04/2022,348.64,6541-Community Supported Living/Supported Accommodation,THIRD PARTY PAYMENTS,PRIVATE CONTRACTOR,REVENUE
Walsall Council,http://opendatacommunities.org/id/metropolitan-district-council/walsall ,WC137-750,30.04.2022,ADULT SOCIAL CARE,ASPECTS CARE LTD,07/04/2022,"-6,593.73",6541-Community Supported Living/Supported Accommodation,THIRD PARTY PAYMENTS,PRIVATE CONTRACTOR,REVENUE
Walsall Council,http://opendatacommunities.org/id/metropolitan-district-council/walsall ,WC137-751,30.04.2022,CHILDRENS,REDACTED,06/04/2022,281.68,6223-Residents Orders,TRANSFER PAYMENTS,CHILDREN SOCIAL SERVICES CLIENT,REVENUE
Walsall Council,http://opendatacommunities.org/id/metropolitan-district-council/walsall ,WC137-752,30.04.2022,CHILDRENS,REDACTED,06/04/2022,281.68,6223-Residents Orders,TRANSFER PAYMENTS,CHILDREN SOCIAL SERVICES CLIENT,REVENUE
Walsall Council,http://opendatacommunities.org/id/metropolitan-district-council/walsall ,WC137-753,30.04.2022,CHILDRENS CAPITAL,ATKINS LIMITED,14/04/2022,"230,000.00",7150-Site Works Contractors,CAPITAL,"NEW CONSTRUCTION,CONVERSION & RENOVATION",CAPITAL
Walsall Council,http://opendatacommunities.org/id/metropolitan-district-council/walsall ,WC137-754,30.04.2022,RESOURCES AND TRANSFORMATION,ATKINS LIMITED,22/04/2022,"40,000.00",6310-Consultant Fees,SUPPLIES & SERVICES,SERVICES,REVENUE
Walsall Council,http://opendatacommunities.org/id/metropolitan-district-council/walsall ,WC137-755,30.04.2022,"ECONOMY, ENVIRONMENT & COMMUNITIES",AUDISE BY FREM GROUP LTD,13/04/2022,"2,000.00",6414-Repair & Maintenance of Furniture & Equipment,SUPPLIES & SERVICES,EQUIPMENT FURNITURE & MATERIALS,REVENUE
Walsall Council,http://opendatacommunities.org/id/metropolitan-district-council/walsall ,WC137-756,30.04.2022,RESOURCES AND TRANSFORMATION,AUDITEL RENTAL & SERVICE LTD,06/04/2022,"6,000.00",6610-Repair & Maintenance of Furniture & Equipment,SUPPLIES & SERVICES,EQUIPMENT FURNITURE & MATERIALS,REVENUE
Walsall Council,http://opendatacommunities.org/id/metropolitan-district-council/walsall ,WC137-757,30.04.2022,ADULT SOCIAL CARE,AURORA GRAPHICS & DISPLAYS LTD,26/04/2022,418.60,6623-Professional Fees & Services,SUPPLIES & SERVICES,SERVICES,REVENUE
Walsall Council,http://opendatacommunities.org/id/metropolitan-district-council/walsall ,WC137-758,30.04.2022,ADULT SOCIAL CARE,AUTISM WEST MIDLANDS,11/04/2022,"7,418.04",6541-Residential,THIRD PARTY PAYMENTS,PRIVATE CONTRACTOR,REVENUE
Walsall Council,http://opendatacommunities.org/id/metropolitan-district-council/walsall ,WC137-759,30.04.2022,ADULT SOCIAL CARE,AUTISM WEST MIDLANDS,11/04/2022,"5,732.64",6541-Residential,THIRD PARTY PAYMENTS,PRIVATE CONTRACTOR,REVENUE
Walsall Council,http://opendatacommunities.org/id/metropolitan-district-council/walsall ,WC137-760,30.04.2022,ADULT SOCIAL CARE,AUTISM WEST MIDLANDS,11/04/2022,"20,117.08",6541-Residential,THIRD PARTY PAYMENTS,PRIVATE CONTRACTOR,REVENUE
Walsall Council,http://opendatacommunities.org/id/metropolitan-district-council/walsall ,WC137-761,30.04.2022,"ECONOMY, ENVIRONMENT & COMMUNITIES",AUTO EXTRACT SYSTEMS LTD,14/04/2022,"2,622.00",6410-Professional Services-Priv Contractor & Other Agencies,THIRD PARTY PAYMENTS,PRIVATE CONTRACTOR,REVENUE
Walsall Council,http://opendatacommunities.org/id/metropolitan-district-council/walsall ,WC137-762,30.04.2022,ADULT SOCIAL CARE,AVE MARIA CARE SERVICES LTD,26/04/2022,"8,572.00",6554-Professional Services-Priv Contractor & Other Agencies,THIRD PARTY PAYMENTS,PRIVATE CONTRACTOR,REVENUE
Walsall Council,http://opendatacommunities.org/id/metropolitan-district-council/walsall ,WC137-763,30.04.2022,ADULT SOCIAL CARE,AVERY HOMES NELSON LIMITED,11/04/2022,"2,064.44",6541-Residential,THIRD PARTY PAYMENTS,PRIVATE CONTRACTOR,REVENUE
Walsall Council,http://opendatacommunities.org/id/metropolitan-district-council/walsall ,WC137-764,30.04.2022,ADULT SOCIAL CARE,AVERY HOMES NELSON LIMITED,11/04/2022,"3,400.00",6541-Residential,THIRD PARTY PAYMENTS,PRIVATE CONTRACTOR,REVENUE
Walsall Council,http://opendatacommunities.org/id/metropolitan-district-council/walsall ,WC137-765,30.04.2022,ADULT SOCIAL CARE,AVERY HOMES NELSON LIMITED,11/04/2022,"2,064.44",6541-Residential,THIRD PARTY PAYMENTS,PRIVATE CONTRACTOR,REVENUE
Walsall Council,http://opendatacommunities.org/id/metropolitan-district-council/walsall ,WC137-766,30.04.2022,ADULT SOCIAL CARE,AVERY HOMES NELSON LIMITED,11/04/2022,535.71,6541-Residential,THIRD PARTY PAYMENTS,PRIVATE CONTRACTOR,REVENUE
Walsall Council,http://opendatacommunities.org/id/metropolitan-district-council/walsall ,WC137-767,30.04.2022,ADULT SOCIAL CARE,REDACTED,07/04/2022,"3,424.87",6541-Direct Payment,THIRD PARTY PAYMENTS,PRIVATE CONTRACTOR,REVENUE
Walsall Council,http://opendatacommunities.org/id/metropolitan-district-council/walsall ,WC137-768,30.04.2022,"ECONOMY, ENVIRONMENT & COMMUNITIES",B & S CHAINS LTD,19/04/2022,793.00,6410-Materials,SUPPLIES & SERVICES,EQUIPMENT FURNITURE & MATERIALS,REVENUE
Walsall Council,http://opendatacommunities.org/id/metropolitan-district-council/walsall ,WC137-769,30.04.2022,"ECONOMY, ENVIRONMENT & COMMUNITIES",B TIPPER PAINTER & DECORATOR,20/04/2022,"3,940.00",6410-Professional Services-Priv Contractor & Other Agencies,THIRD PARTY PAYMENTS,PRIVATE CONTRACTOR,REVENUE
Walsall Council,http://opendatacommunities.org/id/metropolitan-district-council/walsall ,WC137-770,30.04.2022,"ECONOMY, ENVIRONMENT & COMMUNITIES",B TIPPER PAINTER & DECORATOR,20/04/2022,"5,910.00",6410-Professional Services-Priv Contractor & Other Agencies,THIRD PARTY PAYMENTS,PRIVATE CONTRACTOR,REVENUE
Walsall Council,http://opendatacommunities.org/id/metropolitan-district-council/walsall ,WC137-771,30.04.2022,"ECONOMY, ENVIRONMENT & COMMUNITIES",B W Y CANINE LTD,06/04/2022,300.00,6440-Professional Services-Priv Contractor & Other Agencies,THIRD PARTY PAYMENTS,PRIVATE CONTRACTOR,REVENUE
Walsall Council,http://opendatacommunities.org/id/metropolitan-district-council/walsall ,WC137-772,30.04.2022,CHILDRENS,BACHES SOLICITORS,22/04/2022,725.66,6220-School Only Payments - Catering,THIRD PARTY PAYMENTS,INDEPENDENT UNIT WITHIN COUNCIL,REVENUE
Walsall Council,http://opendatacommunities.org/id/metropolitan-district-council/walsall ,WC137-773,30.04.2022,RESOURCES AND TRANSFORMATION,BAILY GARNER LLP,22/04/2022,"1,096.00",6310-Planned Maintenance,PREMISES,REPAIRS & MAINTENANCE,REVENUE
Walsall Council,http://opendatacommunities.org/id/metropolitan-district-council/walsall ,WC137-774,30.04.2022,ADULT SOCIAL CARE,REDACTED,07/04/2022,"3,835.94",6541-Direct Payment,THIRD PARTY PAYMENTS,PRIVATE CONTRACTOR,REVENUE
Walsall Council,http://opendatacommunities.org/id/metropolitan-district-council/walsall ,WC137-775,30.04.2022,CHILDRENS,BANYA FAMILY PLACEMENT AGENCY LTD,19/04/2022,"4,588.60",6223-Independent Foster Care-Oth Agency Provision,THIRD PARTY PAYMENTS,PRIVATE CONTRACTOR,REVENUE
Walsall Council,http://opendatacommunities.org/id/metropolitan-district-council/walsall ,WC137-776,30.04.2022,CHILDRENS,REDACTED,06/04/2022,340.00,6223-Internal Foster Carers-Carer Fees,TRANSFER PAYMENTS,CHILDREN SOCIAL SERVICES CLIENT,REVENUE
Walsall Council,http://opendatacommunities.org/id/metropolitan-district-council/walsall ,WC137-777,30.04.2022,"ECONOMY, ENVIRONMENT & COMMUNITIES",BARCHAM TREES PLC,01/04/2022,920.00,6410-Materials,SUPPLIES & SERVICES,EQUIPMENT FURNITURE & MATERIALS,REVENUE
Walsall Council,http://opendatacommunities.org/id/metropolitan-district-council/walsall ,WC137-778,30.04.2022,"ECONOMY, ENVIRONMENT & COMMUNITIES",BARCHAM TREES PLC,01/04/2022,"1,632.00",6410-Materials,SUPPLIES & SERVICES,EQUIPMENT FURNITURE & MATERIALS,REVENUE
Walsall Council,http://opendatacommunities.org/id/metropolitan-district-council/walsall ,WC137-779,30.04.2022,"ECONOMY, ENVIRONMENT & COMMUNITIES",BARCHAM TREES PLC,01/04/2022,"1,872.00",6410-Materials,SUPPLIES & SERVICES,EQUIPMENT FURNITURE & MATERIALS,REVENUE
Walsall Council,http://opendatacommunities.org/id/metropolitan-district-council/walsall ,WC137-780,30.04.2022,"ECONOMY, ENVIRONMENT & COMMUNITIES",BARCHAM TREES PLC,11/04/2022,423.00,6410-Materials,SUPPLIES & SERVICES,EQUIPMENT FURNITURE & MATERIALS,REVENUE
Walsall Council,http://opendatacommunities.org/id/metropolitan-district-council/walsall ,WC137-781,30.04.2022,"ECONOMY, ENVIRONMENT & COMMUNITIES",BARCHAM TREES PLC,11/04/2022,276.00,6410-Materials,SUPPLIES & SERVICES,EQUIPMENT FURNITURE & MATERIALS,REVENUE
Walsall Council,http://opendatacommunities.org/id/metropolitan-district-council/walsall ,WC137-782,30.04.2022,"ECONOMY, ENVIRONMENT & COMMUNITIES",BARCHAM TREES PLC,11/04/2022,485.00,6410-Materials,SUPPLIES & SERVICES,EQUIPMENT FURNITURE & MATERIALS,REVENUE
Walsall Council,http://opendatacommunities.org/id/metropolitan-district-council/walsall ,WC137-783,30.04.2022,"ECONOMY, ENVIRONMENT & COMMUNITIES",BARCHAM TREES PLC,11/04/2022,836.00,6410-Materials,SUPPLIES & SERVICES,EQUIPMENT FURNITURE & MATERIALS,REVENUE
Walsall Council,http://opendatacommunities.org/id/metropolitan-district-council/walsall ,WC137-784,30.04.2022,"ECONOMY, ENVIRONMENT & COMMUNITIES",BARHALE LIMITED,12/04/2022,767.52,6313-Grants to Other Orgs,SUPPLIES & SERVICES,GRANTS (EXP) & SUBSCRIPTIONS,REVENUE
Walsall Council,http://opendatacommunities.org/id/metropolitan-district-council/walsall ,WC137-785,30.04.2022,"ECONOMY, ENVIRONMENT & COMMUNITIES",BARHALE LIMITED,14/04/2022,767.52,6313-Grants to Other Orgs,SUPPLIES & SERVICES,GRANTS (EXP) & SUBSCRIPTIONS,REVENUE
Walsall Council,http://opendatacommunities.org/id/metropolitan-district-council/walsall ,WC137-786,30.04.2022,CHILDRENS,BARNARDOS SERVICES LTD,14/04/2022,"4,985.50",6220-Professional Fees & Services,SUPPLIES & SERVICES,SERVICES,REVENUE
Walsall Council,http://opendatacommunities.org/id/metropolitan-district-council/walsall ,WC137-787,30.04.2022,CHILDRENS,BARNARDOS SERVICES LTD,14/04/2022,"2,991.30",6220-Professional Fees & Services,SUPPLIES & SERVICES,SERVICES,REVENUE
Walsall Council,http://opendatacommunities.org/id/metropolitan-district-council/walsall ,WC137-788,30.04.2022,CHILDRENS,BARNARDOS SERVICES LTD,27/04/2022,"6,979.70",6220-Professional Fees & Services,SUPPLIES & SERVICES,SERVICES,REVENUE
Walsall Council,http://opendatacommunities.org/id/metropolitan-district-council/walsall ,WC137-789,30.04.2022,CHILDRENS,BARNARDOS SERVICES LTD,14/04/2022,"1,994.20",6220-Professional Fees & Services,SUPPLIES & SERVICES,SERVICES,REVENUE
Walsall Council,http://opendatacommunities.org/id/metropolitan-district-council/walsall ,WC137-790,30.04.2022,CHILDRENS,BARNARDOS SERVICES LTD,14/04/2022,"-1,994.20",6220-Professional Fees & Services,SUPPLIES & SERVICES,SERVICES,REVENUE
Walsall Council,http://opendatacommunities.org/id/metropolitan-district-council/walsall ,WC137-791,30.04.2022,CHILDRENS,BARNARDOS SERVICES LTD,14/04/2022,"1,994.20",6220-Professional Fees & Services,SUPPLIES & SERVICES,SERVICES,REVENUE
Walsall Council,http://opendatacommunities.org/id/metropolitan-district-council/walsall ,WC137-792,30.04.2022,CHILDRENS,BARNARDOS SERVICES LTD,14/04/2022,"1,994.20",6220-Professional Fees & Services,SUPPLIES & SERVICES,SERVICES,REVENUE
